Workbook

Sheet SALIM (hidden)
H1: ALL DAYS | K1: WITHOUT | L1: vacance
A2: START DATE | B2: 2017-09-01 | C2: =IF(MAX(ROW(INDIRECT($B$2&":"&$B$2+ROWS($A$2:A2)-1)))>$B$3,"",MAX(ROW(INDIRECT($B$2&":"&$B$2+ROWS($A$2:A2)-1)))) -> 2017-09-01 | D2: =IF($C2="","",AND(COUNTIF(K:K,C2)=0,NOT(OR(TEXT(C2,"DDD")=$L$2,TEXT(C2,"DDD")=$L$3))*1=1)*1) -> 1 | E2: =IF(ISNA(MATCH(MAX(ROW(INDIRECT($B$2&":"&$B$2+ROWS($A$2:A2)-1))),INDIRECT("$J$1:$J$"&COUNT(K:K)),0)),$B$2+ROWS($A$2:A2)-1,$B$3+20) -> 2017-09-01 | G2: =IF($H2="","",VLOOKUP(TEXT(H2,"DDD"),{"sun","الأحد";"mon","الإثنين";"tue","الثلاثاء";"wed","الأربعاء";"thu","الخميس";"fri","الجمعة";"sat","السّبت"},2,0)) -> الجمعة | H2: =IF(ROWS($A$2:A2)>COUNTIF($D$2:$D$1001,1),"",INDEX($E$2:$E$1001,SMALL(IF($D$2:$D$1001=1,ROW($D$2:$D$1001)-ROW($D$2)+1),ROWS($A$2:A2)))) -> 2017-09-01 | I2: =IF(H2="","",MAX($I$1:I1)+1) -> 1 | K2: 2017-12-24 | L2: sat | M2: =SUM((TEXT(ROW(INDIRECT($B$2&":"&$B$3)),"ddd")=$L2)*1) -> 37
A3: END DATE | B3: 2018-05-12 | C3: =IF(MAX(ROW(INDIRECT($B$2&":"&$B$2+ROWS($A$2:A3)-1)))>$B$3,"",MAX(ROW(INDIRECT($B$2&":"&$B$2+ROWS($A$2:A3)-1)))) -> 2017-09-02 | D3: =IF($C3="","",AND(COUNTIF(K:K,C3)=0,NOT(OR(TEXT(C3,"DDD")=$L$2,TEXT(C3,"DDD")=$L$3))*1=1)*1) -> 0 | E3: =IF(ISNA(MATCH(MAX(ROW(INDIRECT($B$2&":"&$B$2+ROWS($A$2:A3)-1))),INDIRECT("$J$1:$J$"&COUNT(K:K)),0)),$B$2+ROWS($A$2:A3)-1,$B$3+20) -> 2017-09-02 | G3: =IF($H3="","",VLOOKUP(TEXT(H3,"DDD"),{"sun","الأحد";"mon","الإثنين";"tue","الثلاثاء";"wed","الأربعاء";"thu","الخميس";"fri","الجمعة";"sat","السّبت"},2,0)) -> الإثنين | H3: =IF(ROWS($A$2:A3)>COUNTIF($D$2:$D$1001,1),"",INDEX($E$2:$E$1001,SMALL(IF($D$2:$D$1001=1,ROW($D$2:$D$1001)-ROW($D$2)+1),ROWS($A$2:A3)))) -> 2017-09-04 | I3: =IF(H3="","",MAX($I$1:I2)+1) -> 2 | K3: 2017-12-25 | L3: sun | M3: =SUM((TEXT(ROW(INDIRECT($B$2&":"&$B$3)),"ddd")=$L3)*1) -> 36
C4: =IF(MAX(ROW(INDIRECT($B$2&":"&$B$2+ROWS($A$2:A4)-1)))>$B$3,"",MAX(ROW(INDIRECT($B$2&":"&$B$2+ROWS($A$2:A4)-1)))) -> 2017-09-03 | D4: 0 | E4: =IF(ISNA(MATCH(MAX(ROW(INDIRECT($B$2&":"&$B$2+ROWS($A$2:A4)-1))),INDIRECT("$J$1:$J$"&COUNT(K:K)),0)),$B$2+ROWS($A$2:A4)-1,$B$3+20) -> 2017-09-03 | G4: =IF($H4="","",VLOOKUP(TEXT(H4,"DDD"),{"sun","الأحد";"mon","الإثنين";"tue","الثلاثاء";"wed","الأربعاء";"thu","الخميس";"fri","الجمعة";"sat","السّبت"},2,0)) -> الثلاثاء | H4: =IF(ROWS($A$2:A4)>COUNTIF($D$2:$D$1001,1),"",INDEX($E$2:$E$1001,SMALL(IF($D$2:$D$1001=1,ROW($D$2:$D$1001)-ROW($D$2)+1),ROWS($A$2:A4)))) -> 2017-09-05 | I4: =IF(H4="","",MAX($I$1:I3)+1) -> 3 | K4: 2017-12-26
A5: =COUNT(H:H) -> 162 | B5: Count | C5: =IF(MAX(ROW(INDIRECT($B$2&":"&$B$2+ROWS($A$2:A5)-1)))>$B$3,"",MAX(ROW(INDIRECT($B$2&":"&$B$2+ROWS($A$2:A5)-1)))) -> 2017-09-04 | D5: 1 | E5: =IF(ISNA(MATCH(MAX(ROW(INDIRECT($B$2&":"&$B$2+ROWS($A$2:A5)-1))),INDIRECT("$J$1:$J$"&COUNT(K:K)),0)),$B$2+ROWS($A$2:A5)-1,$B$3+20) -> 2017-09-04 | G5: =IF($H5="","",VLOOKUP(TEXT(H5,"DDD"),{"sun","الأحد";"mon","الإثنين";"tue","الثلاثاء";"wed","الأربعاء";"thu","الخميس";"fri","الجمعة";"sat","السّبت"},2,0)) -> الأربعاء | H5: =IF(ROWS($A$2:A5)>COUNTIF($D$2:$D$1001,1),"",INDEX($E$2:$E$1001,SMALL(IF($D$2:$D$1001=1,ROW($D$2:$D$1001)-ROW($D$2)+1),ROWS($A$2:A5)))) -> 2017-09-06 | I5: =IF(H5="","",MAX($I$1:I4)+1) -> 4 | K5: 2017-12-27 | L5: =L2&" /Out" -> sat /Out | M5: =SUM(--(TEXT(INDIRECT("$K$2:$k$"&COUNT(K:K)),"ddd")=$L$2)) -> 3
A6: =COUNTIF($G:$G,$B6) -> 0 | B6: الأحد | C6: =IF(MAX(ROW(INDIRECT($B$2&":"&$B$2+ROWS($A$2:A6)-1)))>$B$3,"",MAX(ROW(INDIRECT($B$2&":"&$B$2+ROWS($A$2:A6)-1)))) -> 2017-09-05 | D6: 1 | E6: =IF(ISNA(MATCH(MAX(ROW(INDIRECT($B$2&":"&$B$2+ROWS($A$2:A6)-1))),INDIRECT("$J$1:$J$"&COUNT(K:K)),0)),$B$2+ROWS($A$2:A6)-1,$B$3+20) -> 2017-09-05 | G6: =IF($H6="","",VLOOKUP(TEXT(H6,"DDD"),{"sun","الأحد";"mon","الإثنين";"tue","الثلاثاء";"wed","الأربعاء";"thu","الخميس";"fri","الجمعة";"sat","السّبت"},2,0)) -> الخميس | H6: =IF(ROWS($A$2:A6)>COUNTIF($D$2:$D$1001,1),"",INDEX($E$2:$E$1001,SMALL(IF($D$2:$D$1001=1,ROW($D$2:$D$1001)-ROW($D$2)+1),ROWS($A$2:A6)))) -> 2017-09-07 | I6: =IF(H6="","",MAX($I$1:I5)+1) -> 5 | K6: 2017-12-28 | L6: =L3&" /Out" -> sun /Out | M6: =SUM(--(TEXT(INDIRECT("$K$2:$k$"&COUNT(K:K)),"ddd")=$L$3)) -> 5
A7: =COUNTIF($G:$G,$B7) -> 31 | B7: الإثنين | C7: =IF(MAX(ROW(INDIRECT($B$2&":"&$B$2+ROWS($A$2:A7)-1)))>$B$3,"",MAX(ROW(INDIRECT($B$2&":"&$B$2+ROWS($A$2:A7)-1)))) -> 2017-09-06 | D7: 1 | E7: =IF(ISNA(MATCH(MAX(ROW(INDIRECT($B$2&":"&$B$2+ROWS($A$2:A7)-1))),INDIRECT("$J$1:$J$"&COUNT(K:K)),0)),$B$2+ROWS($A$2:A7)-1,$B$3+20) -> 2017-09-06 | G7: =IF($H7="","",VLOOKUP(TEXT(H7,"DDD"),{"sun","الأحد";"mon","الإثنين";"tue","الثلاثاء";"wed","الأربعاء";"thu","الخميس";"fri","الجمعة";"sat","السّبت"},2,0)) -> الجمعة | H7: =IF(ROWS($A$2:A7)>COUNTIF($D$2:$D$1001,1),"",INDEX($E$2:$E$1001,SMALL(IF($D$2:$D$1001=1,ROW($D$2:$D$1001)-ROW($D$2)+1),ROWS($A$2:A7)))) -> 2017-09-08 | I7: =IF(H7="","",MAX($I$1:I6)+1) -> 6 | K7: 2017-12-29
A8: 32 | B8: الثلاثاء | C8: =IF(MAX(ROW(INDIRECT($B$2&":"&$B$2+ROWS($A$2:A8)-1)))>$B$3,"",MAX(ROW(INDIRECT($B$2&":"&$B$2+ROWS($A$2:A8)-1)))) -> 2017-09-07 | D8: 1 | E8: =IF(ISNA(MATCH(MAX(ROW(INDIRECT($B$2&":"&$B$2+ROWS($A$2:A8)-1))),INDIRECT("$J$1:$J$"&COUNT(K:K)),0)),$B$2+ROWS($A$2:A8)-1,$B$3+20) -> 2017-09-07 | G8: =IF($H8="","",VLOOKUP(TEXT(H8,"DDD"),{"sun","الأحد";"mon","الإثنين";"tue","الثلاثاء";"wed","الأربعاء";"thu","الخميس";"fri","الجمعة";"sat","السّبت"},2,0)) -> الإثنين | H8: =IF(ROWS($A$2:A8)>COUNTIF($D$2:$D$1001,1),"",INDEX($E$2:$E$1001,SMALL(IF($D$2:$D$1001=1,ROW($D$2:$D$1001)-ROW($D$2)+1),ROWS($A$2:A8)))) -> 2017-09-11 | I8: =IF(H8="","",MAX($I$1:I7)+1) -> 7 | K8: 2017-12-30
A9: 34 | B9: الأربعاء | C9: =IF(MAX(ROW(INDIRECT($B$2&":"&$B$2+ROWS($A$2:A9)-1)))>$B$3,"",MAX(ROW(INDIRECT($B$2&":"&$B$2+ROWS($A$2:A9)-1)))) -> 2017-09-08 | D9: 1 | E9: =IF(ISNA(MATCH(MAX(ROW(INDIRECT($B$2&":"&$B$2+ROWS($A$2:A9)-1))),INDIRECT("$J$1:$J$"&COUNT(K:K)),0)),$B$2+ROWS($A$2:A9)-1,$B$3+20) -> 2017-09-08 | G9: =IF($H9="","",VLOOKUP(TEXT(H9,"DDD"),{"sun","الأحد";"mon","الإثنين";"tue","الثلاثاء";"wed","الأربعاء";"thu","الخميس";"fri","الجمعة";"sat","السّبت"},2,0)) -> الثلاثاء | H9: =IF(ROWS($A$2:A9)>COUNTIF($D$2:$D$1001,1),"",INDEX($E$2:$E$1001,SMALL(IF($D$2:$D$1001=1,ROW($D$2:$D$1001)-ROW($D$2)+1),ROWS($A$2:A9)))) -> 2017-09-12 | I9: =IF(H9="","",MAX($I$1:I8)+1) -> 8 | K9: 2017-12-31
A10: 33 | B10: الخميس | C10: =IF(MAX(ROW(INDIRECT($B$2&":"&$B$2+ROWS($A$2:A10)-1)))>$B$3,"",MAX(ROW(INDIRECT($B$2&":"&$B$2+ROWS($A$2:A10)-1)))) -> 2017-09-09 | D10: 0 | E10: =IF(ISNA(MATCH(MAX(ROW(INDIRECT($B$2&":"&$B$2+ROWS($A$2:A10)-1))),INDIRECT("$J$1:$J$"&COUNT(K:K)),0)),$B$2+ROWS($A$2:A10)-1,$B$3+20) -> 2017-09-09 | G10: =IF($H10="","",VLOOKUP(TEXT(H10,"DDD"),{"sun","الأحد";"mon","الإثنين";"tue","الثلاثاء";"wed","الأربعاء";"thu","الخميس";"fri","الجمعة";"sat","السّبت"},2,0)) -> الأربعاء | H10: =IF(ROWS($A$2:A10)>COUNTIF($D$2:$D$1001,1),"",INDEX($E$2:$E$1001,SMALL(IF($D$2:$D$1001=1,ROW($D$2:$D$1001)-ROW($D$2)+1),ROWS($A$2:A10)))) -> 2017-09-13 | I10: =IF(H10="","",MAX($I$1:I9)+1) -> 9 | K10: 2018-01-01
A11: 32 | B11: الجمعة | C11: =IF(MAX(ROW(INDIRECT($B$2&":"&$B$2+ROWS($A$2:A11)-1)))>$B$3,"",MAX(ROW(INDIRECT($B$2&":"&$B$2+ROWS($A$2:A11)-1)))) -> 2017-09-10 | D11: 0 | E11: =IF(ISNA(MATCH(MAX(ROW(INDIRECT($B$2&":"&$B$2+ROWS($A$2:A11)-1))),INDIRECT("$J$1:$J$"&COUNT(K:K)),0)),$B$2+ROWS($A$2:A11)-1,$B$3+20) -> 2017-09-10 | G11: =IF($H11="","",VLOOKUP(TEXT(H11,"DDD"),{"sun","الأحد";"mon","الإثنين";"tue","الثلاثاء";"wed","الأربعاء";"thu","الخميس";"fri","الجمعة";"sat","السّبت"},2,0)) -> الخميس | H11: =IF(ROWS($A$2:A11)>COUNTIF($D$2:$D$1001,1),"",INDEX($E$2:$E$1001,SMALL(IF($D$2:$D$1001=1,ROW($D$2:$D$1001)-ROW($D$2)+1),ROWS($A$2:A11)))) -> 2017-09-14 | I11: =IF(H11="","",MAX($I$1:I10)+1) -> 10 | K11: 2018-01-02
A12: 0 | B12: السّبت | C12: =IF(MAX(ROW(INDIRECT($B$2&":"&$B$2+ROWS($A$2:A12)-1)))>$B$3,"",MAX(ROW(INDIRECT($B$2&":"&$B$2+ROWS($A$2:A12)-1)))) -> 2017-09-11 | D12: 1 | E12: =IF(ISNA(MATCH(MAX(ROW(INDIRECT($B$2&":"&$B$2+ROWS($A$2:A12)-1))),INDIRECT("$J$1:$J$"&COUNT(K:K)),0)),$B$2+ROWS($A$2:A12)-1,$B$3+20) -> 2017-09-11 | G12: =IF($H12="","",VLOOKUP(TEXT(H12,"DDD"),{"sun","الأحد";"mon","الإثنين";"tue","الثلاثاء";"wed","الأربعاء";"thu","الخميس";"fri","الجمعة";"sat","السّبت"},2,0)) -> الجمعة | H12: =IF(ROWS($A$2:A12)>COUNTIF($D$2:$D$1001,1),"",INDEX($E$2:$E$1001,SMALL(IF($D$2:$D$1001=1,ROW($D$2:$D$1001)-ROW($D$2)+1),ROWS($A$2:A12)))) -> 2017-09-15 | I12: =IF(H12="","",MAX($I$1:I11)+1) -> 11 | K12: 2018-05-06
C13: =IF(MAX(ROW(INDIRECT($B$2&":"&$B$2+ROWS($A$2:A13)-1)))>$B$3,"",MAX(ROW(INDIRECT($B$2&":"&$B$2+ROWS($A$2:A13)-1)))) -> 2017-09-12 | D13: 1 | E13: =IF(ISNA(MATCH(MAX(ROW(INDIRECT($B$2&":"&$B$2+ROWS($A$2:A13)-1))),INDIRECT("$J$1:$J$"&COUNT(K:K)),0)),$B$2+ROWS($A$2:A13)-1,$B$3+20) -> 2017-09-12 | G13: =IF($H13="","",VLOOKUP(TEXT(H13,"DDD"),{"sun","الأحد";"mon","الإثنين";"tue","الثلاثاء";"wed","الأربعاء";"thu","الخميس";"fri","الجمعة";"sat","السّبت"},2,0)) -> الإثنين | H13: =IF(ROWS($A$2:A13)>COUNTIF($D$2:$D$1001,1),"",INDEX($E$2:$E$1001,SMALL(IF($D$2:$D$1001=1,ROW($D$2:$D$1001)-ROW($D$2)+1),ROWS($A$2:A13)))) -> 2017-09-18 | I13: =IF(H13="","",MAX($I$1:I12)+1) -> 12 | K13: 2018-02-09
C14: =IF(MAX(ROW(INDIRECT($B$2&":"&$B$2+ROWS($A$2:A14)-1)))>$B$3,"",MAX(ROW(INDIRECT($B$2&":"&$B$2+ROWS($A$2:A14)-1)))) -> 2017-09-13 | D14: 1 | E14: =IF(ISNA(MATCH(MAX(ROW(INDIRECT($B$2&":"&$B$2+ROWS($A$2:A14)-1))),INDIRECT("$J$1:$J$"&COUNT(K:K)),0)),$B$2+ROWS($A$2:A14)-1,$B$3+20) -> 2017-09-13 | G14: =IF($H14="","",VLOOKUP(TEXT(H14,"DDD"),{"sun","الأحد";"mon","الإثنين";"tue","الثلاثاء";"wed","الأربعاء";"thu","الخميس";"fri","الجمعة";"sat","السّبت"},2,0)) -> الثلاثاء | H14: =IF(ROWS($A$2:A14)>COUNTIF($D$2:$D$1001,1),"",INDEX($E$2:$E$1001,SMALL(IF($D$2:$D$1001=1,ROW($D$2:$D$1001)-ROW($D$2)+1),ROWS($A$2:A14)))) -> 2017-09-19 | I14: =IF(H14="","",MAX($I$1:I13)+1) -> 13 | K14: 2018-03-09
C15: =IF(MAX(ROW(INDIRECT($B$2&":"&$B$2+ROWS($A$2:A15)-1)))>$B$3,"",MAX(ROW(INDIRECT($B$2&":"&$B$2+ROWS($A$2:A15)-1)))) -> 2017-09-14 | D15: 1 | E15: =IF(ISNA(MATCH(MAX(ROW(INDIRECT($B$2&":"&$B$2+ROWS($A$2:A15)-1))),INDIRECT("$J$1:$J$"&COUNT(K:K)),0)),$B$2+ROWS($A$2:A15)-1,$B$3+20) -> 2017-09-14 | G15: =IF($H15="","",VLOOKUP(TEXT(H15,"DDD"),{"sun","الأحد";"mon","الإثنين";"tue","الثلاثاء";"wed","الأربعاء";"thu","الخميس";"fri","الجمعة";"sat","السّبت"},2,0)) -> الأربعاء | H15: =IF(ROWS($A$2:A15)>COUNTIF($D$2:$D$1001,1),"",INDEX($E$2:$E$1001,SMALL(IF($D$2:$D$1001=1,ROW($D$2:$D$1001)-ROW($D$2)+1),ROWS($A$2:A15)))) -> 2017-09-20 | I15: =IF(H15="","",MAX($I$1:I14)+1) -> 14 | K15: 2017-10-02
C16: =IF(MAX(ROW(INDIRECT($B$2&":"&$B$2+ROWS($A$2:A16)-1)))>$B$3,"",MAX(ROW(INDIRECT($B$2&":"&$B$2+ROWS($A$2:A16)-1)))) -> 2017-09-15 | D16: 1 | E16: =IF(ISNA(MATCH(MAX(ROW(INDIRECT($B$2&":"&$B$2+ROWS($A$2:A16)-1))),INDIRECT("$J$1:$J$"&COUNT(K:K)),0)),$B$2+ROWS($A$2:A16)-1,$B$3+20) -> 2017-09-15 | G16: =IF($H16="","",VLOOKUP(TEXT(H16,"DDD"),{"sun","الأحد";"mon","الإثنين";"tue","الثلاثاء";"wed","الأربعاء";"thu","الخميس";"fri","الجمعة";"sat","السّبت"},2,0)) -> الخميس | H16: =IF(ROWS($A$2:A16)>COUNTIF($D$2:$D$1001,1),"",INDEX($E$2:$E$1001,SMALL(IF($D$2:$D$1001=1,ROW($D$2:$D$1001)-ROW($D$2)+1),ROWS($A$2:A16)))) -> 2017-09-21 | I16: =IF(H16="","",MAX($I$1:I15)+1) -> 15 | K16: 2018-03-29
C17: =IF(MAX(ROW(INDIRECT($B$2&":"&$B$2+ROWS($A$2:A17)-1)))>$B$3,"",MAX(ROW(INDIRECT($B$2&":"&$B$2+ROWS($A$2:A17)-1)))) -> 2017-09-16 | D17: 0 | E17: =IF(ISNA(MATCH(MAX(ROW(INDIRECT($B$2&":"&$B$2+ROWS($A$2:A17)-1))),INDIRECT("$J$1:$J$"&COUNT(K:K)),0)),$B$2+ROWS($A$2:A17)-1,$B$3+20) -> 2017-09-16 | G17: =IF($H17="","",VLOOKUP(TEXT(H17,"DDD"),{"sun","الأحد";"mon","الإثنين";"tue","الثلاثاء";"wed","الأربعاء";"thu","الخميس";"fri","الجمعة";"sat","السّبت"},2,0)) -> الجمعة | H17: =IF(ROWS($A$2:A17)>COUNTIF($D$2:$D$1001,1),"",INDEX($E$2:$E$1001,SMALL(IF($D$2:$D$1001=1,ROW($D$2:$D$1001)-ROW($D$2)+1),ROWS($A$2:A17)))) -> 2017-09-22 | I17: =IF(H17="","",MAX($I$1:I16)+1) -> 16 | K17: 2018-03-30
C18: =IF(MAX(ROW(INDIRECT($B$2&":"&$B$2+ROWS($A$2:A18)-1)))>$B$3,"",MAX(ROW(INDIRECT($B$2&":"&$B$2+ROWS($A$2:A18)-1)))) -> 2017-09-17 | D18: 0 | E18: =IF(ISNA(MATCH(MAX(ROW(INDIRECT($B$2&":"&$B$2+ROWS($A$2:A18)-1))),INDIRECT("$J$1:$J$"&COUNT(K:K)),0)),$B$2+ROWS($A$2:A18)-1,$B$3+20) -> 2017-09-17 | G18: =IF($H18="","",VLOOKUP(TEXT(H18,"DDD"),{"sun","الأحد";"mon","الإثنين";"tue","الثلاثاء";"wed","الأربعاء";"thu","الخميس";"fri","الجمعة";"sat","السّبت"},2,0)) -> الإثنين | H18: =IF(ROWS($A$2:A18)>COUNTIF($D$2:$D$1001,1),"",INDEX($E$2:$E$1001,SMALL(IF($D$2:$D$1001=1,ROW($D$2:$D$1001)-ROW($D$2)+1),ROWS($A$2:A18)))) -> 2017-09-25 | I18: =IF(H18="","",MAX($I$1:I17)+1) -> 17 | K18: 2018-03-31
C19: =IF(MAX(ROW(INDIRECT($B$2&":"&$B$2+ROWS($A$2:A19)-1)))>$B$3,"",MAX(ROW(INDIRECT($B$2&":"&$B$2+ROWS($A$2:A19)-1)))) -> 2017-09-18 | D19: 1 | E19: =IF(ISNA(MATCH(MAX(ROW(INDIRECT($B$2&":"&$B$2+ROWS($A$2:A19)-1))),INDIRECT("$J$1:$J$"&COUNT(K:K)),0)),$B$2+ROWS($A$2:A19)-1,$B$3+20) -> 2017-09-18 | G19: =IF($H19="","",VLOOKUP(TEXT(H19,"DDD"),{"sun","الأحد";"mon","الإثنين";"tue","الثلاثاء";"wed","الأربعاء";"thu","الخميس";"fri","الجمعة";"sat","السّبت"},2,0)) -> الثلاثاء | H19: =IF(ROWS($A$2:A19)>COUNTIF($D$2:$D$1001,1),"",INDEX($E$2:$E$1001,SMALL(IF($D$2:$D$1001=1,ROW($D$2:$D$1001)-ROW($D$2)+1),ROWS($A$2:A19)))) -> 2017-09-26 | I19: =IF(H19="","",MAX($I$1:I18)+1) -> 18 | K19: 2018-04-01
C20: =IF(MAX(ROW(INDIRECT($B$2&":"&$B$2+ROWS($A$2:A20)-1)))>$B$3,"",MAX(ROW(INDIRECT($B$2&":"&$B$2+ROWS($A$2:A20)-1)))) -> 2017-09-19 | D20: 1 | E20: =IF(ISNA(MATCH(MAX(ROW(INDIRECT($B$2&":"&$B$2+ROWS($A$2:A20)-1))),INDIRECT("$J$1:$J$"&COUNT(K:K)),0)),$B$2+ROWS($A$2:A20)-1,$B$3+20) -> 2017-09-19 | G20: =IF($H20="","",VLOOKUP(TEXT(H20,"DDD"),{"sun","الأحد";"mon","الإثنين";"tue","الثلاثاء";"wed","الأربعاء";"thu","الخميس";"fri","الجمعة";"sat","السّبت"},2,0)) -> الأربعاء | H20: =IF(ROWS($A$2:A20)>COUNTIF($D$2:$D$1001,1),"",INDEX($E$2:$E$1001,SMALL(IF($D$2:$D$1001=1,ROW($D$2:$D$1001)-ROW($D$2)+1),ROWS($A$2:A20)))) -> 2017-09-27 | I20: =IF(H20="","",MAX($I$1:I19)+1) -> 19 | K20: 2018-04-02
C21: =IF(MAX(ROW(INDIRECT($B$2&":"&$B$2+ROWS($A$2:A21)-1)))>$B$3,"",MAX(ROW(INDIRECT($B$2&":"&$B$2+ROWS($A$2:A21)-1)))) -> 2017-09-20 | D21: 1 | E21: =IF(ISNA(MATCH(MAX(ROW(INDIRECT($B$2&":"&$B$2+ROWS($A$2:A21)-1))),INDIRECT("$J$1:$J$"&COUNT(K:K)),0)),$B$2+ROWS($A$2:A21)-1,$B$3+20) -> 2017-09-20 | G21: =IF($H21="","",VLOOKUP(TEXT(H21,"DDD"),{"sun","الأحد";"mon","الإثنين";"tue","الثلاثاء";"wed","الأربعاء";"thu","الخميس";"fri","الجمعة";"sat","السّبت"},2,0)) -> الخميس | H21: =IF(ROWS($A$2:A21)>COUNTIF($D$2:$D$1001,1),"",INDEX($E$2:$E$1001,SMALL(IF($D$2:$D$1001=1,ROW($D$2:$D$1001)-ROW($D$2)+1),ROWS($A$2:A21)))) -> 2017-09-28 | I21: =IF(H21="","",MAX($I$1:I20)+1) -> 20 | K21: 2018-04-03
C22: =IF(MAX(ROW(INDIRECT($B$2&":"&$B$2+ROWS($A$2:A22)-1)))>$B$3,"",MAX(ROW(INDIRECT($B$2&":"&$B$2+ROWS($A$2:A22)-1)))) -> 2017-09-21 | D22: 1 | E22: =IF(ISNA(MATCH(MAX(ROW(INDIRECT($B$2&":"&$B$2+ROWS($A$2:A22)-1))),INDIRECT("$J$1:$J$"&COUNT(K:K)),0)),$B$2+ROWS($A$2:A22)-1,$B$3+20) -> 2017-09-21 | G22: =IF($H22="","",VLOOKUP(TEXT(H22,"DDD"),{"sun","الأحد";"mon","الإثنين";"tue","الثلاثاء";"wed","الأربعاء";"thu","الخميس";"fri","الجمعة";"sat","السّبت"},2,0)) -> الجمعة | H22: =IF(ROWS($A$2:A22)>COUNTIF($D$2:$D$1001,1),"",INDEX($E$2:$E$1001,SMALL(IF($D$2:$D$1001=1,ROW($D$2:$D$1001)-ROW($D$2)+1),ROWS($A$2:A22)))) -> 2017-09-29 | I22: =IF(H22="","",MAX($I$1:I21)+1) -> 21 | K22: 2018-04-04
C23: =IF(MAX(ROW(INDIRECT($B$2&":"&$B$2+ROWS($A$2:A23)-1)))>$B$3,"",MAX(ROW(INDIRECT($B$2&":"&$B$2+ROWS($A$2:A23)-1)))) -> 2017-09-22 | D23: 1 | E23: =IF(ISNA(MATCH(MAX(ROW(INDIRECT($B$2&":"&$B$2+ROWS($A$2:A23)-1))),INDIRECT("$J$1:$J$"&COUNT(K:K)),0)),$B$2+ROWS($A$2:A23)-1,$B$3+20) -> 2017-09-22 | G23: =IF($H23="","",VLOOKUP(TEXT(H23,"DDD"),{"sun","الأحد";"mon","الإثنين";"tue","الثلاثاء";"wed","الأربعاء";"thu","الخميس";"fri","الجمعة";"sat","السّبت"},2,0)) -> الثلاثاء | H23: =IF(ROWS($A$2:A23)>COUNTIF($D$2:$D$1001,1),"",INDEX($E$2:$E$1001,SMALL(IF($D$2:$D$1001=1,ROW($D$2:$D$1001)-ROW($D$2)+1),ROWS($A$2:A23)))) -> 2017-10-03 | I23: =IF(H23="","",MAX($I$1:I22)+1) -> 22 | K23: 2018-04-05
C24: =IF(MAX(ROW(INDIRECT($B$2&":"&$B$2+ROWS($A$2:A24)-1)))>$B$3,"",MAX(ROW(INDIRECT($B$2&":"&$B$2+ROWS($A$2:A24)-1)))) -> 2017-09-23 | D24: 0 | E24: =IF(ISNA(MATCH(MAX(ROW(INDIRECT($B$2&":"&$B$2+ROWS($A$2:A24)-1))),INDIRECT("$J$1:$J$"&COUNT(K:K)),0)),$B$2+ROWS($A$2:A24)-1,$B$3+20) -> 2017-09-23 | G24: =IF($H24="","",VLOOKUP(TEXT(H24,"DDD"),{"sun","الأحد";"mon","الإثنين";"tue","الثلاثاء";"wed","الأربعاء";"thu","الخميس";"fri","الجمعة";"sat","السّبت"},2,0)) -> الأربعاء | H24: =IF(ROWS($A$2:A24)>COUNTIF($D$2:$D$1001,1),"",INDEX($E$2:$E$1001,SMALL(IF($D$2:$D$1001=1,ROW($D$2:$D$1001)-ROW($D$2)+1),ROWS($A$2:A24)))) -> 2017-10-04 | I24: =IF(H24="","",MAX($I$1:I23)+1) -> 23 | K24: 2018-04-06
C25: =IF(MAX(ROW(INDIRECT($B$2&":"&$B$2+ROWS($A$2:A25)-1)))>$B$3,"",MAX(ROW(INDIRECT($B$2&":"&$B$2+ROWS($A$2:A25)-1)))) -> 2017-09-24 | D25: 0 | E25: =IF(ISNA(MATCH(MAX(ROW(INDIRECT($B$2&":"&$B$2+ROWS($A$2:A25)-1))),INDIRECT("$J$1:$J$"&COUNT(K:K)),0)),$B$2+ROWS($A$2:A25)-1,$B$3+20) -> 2017-09-24 | G25: =IF($H25="","",VLOOKUP(TEXT(H25,"DDD"),{"sun","الأحد";"mon","الإثنين";"tue","الثلاثاء";"wed","الأربعاء";"thu","الخميس";"fri","الجمعة";"sat","السّبت"},2,0)) -> الخميس | H25: =IF(ROWS($A$2:A25)>COUNTIF($D$2:$D$1001,1),"",INDEX($E$2:$E$1001,SMALL(IF($D$2:$D$1001=1,ROW($D$2:$D$1001)-ROW($D$2)+1),ROWS($A$2:A25)))) -> 2017-10-05 | I25: =IF(H25="","",MAX($I$1:I24)+1) -> 24 | K25: 2018-04-07
C26: =IF(MAX(ROW(INDIRECT($B$2&":"&$B$2+ROWS($A$2:A26)-1)))>$B$3,"",MAX(ROW(INDIRECT($B$2&":"&$B$2+ROWS($A$2:A26)-1)))) -> 2017-09-25 | D26: 1 | E26: =IF(ISNA(MATCH(MAX(ROW(INDIRECT($B$2&":"&$B$2+ROWS($A$2:A26)-1))),INDIRECT("$J$1:$J$"&COUNT(K:K)),0)),$B$2+ROWS($A$2:A26)-1,$B$3+20) -> 2017-09-25 | G26: =IF($H26="","",VLOOKUP(TEXT(H26,"DDD"),{"sun","الأحد";"mon","الإثنين";"tue","الثلاثاء";"wed","الأربعاء";"thu","الخميس";"fri","الجمعة";"sat","السّبت"},2,0)) -> الجمعة | H26: =IF(ROWS($A$2:A26)>COUNTIF($D$2:$D$1001,1),"",INDEX($E$2:$E$1001,SMALL(IF($D$2:$D$1001=1,ROW($D$2:$D$1001)-ROW($D$2)+1),ROWS($A$2:A26)))) -> 2017-10-06 | I26: =IF(H26="","",MAX($I$1:I25)+1) -> 25 | K26: 2018-04-08
C27: =IF(MAX(ROW(INDIRECT($B$2&":"&$B$2+ROWS($A$2:A27)-1)))>$B$3,"",MAX(ROW(INDIRECT($B$2&":"&$B$2+ROWS($A$2:A27)-1)))) -> 2017-09-26 | D27: 1 | E27: =IF(ISNA(MATCH(MAX(ROW(INDIRECT($B$2&":"&$B$2+ROWS($A$2:A27)-1))),INDIRECT("$J$1:$J$"&COUNT(K:K)),0)),$B$2+ROWS($A$2:A27)-1,$B$3+20) -> 2017-09-26 | G27: =IF($H27="","",VLOOKUP(TEXT(H27,"DDD"),{"sun","الأحد";"mon","الإثنين";"tue","الثلاثاء";"wed","الأربعاء";"thu","الخميس";"fri","الجمعة";"sat","السّبت"},2,0)) -> الإثنين | H27: =IF(ROWS($A$2:A27)>COUNTIF($D$2:$D$1001,1),"",INDEX($E$2:$E$1001,SMALL(IF($D$2:$D$1001=1,ROW($D$2:$D$1001)-ROW($D$2)+1),ROWS($A$2:A27)))) -> 2017-10-09 | I27: =IF(H27="","",MAX($I$1:I26)+1) -> 26 | K27: 2018-04-09
C28: =IF(MAX(ROW(INDIRECT($B$2&":"&$B$2+ROWS($A$2:A28)-1)))>$B$3,"",MAX(ROW(INDIRECT($B$2&":"&$B$2+ROWS($A$2:A28)-1)))) -> 2017-09-27 | D28: 1 | E28: =IF(ISNA(MATCH(MAX(ROW(INDIRECT($B$2&":"&$B$2+ROWS($A$2:A28)-1))),INDIRECT("$J$1:$J$"&COUNT(K:K)),0)),$B$2+ROWS($A$2:A28)-1,$B$3+20) -> 2017-09-27 | G28: =IF($H28="","",VLOOKUP(TEXT(H28,"DDD"),{"sun","الأحد";"mon","الإثنين";"tue","الثلاثاء";"wed","الأربعاء";"thu","الخميس";"fri","الجمعة";"sat","السّبت"},2,0)) -> الثلاثاء | H28: =IF(ROWS($A$2:A28)>COUNTIF($D$2:$D$1001,1),"",INDEX($E$2:$E$1001,SMALL(IF($D$2:$D$1001=1,ROW($D$2:$D$1001)-ROW($D$2)+1),ROWS($A$2:A28)))) -> 2017-10-10 | I28: =IF(H28="","",MAX($I$1:I27)+1) -> 27 | K28: 2018-04-10
C29: =IF(MAX(ROW(INDIRECT($B$2&":"&$B$2+ROWS($A$2:A29)-1)))>$B$3,"",MAX(ROW(INDIRECT($B$2&":"&$B$2+ROWS($A$2:A29)-1)))) -> 2017-09-28 | D29: 1 | E29: =IF(ISNA(MATCH(MAX(ROW(INDIRECT($B$2&":"&$B$2+ROWS($A$2:A29)-1))),INDIRECT("$J$1:$J$"&COUNT(K:K)),0)),$B$2+ROWS($A$2:A29)-1,$B$3+20) -> 2017-09-28 | G29: =IF($H29="","",VLOOKUP(TEXT(H29,"DDD"),{"sun","الأحد";"mon","الإثنين";"tue","الثلاثاء";"wed","الأربعاء";"thu","الخميس";"fri","الجمعة";"sat","السّبت"},2,0)) -> الأربعاء | H29: =IF(ROWS($A$2:A29)>COUNTIF($D$2:$D$1001,1),"",INDEX($E$2:$E$1001,SMALL(IF($D$2:$D$1001=1,ROW($D$2:$D$1001)-ROW($D$2)+1),ROWS($A$2:A29)))) -> 2017-10-11 | I29: =IF(H29="","",MAX($I$1:I28)+1) -> 28
C30: =IF(MAX(ROW(INDIRECT($B$2&":"&$B$2+ROWS($A$2:A30)-1)))>$B$3,"",MAX(ROW(INDIRECT($B$2&":"&$B$2+ROWS($A$2:A30)-1)))) -> 2017-09-29 | D30: 1 | E30: =IF(ISNA(MATCH(MAX(ROW(INDIRECT($B$2&":"&$B$2+ROWS($A$2:A30)-1))),INDIRECT("$J$1:$J$"&COUNT(K:K)),0)),$B$2+ROWS($A$2:A30)-1,$B$3+20) -> 2017-09-29 | G30: =IF($H30="","",VLOOKUP(TEXT(H30,"DDD"),{"sun","الأحد";"mon","الإثنين";"tue","الثلاثاء";"wed","الأربعاء";"thu","الخميس";"fri","الجمعة";"sat","السّبت"},2,0)) -> الخميس | H30: =IF(ROWS($A$2:A30)>COUNTIF($D$2:$D$1001,1),"",INDEX($E$2:$E$1001,SMALL(IF($D$2:$D$1001=1,ROW($D$2:$D$1001)-ROW($D$2)+1),ROWS($A$2:A30)))) -> 2017-10-12 | I30: =IF(H30="","",MAX($I$1:I29)+1) -> 29
C31: =IF(MAX(ROW(INDIRECT($B$2&":"&$B$2+ROWS($A$2:A31)-1)))>$B$3,"",MAX(ROW(INDIRECT($B$2&":"&$B$2+ROWS($A$2:A31)-1)))) -> 2017-09-30 | D31: 0 | E31: =IF(ISNA(MATCH(MAX(ROW(INDIRECT($B$2&":"&$B$2+ROWS($A$2:A31)-1))),INDIRECT("$J$1:$J$"&COUNT(K:K)),0)),$B$2+ROWS($A$2:A31)-1,$B$3+20) -> 2017-09-30 | G31: =IF($H31="","",VLOOKUP(TEXT(H31,"DDD"),{"sun","الأحد";"mon","الإثنين";"tue","الثلاثاء";"wed","الأربعاء";"thu","الخميس";"fri","الجمعة";"sat","السّبت"},2,0)) -> الجمعة | H31: =IF(ROWS($A$2:A31)>COUNTIF($D$2:$D$1001,1),"",INDEX($E$2:$E$1001,SMALL(IF($D$2:$D$1001=1,ROW($D$2:$D$1001)-ROW($D$2)+1),ROWS($A$2:A31)))) -> 2017-10-13 | I31: =IF(H31="","",MAX($I$1:I30)+1) -> 30
C32: =IF(MAX(ROW(INDIRECT($B$2&":"&$B$2+ROWS($A$2:A32)-1)))>$B$3,"",MAX(ROW(INDIRECT($B$2&":"&$B$2+ROWS($A$2:A32)-1)))) -> 2017-10-01 | D32: 0 | E32: =IF(ISNA(MATCH(MAX(ROW(INDIRECT($B$2&":"&$B$2+ROWS($A$2:A32)-1))),INDIRECT("$J$1:$J$"&COUNT(K:K)),0)),$B$2+ROWS($A$2:A32)-1,$B$3+20) -> 2017-10-01 | G32: =IF($H32="","",VLOOKUP(TEXT(H32,"DDD"),{"sun","الأحد";"mon","الإثنين";"tue","الثلاثاء";"wed","الأربعاء";"thu","الخميس";"fri","الجمعة";"sat","السّبت"},2,0)) -> الإثنين | H32: =IF(ROWS($A$2:A32)>COUNTIF($D$2:$D$1001,1),"",INDEX($E$2:$E$1001,SMALL(IF($D$2:$D$1001=1,ROW($D$2:$D$1001)-ROW($D$2)+1),ROWS($A$2:A32)))) -> 2017-10-16 | I32: =IF(H32="","",MAX($I$1:I31)+1) -> 31
C33: =IF(MAX(ROW(INDIRECT($B$2&":"&$B$2+ROWS($A$2:A33)-1)))>$B$3,"",MAX(ROW(INDIRECT($B$2&":"&$B$2+ROWS($A$2:A33)-1)))) -> 2017-10-02 | D33: 0 | E33: =IF(ISNA(MATCH(MAX(ROW(INDIRECT($B$2&":"&$B$2+ROWS($A$2:A33)-1))),INDIRECT("$J$1:$J$"&COUNT(K:K)),0)),$B$2+ROWS($A$2:A33)-1,$B$3+20) -> 2017-10-02 | G33: =IF($H33="","",VLOOKUP(TEXT(H33,"DDD"),{"sun","الأحد";"mon","الإثنين";"tue","الثلاثاء";"wed","الأربعاء";"thu","الخميس";"fri","الجمعة";"sat","السّبت"},2,0)) -> الثلاثاء | H33: =IF(ROWS($A$2:A33)>COUNTIF($D$2:$D$1001,1),"",INDEX($E$2:$E$1001,SMALL(IF($D$2:$D$1001=1,ROW($D$2:$D$1001)-ROW($D$2)+1),ROWS($A$2:A33)))) -> 2017-10-17 | I33: =IF(H33="","",MAX($I$1:I32)+1) -> 32
C34: =IF(MAX(ROW(INDIRECT($B$2&":"&$B$2+ROWS($A$2:A34)-1)))>$B$3,"",MAX(ROW(INDIRECT($B$2&":"&$B$2+ROWS($A$2:A34)-1)))) -> 2017-10-03 | D34: 1 | E34: =IF(ISNA(MATCH(MAX(ROW(INDIRECT($B$2&":"&$B$2+ROWS($A$2:A34)-1))),INDIRECT("$J$1:$J$"&COUNT(K:K)),0)),$B$2+ROWS($A$2:A34)-1,$B$3+20) -> 2017-10-03 | G34: =IF($H34="","",VLOOKUP(TEXT(H34,"DDD"),{"sun","الأحد";"mon","الإثنين";"tue","الثلاثاء";"wed","الأربعاء";"thu","الخميس";"fri","الجمعة";"sat","السّبت"},2,0)) -> الأربعاء | H34: =IF(ROWS($A$2:A34)>COUNTIF($D$2:$D$1001,1),"",INDEX($E$2:$E$1001,SMALL(IF($D$2:$D$1001=1,ROW($D$2:$D$1001)-ROW($D$2)+1),ROWS($A$2:A34)))) -> 2017-10-18 | I34: =IF(H34="","",MAX($I$1:I33)+1) -> 33
C35: =IF(MAX(ROW(INDIRECT($B$2&":"&$B$2+ROWS($A$2:A35)-1)))>$B$3,"",MAX(ROW(INDIRECT($B$2&":"&$B$2+ROWS($A$2:A35)-1)))) -> 2017-10-04 | D35: 1 | E35: =IF(ISNA(MATCH(MAX(ROW(INDIRECT($B$2&":"&$B$2+ROWS($A$2:A35)-1))),INDIRECT("$J$1:$J$"&COUNT(K:K)),0)),$B$2+ROWS($A$2:A35)-1,$B$3+20) -> 2017-10-04 | G35: =IF($H35="","",VLOOKUP(TEXT(H35,"DDD"),{"sun","الأحد";"mon","الإثنين";"tue","الثلاثاء";"wed","الأربعاء";"thu","الخميس";"fri","الجمعة";"sat","السّبت"},2,0)) -> الخميس | H35: =IF(ROWS($A$2:A35)>COUNTIF($D$2:$D$1001,1),"",INDEX($E$2:$E$1001,SMALL(IF($D$2:$D$1001=1,ROW($D$2:$D$1001)-ROW($D$2)+1),ROWS($A$2:A35)))) -> 2017-10-19 | I35: =IF(H35="","",MAX($I$1:I34)+1) -> 34
C36: =IF(MAX(ROW(INDIRECT($B$2&":"&$B$2+ROWS($A$2:A36)-1)))>$B$3,"",MAX(ROW(INDIRECT($B$2&":"&$B$2+ROWS($A$2:A36)-1)))) -> 2017-10-05 | D36: 1 | E36: =IF(ISNA(MATCH(MAX(ROW(INDIRECT($B$2&":"&$B$2+ROWS($A$2:A36)-1))),INDIRECT("$J$1:$J$"&COUNT(K:K)),0)),$B$2+ROWS($A$2:A36)-1,$B$3+20) -> 2017-10-05 | G36: =IF($H36="","",VLOOKUP(TEXT(H36,"DDD"),{"sun","الأحد";"mon","الإثنين";"tue","الثلاثاء";"wed","الأربعاء";"thu","الخميس";"fri","الجمعة";"sat","السّبت"},2,0)) -> الجمعة | H36: =IF(ROWS($A$2:A36)>COUNTIF($D$2:$D$1001,1),"",INDEX($E$2:$E$1001,SMALL(IF($D$2:$D$1001=1,ROW($D$2:$D$1001)-ROW($D$2)+1),ROWS($A$2:A36)))) -> 2017-10-20 | I36: =IF(H36="","",MAX($I$1:I35)+1) -> 35
C37: =IF(MAX(ROW(INDIRECT($B$2&":"&$B$2+ROWS($A$2:A37)-1)))>$B$3,"",MAX(ROW(INDIRECT($B$2&":"&$B$2+ROWS($A$2:A37)-1)))) -> 2017-10-06 | D37: 1 | E37: =IF(ISNA(MATCH(MAX(ROW(INDIRECT($B$2&":"&$B$2+ROWS($A$2:A37)-1))),INDIRECT("$J$1:$J$"&COUNT(K:K)),0)),$B$2+ROWS($A$2:A37)-1,$B$3+20) -> 2017-10-06 | G37: =IF($H37="","",VLOOKUP(TEXT(H37,"DDD"),{"sun","الأحد";"mon","الإثنين";"tue","الثلاثاء";"wed","الأربعاء";"thu","الخميس";"fri","الجمعة";"sat","السّبت"},2,0)) -> الإثنين | H37: =IF(ROWS($A$2:A37)>COUNTIF($D$2:$D$1001,1),"",INDEX($E$2:$E$1001,SMALL(IF($D$2:$D$1001=1,ROW($D$2:$D$1001)-ROW($D$2)+1),ROWS($A$2:A37)))) -> 2017-10-23 | I37: =IF(H37="","",MAX($I$1:I36)+1) -> 36
C38: =IF(MAX(ROW(INDIRECT($B$2&":"&$B$2+ROWS($A$2:A38)-1)))>$B$3,"",MAX(ROW(INDIRECT($B$2&":"&$B$2+ROWS($A$2:A38)-1)))) -> 2017-10-07 | D38: 0 | E38: =IF(ISNA(MATCH(MAX(ROW(INDIRECT($B$2&":"&$B$2+ROWS($A$2:A38)-1))),INDIRECT("$J$1:$J$"&COUNT(K:K)),0)),$B$2+ROWS($A$2:A38)-1,$B$3+20) -> 2017-10-07 | G38: =IF($H38="","",VLOOKUP(TEXT(H38,"DDD"),{"sun","الأحد";"mon","الإثنين";"tue","الثلاثاء";"wed","الأربعاء";"thu","الخميس";"fri","الجمعة";"sat","السّبت"},2,0)) -> الثلاثاء | H38: =IF(ROWS($A$2:A38)>COUNTIF($D$2:$D$1001,1),"",INDEX($E$2:$E$1001,SMALL(IF($D$2:$D$1001=1,ROW($D$2:$D$1001)-ROW($D$2)+1),ROWS($A$2:A38)))) -> 2017-10-24 | I38: =IF(H38="","",MAX($I$1:I37)+1) -> 37
C39: =IF(MAX(ROW(INDIRECT($B$2&":"&$B$2+ROWS($A$2:A39)-1)))>$B$3,"",MAX(ROW(INDIRECT($B$2&":"&$B$2+ROWS($A$2:A39)-1)))) -> 2017-10-08 | D39: 0 | E39: =IF(ISNA(MATCH(MAX(ROW(INDIRECT($B$2&":"&$B$2+ROWS($A$2:A39)-1))),INDIRECT("$J$1:$J$"&COUNT(K:K)),0)),$B$2+ROWS($A$2:A39)-1,$B$3+20) -> 2017-10-08 | G39: =IF($H39="","",VLOOKUP(TEXT(H39,"DDD"),{"sun","الأحد";"mon","الإثنين";"tue","الثلاثاء";"wed","الأربعاء";"thu","الخميس";"fri","الجمعة";"sat","السّبت"},2,0)) -> الأربعاء | H39: =IF(ROWS($A$2:A39)>COUNTIF($D$2:$D$1001,1),"",INDEX($E$2:$E$1001,SMALL(IF($D$2:$D$1001=1,ROW($D$2:$D$1001)-ROW($D$2)+1),ROWS($A$2:A39)))) -> 2017-10-25 | I39: =IF(H39="","",MAX($I$1:I38)+1) -> 38
C40: =IF(MAX(ROW(INDIRECT($B$2&":"&$B$2+ROWS($A$2:A40)-1)))>$B$3,"",MAX(ROW(INDIRECT($B$2&":"&$B$2+ROWS($A$2:A40)-1)))) -> 2017-10-09 | D40: 1 | E40: =IF(ISNA(MATCH(MAX(ROW(INDIRECT($B$2&":"&$B$2+ROWS($A$2:A40)-1))),INDIRECT("$J$1:$J$"&COUNT(K:K)),0)),$B$2+ROWS($A$2:A40)-1,$B$3+20) -> 2017-10-09 | G40: =IF($H40="","",VLOOKUP(TEXT(H40,"DDD"),{"sun","الأحد";"mon","الإثنين";"tue","الثلاثاء";"wed","الأربعاء";"thu","الخميس";"fri","الجمعة";"sat","السّبت"},2,0)) -> الخميس | H40: =IF(ROWS($A$2:A40)>COUNTIF($D$2:$D$1001,1),"",INDEX($E$2:$E$1001,SMALL(IF($D$2:$D$1001=1,ROW($D$2:$D$1001)-ROW($D$2)+1),ROWS($A$2:A40)))) -> 2017-10-26 | I40: =IF(H40="","",MAX($I$1:I39)+1) -> 39
C41: =IF(MAX(ROW(INDIRECT($B$2&":"&$B$2+ROWS($A$2:A41)-1)))>$B$3,"",MAX(ROW(INDIRECT($B$2&":"&$B$2+ROWS($A$2:A41)-1)))) -> 2017-10-10 | D41: 1 | E41: =IF(ISNA(MATCH(MAX(ROW(INDIRECT($B$2&":"&$B$2+ROWS($A$2:A41)-1))),INDIRECT("$J$1:$J$"&COUNT(K:K)),0)),$B$2+ROWS($A$2:A41)-1,$B$3+20) -> 2017-10-10 | G41: =IF($H41="","",VLOOKUP(TEXT(H41,"DDD"),{"sun","الأحد";"mon","الإثنين";"tue","الثلاثاء";"wed","الأربعاء";"thu","الخميس";"fri","الجمعة";"sat","السّبت"},2,0)) -> الجمعة | H41: =IF(ROWS($A$2:A41)>COUNTIF($D$2:$D$1001,1),"",INDEX($E$2:$E$1001,SMALL(IF($D$2:$D$1001=1,ROW($D$2:$D$1001)-ROW($D$2)+1),ROWS($A$2:A41)))) -> 2017-10-27 | I41: =IF(H41="","",MAX($I$1:I40)+1) -> 40
C42: =IF(MAX(ROW(INDIRECT($B$2&":"&$B$2+ROWS($A$2:A42)-1)))>$B$3,"",MAX(ROW(INDIRECT($B$2&":"&$B$2+ROWS($A$2:A42)-1)))) -> 2017-10-11 | D42: 1 | E42: =IF(ISNA(MATCH(MAX(ROW(INDIRECT($B$2&":"&$B$2+ROWS($A$2:A42)-1))),INDIRECT("$J$1:$J$"&COUNT(K:K)),0)),$B$2+ROWS($A$2:A42)-1,$B$3+20) -> 2017-10-11 | G42: =IF($H42="","",VLOOKUP(TEXT(H42,"DDD"),{"sun","الأحد";"mon","الإثنين";"tue","الثلاثاء";"wed","الأربعاء";"thu","الخميس";"fri","الجمعة";"sat","السّبت"},2,0)) -> الإثنين | H42: =IF(ROWS($A$2:A42)>COUNTIF($D$2:$D$1001,1),"",INDEX($E$2:$E$1001,SMALL(IF($D$2:$D$1001=1,ROW($D$2:$D$1001)-ROW($D$2)+1),ROWS($A$2:A42)))) -> 2017-10-30 | I42: =IF(H42="","",MAX($I$1:I41)+1) -> 41
C43: =IF(MAX(ROW(INDIRECT($B$2&":"&$B$2+ROWS($A$2:A43)-1)))>$B$3,"",MAX(ROW(INDIRECT($B$2&":"&$B$2+ROWS($A$2:A43)-1)))) -> 2017-10-12 | D43: 1 | E43: =IF(ISNA(MATCH(MAX(ROW(INDIRECT($B$2&":"&$B$2+ROWS($A$2:A43)-1))),INDIRECT("$J$1:$J$"&COUNT(K:K)),0)),$B$2+ROWS($A$2:A43)-1,$B$3+20) -> 2017-10-12 | G43: =IF($H43="","",VLOOKUP(TEXT(H43,"DDD"),{"sun","الأحد";"mon","الإثنين";"tue","الثلاثاء";"wed","الأربعاء";"thu","الخميس";"fri","الجمعة";"sat","السّبت"},2,0)) -> الثلاثاء | H43: =IF(ROWS($A$2:A43)>COUNTIF($D$2:$D$1001,1),"",INDEX($E$2:$E$1001,SMALL(IF($D$2:$D$1001=1,ROW($D$2:$D$1001)-ROW($D$2)+1),ROWS($A$2:A43)))) -> 2017-10-31 | I43: =IF(H43="","",MAX($I$1:I42)+1) -> 42
C44: =IF(MAX(ROW(INDIRECT($B$2&":"&$B$2+ROWS($A$2:A44)-1)))>$B$3,"",MAX(ROW(INDIRECT($B$2&":"&$B$2+ROWS($A$2:A44)-1)))) -> 2017-10-13 | D44: 1 | E44: =IF(ISNA(MATCH(MAX(ROW(INDIRECT($B$2&":"&$B$2+ROWS($A$2:A44)-1))),INDIRECT("$J$1:$J$"&COUNT(K:K)),0)),$B$2+ROWS($A$2:A44)-1,$B$3+20) -> 2017-10-13 | G44: =IF($H44="","",VLOOKUP(TEXT(H44,"DDD"),{"sun","الأحد";"mon","الإثنين";"tue","الثلاثاء";"wed","الأربعاء";"thu","الخميس";"fri","الجمعة";"sat","السّبت"},2,0)) -> الأربعاء | H44: =IF(ROWS($A$2:A44)>COUNTIF($D$2:$D$1001,1),"",INDEX($E$2:$E$1001,SMALL(IF($D$2:$D$1001=1,ROW($D$2:$D$1001)-ROW($D$2)+1),ROWS($A$2:A44)))) -> 2017-11-01 | I44: =IF(H44="","",MAX($I$1:I43)+1) -> 43
C45: =IF(MAX(ROW(INDIRECT($B$2&":"&$B$2+ROWS($A$2:A45)-1)))>$B$3,"",MAX(ROW(INDIRECT($B$2&":"&$B$2+ROWS($A$2:A45)-1)))) -> 2017-10-14 | D45: 0 | E45: =IF(ISNA(MATCH(MAX(ROW(INDIRECT($B$2&":"&$B$2+ROWS($A$2:A45)-1))),INDIRECT("$J$1:$J$"&COUNT(K:K)),0)),$B$2+ROWS($A$2:A45)-1,$B$3+20) -> 2017-10-14 | G45: =IF($H45="","",VLOOKUP(TEXT(H45,"DDD"),{"sun","الأحد";"mon","الإثنين";"tue","الثلاثاء";"wed","الأربعاء";"thu","الخميس";"fri","الجمعة";"sat","السّبت"},2,0)) -> الخميس | H45: =IF(ROWS($A$2:A45)>COUNTIF($D$2:$D$1001,1),"",INDEX($E$2:$E$1001,SMALL(IF($D$2:$D$1001=1,ROW($D$2:$D$1001)-ROW($D$2)+1),ROWS($A$2:A45)))) -> 2017-11-02 | I45: =IF(H45="","",MAX($I$1:I44)+1) -> 44
C46: =IF(MAX(ROW(INDIRECT($B$2&":"&$B$2+ROWS($A$2:A46)-1)))>$B$3,"",MAX(ROW(INDIRECT($B$2&":"&$B$2+ROWS($A$2:A46)-1)))) -> 2017-10-15 | D46: 0 | E46: =IF(ISNA(MATCH(MAX(ROW(INDIRECT($B$2&":"&$B$2+ROWS($A$2:A46)-1))),INDIRECT("$J$1:$J$"&COUNT(K:K)),0)),$B$2+ROWS($A$2:A46)-1,$B$3+20) -> 2017-10-15 | G46: =IF($H46="","",VLOOKUP(TEXT(H46,"DDD"),{"sun","الأحد";"mon","الإثنين";"tue","الثلاثاء";"wed","الأربعاء";"thu","الخميس";"fri","الجمعة";"sat","السّبت"},2,0)) -> الجمعة | H46: =IF(ROWS($A$2:A46)>COUNTIF($D$2:$D$1001,1),"",INDEX($E$2:$E$1001,SMALL(IF($D$2:$D$1001=1,ROW($D$2:$D$1001)-ROW($D$2)+1),ROWS($A$2:A46)))) -> 2017-11-03 | I46: =IF(H46="","",MAX($I$1:I45)+1) -> 45
C47: =IF(MAX(ROW(INDIRECT($B$2&":"&$B$2+ROWS($A$2:A47)-1)))>$B$3,"",MAX(ROW(INDIRECT($B$2&":"&$B$2+ROWS($A$2:A47)-1)))) -> 2017-10-16 | D47: 1 | E47: =IF(ISNA(MATCH(MAX(ROW(INDIRECT($B$2&":"&$B$2+ROWS($A$2:A47)-1))),INDIRECT("$J$1:$J$"&COUNT(K:K)),0)),$B$2+ROWS($A$2:A47)-1,$B$3+20) -> 2017-10-16 | G47: =IF($H47="","",VLOOKUP(TEXT(H47,"DDD"),{"sun","الأحد";"mon","الإثنين";"tue","الثلاثاء";"wed","الأربعاء";"thu","الخميس";"fri","الجمعة";"sat","السّبت"},2,0)) -> الإثنين | H47: =IF(ROWS($A$2:A47)>COUNTIF($D$2:$D$1001,1),"",INDEX($E$2:$E$1001,SMALL(IF($D$2:$D$1001=1,ROW($D$2:$D$1001)-ROW($D$2)+1),ROWS($A$2:A47)))) -> 2017-11-06 | I47: =IF(H47="","",MAX($I$1:I46)+1) -> 46
C48: =IF(MAX(ROW(INDIRECT($B$2&":"&$B$2+ROWS($A$2:A48)-1)))>$B$3,"",MAX(ROW(INDIRECT($B$2&":"&$B$2+ROWS($A$2:A48)-1)))) -> 2017-10-17 | D48: 1 | E48: =IF(ISNA(MATCH(MAX(ROW(INDIRECT($B$2&":"&$B$2+ROWS($A$2:A48)-1))),INDIRECT("$J$1:$J$"&COUNT(K:K)),0)),$B$2+ROWS($A$2:A48)-1,$B$3+20) -> 2017-10-17 | G48: =IF($H48="","",VLOOKUP(TEXT(H48,"DDD"),{"sun","الأحد";"mon","الإثنين";"tue","الثلاثاء";"wed","الأربعاء";"thu","الخميس";"fri","الجمعة";"sat","السّبت"},2,0)) -> الثلاثاء | H48: =IF(ROWS($A$2:A48)>COUNTIF($D$2:$D$1001,1),"",INDEX($E$2:$E$1001,SMALL(IF($D$2:$D$1001=1,ROW($D$2:$D$1001)-ROW($D$2)+1),ROWS($A$2:A48)))) -> 2017-11-07 | I48: =IF(H48="","",MAX($I$1:I47)+1) -> 47
C49: =IF(MAX(ROW(INDIRECT($B$2&":"&$B$2+ROWS($A$2:A49)-1)))>$B$3,"",MAX(ROW(INDIRECT($B$2&":"&$B$2+ROWS($A$2:A49)-1)))) -> 2017-10-18 | D49: 1 | E49: =IF(ISNA(MATCH(MAX(ROW(INDIRECT($B$2&":"&$B$2+ROWS($A$2:A49)-1))),INDIRECT("$J$1:$J$"&COUNT(K:K)),0)),$B$2+ROWS($A$2:A49)-1,$B$3+20) -> 2017-10-18 | G49: =IF($H49="","",VLOOKUP(TEXT(H49,"DDD"),{"sun","الأحد";"mon","الإثنين";"tue","الثلاثاء";"wed","الأربعاء";"thu","الخميس";"fri","الجمعة";"sat","السّبت"},2,0)) -> الأربعاء | H49: =IF(ROWS($A$2:A49)>COUNTIF($D$2:$D$1001,1),"",INDEX($E$2:$E$1001,SMALL(IF($D$2:$D$1001=1,ROW($D$2:$D$1001)-ROW($D$2)+1),ROWS($A$2:A49)))) -> 2017-11-08 | I49: =IF(H49="","",MAX($I$1:I48)+1) -> 48
C50: =IF(MAX(ROW(INDIRECT($B$2&":"&$B$2+ROWS($A$2:A50)-1)))>$B$3,"",MAX(ROW(INDIRECT($B$2&":"&$B$2+ROWS($A$2:A50)-1)))) -> 2017-10-19 | D50: 1 | E50: =IF(ISNA(MATCH(MAX(ROW(INDIRECT($B$2&":"&$B$2+ROWS($A$2:A50)-1))),INDIRECT("$J$1:$J$"&COUNT(K:K)),0)),$B$2+ROWS($A$2:A50)-1,$B$3+20) -> 2017-10-19 | G50: =IF($H50="","",VLOOKUP(TEXT(H50,"DDD"),{"sun","الأحد";"mon","الإثنين";"tue","الثلاثاء";"wed","الأربعاء";"thu","الخميس";"fri","الجمعة";"sat","السّبت"},2,0)) -> الخميس | H50: =IF(ROWS($A$2:A50)>COUNTIF($D$2:$D$1001,1),"",INDEX($E$2:$E$1001,SMALL(IF($D$2:$D$1001=1,ROW($D$2:$D$1001)-ROW($D$2)+1),ROWS($A$2:A50)))) -> 2017-11-09 | I50: =IF(H50="","",MAX($I$1:I49)+1) -> 49
C51: =IF(MAX(ROW(INDIRECT($B$2&":"&$B$2+ROWS($A$2:A51)-1)))>$B$3,"",MAX(ROW(INDIRECT($B$2&":"&$B$2+ROWS($A$2:A51)-1)))) -> 2017-10-20 | D51: 1 | E51: =IF(ISNA(MATCH(MAX(ROW(INDIRECT($B$2&":"&$B$2+ROWS($A$2:A51)-1))),INDIRECT("$J$1:$J$"&COUNT(K:K)),0)),$B$2+ROWS($A$2:A51)-1,$B$3+20) -> 2017-10-20 | G51: =IF($H51="","",VLOOKUP(TEXT(H51,"DDD"),{"sun","الأحد";"mon","الإثنين";"tue","الثلاثاء";"wed","الأربعاء";"thu","الخميس";"fri","الجمعة";"sat","السّبت"},2,0)) -> الجمعة | H51: =IF(ROWS($A$2:A51)>COUNTIF($D$2:$D$1001,1),"",INDEX($E$2:$E$1001,SMALL(IF($D$2:$D$1001=1,ROW($D$2:$D$1001)-ROW($D$2)+1),ROWS($A$2:A51)))) -> 2017-11-10 | I51: =IF(H51="","",MAX($I$1:I50)+1) -> 50
C52: =IF(MAX(ROW(INDIRECT($B$2&":"&$B$2+ROWS($A$2:A52)-1)))>$B$3,"",MAX(ROW(INDIRECT($B$2&":"&$B$2+ROWS($A$2:A52)-1)))) -> 2017-10-21 | D52: 0 | E52: =IF(ISNA(MATCH(MAX(ROW(INDIRECT($B$2&":"&$B$2+ROWS($A$2:A52)-1))),INDIRECT("$J$1:$J$"&COUNT(K:K)),0)),$B$2+ROWS($A$2:A52)-1,$B$3+20) -> 2017-10-21 | G52: =IF($H52="","",VLOOKUP(TEXT(H52,"DDD"),{"sun","الأحد";"mon","الإثنين";"tue","الثلاثاء";"wed","الأربعاء";"thu","الخميس";"fri","الجمعة";"sat","السّبت"},2,0)) -> الإثنين | H52: =IF(ROWS($A$2:A52)>COUNTIF($D$2:$D$1001,1),"",INDEX($E$2:$E$1001,SMALL(IF($D$2:$D$1001=1,ROW($D$2:$D$1001)-ROW($D$2)+1),ROWS($A$2:A52)))) -> 2017-11-13 | I52: =IF(H52="","",MAX($I$1:I51)+1) -> 51
C53: =IF(MAX(ROW(INDIRECT($B$2&":"&$B$2+ROWS($A$2:A53)-1)))>$B$3,"",MAX(ROW(INDIRECT($B$2&":"&$B$2+ROWS($A$2:A53)-1)))) -> 2017-10-22 | D53: 0 | E53: =IF(ISNA(MATCH(MAX(ROW(INDIRECT($B$2&":"&$B$2+ROWS($A$2:A53)-1))),INDIRECT("$J$1:$J$"&COUNT(K:K)),0)),$B$2+ROWS($A$2:A53)-1,$B$3+20) -> 2017-10-22 | G53: =IF($H53="","",VLOOKUP(TEXT(H53,"DDD"),{"sun","الأحد";"mon","الإثنين";"tue","الثلاثاء";"wed","الأربعاء";"thu","الخميس";"fri","الجمعة";"sat","السّبت"},2,0)) -> الثلاثاء | H53: =IF(ROWS($A$2:A53)>COUNTIF($D$2:$D$1001,1),"",INDEX($E$2:$E$1001,SMALL(IF($D$2:$D$1001=1,ROW($D$2:$D$1001)-ROW($D$2)+1),ROWS($A$2:A53)))) -> 2017-11-14 | I53: =IF(H53="","",MAX($I$1:I52)+1) -> 52
C54: =IF(MAX(ROW(INDIRECT($B$2&":"&$B$2+ROWS($A$2:A54)-1)))>$B$3,"",MAX(ROW(INDIRECT($B$2&":"&$B$2+ROWS($A$2:A54)-1)))) -> 2017-10-23 | D54: 1 | E54: =IF(ISNA(MATCH(MAX(ROW(INDIRECT($B$2&":"&$B$2+ROWS($A$2:A54)-1))),INDIRECT("$J$1:$J$"&COUNT(K:K)),0)),$B$2+ROWS($A$2:A54)-1,$B$3+20) -> 2017-10-23 | G54: =IF($H54="","",VLOOKUP(TEXT(H54,"DDD"),{"sun","الأحد";"mon","الإثنين";"tue","الثلاثاء";"wed","الأربعاء";"thu","الخميس";"fri","الجمعة";"sat","السّبت"},2,0)) -> الأربعاء | H54: =IF(ROWS($A$2:A54)>COUNTIF($D$2:$D$1001,1),"",INDEX($E$2:$E$1001,SMALL(IF($D$2:$D$1001=1,ROW($D$2:$D$1001)-ROW($D$2)+1),ROWS($A$2:A54)))) -> 2017-11-15 | I54: =IF(H54="","",MAX($I$1:I53)+1) -> 53
C55: =IF(MAX(ROW(INDIRECT($B$2&":"&$B$2+ROWS($A$2:A55)-1)))>$B$3,"",MAX(ROW(INDIRECT($B$2&":"&$B$2+ROWS($A$2:A55)-1)))) -> 2017-10-24 | D55: 1 | E55: =IF(ISNA(MATCH(MAX(ROW(INDIRECT($B$2&":"&$B$2+ROWS($A$2:A55)-1))),INDIRECT("$J$1:$J$"&COUNT(K:K)),0)),$B$2+ROWS($A$2:A55)-1,$B$3+20) -> 2017-10-24 | G55: =IF($H55="","",VLOOKUP(TEXT(H55,"DDD"),{"sun","الأحد";"mon","الإثنين";"tue","الثلاثاء";"wed","الأربعاء";"thu","الخميس";"fri","الجمعة";"sat","السّبت"},2,0)) -> الخميس | H55: =IF(ROWS($A$2:A55)>COUNTIF($D$2:$D$1001,1),"",INDEX($E$2:$E$1001,SMALL(IF($D$2:$D$1001=1,ROW($D$2:$D$1001)-ROW($D$2)+1),ROWS($A$2:A55)))) -> 2017-11-16 | I55: =IF(H55="","",MAX($I$1:I54)+1) -> 54
C56: =IF(MAX(ROW(INDIRECT($B$2&":"&$B$2+ROWS($A$2:A56)-1)))>$B$3,"",MAX(ROW(INDIRECT($B$2&":"&$B$2+ROWS($A$2:A56)-1)))) -> 2017-10-25 | D56: 1 | E56: =IF(ISNA(MATCH(MAX(ROW(INDIRECT($B$2&":"&$B$2+ROWS($A$2:A56)-1))),INDIRECT("$J$1:$J$"&COUNT(K:K)),0)),$B$2+ROWS($A$2:A56)-1,$B$3+20) -> 2017-10-25 | G56: =IF($H56="","",VLOOKUP(TEXT(H56,"DDD"),{"sun","الأحد";"mon","الإثنين";"tue","الثلاثاء";"wed","الأربعاء";"thu","الخميس";"fri","الجمعة";"sat","السّبت"},2,0)) -> الجمعة | H56: =IF(ROWS($A$2:A56)>COUNTIF($D$2:$D$1001,1),"",INDEX($E$2:$E$1001,SMALL(IF($D$2:$D$1001=1,ROW($D$2:$D$1001)-ROW($D$2)+1),ROWS($A$2:A56)))) -> 2017-11-17 | I56: =IF(H56="","",MAX($I$1:I55)+1) -> 55
C57: =IF(MAX(ROW(INDIRECT($B$2&":"&$B$2+ROWS($A$2:A57)-1)))>$B$3,"",MAX(ROW(INDIRECT($B$2&":"&$B$2+ROWS($A$2:A57)-1)))) -> 2017-10-26 | D57: 1 | E57: =IF(ISNA(MATCH(MAX(ROW(INDIRECT($B$2&":"&$B$2+ROWS($A$2:A57)-1))),INDIRECT("$J$1:$J$"&COUNT(K:K)),0)),$B$2+ROWS($A$2:A57)-1,$B$3+20) -> 2017-10-26 | G57: =IF($H57="","",VLOOKUP(TEXT(H57,"DDD"),{"sun","الأحد";"mon","الإثنين";"tue","الثلاثاء";"wed","الأربعاء";"thu","الخميس";"fri","الجمعة";"sat","السّبت"},2,0)) -> الإثنين | H57: =IF(ROWS($A$2:A57)>COUNTIF($D$2:$D$1001,1),"",INDEX($E$2:$E$1001,SMALL(IF($D$2:$D$1001=1,ROW($D$2:$D$1001)-ROW($D$2)+1),ROWS($A$2:A57)))) -> 2017-11-20 | I57: =IF(H57="","",MAX($I$1:I56)+1) -> 56
C58: =IF(MAX(ROW(INDIRECT($B$2&":"&$B$2+ROWS($A$2:A58)-1)))>$B$3,"",MAX(ROW(INDIRECT($B$2&":"&$B$2+ROWS($A$2:A58)-1)))) -> 2017-10-27 | D58: 1 | E58: =IF(ISNA(MATCH(MAX(ROW(INDIRECT($B$2&":"&$B$2+ROWS($A$2:A58)-1))),INDIRECT("$J$1:$J$"&COUNT(K:K)),0)),$B$2+ROWS($A$2:A58)-1,$B$3+20) -> 2017-10-27 | G58: =IF($H58="","",VLOOKUP(TEXT(H58,"DDD"),{"sun","الأحد";"mon","الإثنين";"tue","الثلاثاء";"wed","الأربعاء";"thu","الخميس";"fri","الجمعة";"sat","السّبت"},2,0)) -> الثلاثاء | H58: =IF(ROWS($A$2:A58)>COUNTIF($D$2:$D$1001,1),"",INDEX($E$2:$E$1001,SMALL(IF($D$2:$D$1001=1,ROW($D$2:$D$1001)-ROW($D$2)+1),ROWS($A$2:A58)))) -> 2017-11-21 | I58: =IF(H58="","",MAX($I$1:I57)+1) -> 57
C59: =IF(MAX(ROW(INDIRECT($B$2&":"&$B$2+ROWS($A$2:A59)-1)))>$B$3,"",MAX(ROW(INDIRECT($B$2&":"&$B$2+ROWS($A$2:A59)-1)))) -> 2017-10-28 | D59: 0 | E59: =IF(ISNA(MATCH(MAX(ROW(INDIRECT($B$2&":"&$B$2+ROWS($A$2:A59)-1))),INDIRECT("$J$1:$J$"&COUNT(K:K)),0)),$B$2+ROWS($A$2:A59)-1,$B$3+20) -> 2017-10-28 | G59: =IF($H59="","",VLOOKUP(TEXT(H59,"DDD"),{"sun","الأحد";"mon","الإثنين";"tue","الثلاثاء";"wed","الأربعاء";"thu","الخميس";"fri","الجمعة";"sat","السّبت"},2,0)) -> الأربعاء | H59: =IF(ROWS($A$2:A59)>COUNTIF($D$2:$D$1001,1),"",INDEX($E$2:$E$1001,SMALL(IF($D$2:$D$1001=1,ROW($D$2:$D$1001)-ROW($D$2)+1),ROWS($A$2:A59)))) -> 2017-11-22 | I59: =IF(H59="","",MAX($I$1:I58)+1) -> 58
C60: =IF(MAX(ROW(INDIRECT($B$2&":"&$B$2+ROWS($A$2:A60)-1)))>$B$3,"",MAX(ROW(INDIRECT($B$2&":"&$B$2+ROWS($A$2:A60)-1)))) -> 2017-10-29 | D60: 0 | E60: =IF(ISNA(MATCH(MAX(ROW(INDIRECT($B$2&":"&$B$2+ROWS($A$2:A60)-1))),INDIRECT("$J$1:$J$"&COUNT(K:K)),0)),$B$2+ROWS($A$2:A60)-1,$B$3+20) -> 2017-10-29 | G60: =IF($H60="","",VLOOKUP(TEXT(H60,"DDD"),{"sun","الأحد";"mon","الإثنين";"tue","الثلاثاء";"wed","الأربعاء";"thu","الخميس";"fri","الجمعة";"sat","السّبت"},2,0)) -> الخميس | H60: =IF(ROWS($A$2:A60)>COUNTIF($D$2:$D$1001,1),"",INDEX($E$2:$E$1001,SMALL(IF($D$2:$D$1001=1,ROW($D$2:$D$1001)-ROW($D$2)+1),ROWS($A$2:A60)))) -> 2017-11-23 | I60: =IF(H60="","",MAX($I$1:I59)+1) -> 59
C61: =IF(MAX(ROW(INDIRECT($B$2&":"&$B$2+ROWS($A$2:A61)-1)))>$B$3,"",MAX(ROW(INDIRECT($B$2&":"&$B$2+ROWS($A$2:A61)-1)))) -> 2017-10-30 | D61: 1 | E61: =IF(ISNA(MATCH(MAX(ROW(INDIRECT($B$2&":"&$B$2+ROWS($A$2:A61)-1))),INDIRECT("$J$1:$J$"&COUNT(K:K)),0)),$B$2+ROWS($A$2:A61)-1,$B$3+20) -> 2017-10-30 | G61: =IF($H61="","",VLOOKUP(TEXT(H61,"DDD"),{"sun","الأحد";"mon","الإثنين";"tue","الثلاثاء";"wed","الأربعاء";"thu","الخميس";"fri","الجمعة";"sat","السّبت"},2,0)) -> الجمعة | H61: =IF(ROWS($A$2:A61)>COUNTIF($D$2:$D$1001,1),"",INDEX($E$2:$E$1001,SMALL(IF($D$2:$D$1001=1,ROW($D$2:$D$1001)-ROW($D$2)+1),ROWS($A$2:A61)))) -> 2017-11-24 | I61: =IF(H61="","",MAX($I$1:I60)+1) -> 60
C62: =IF(MAX(ROW(INDIRECT($B$2&":"&$B$2+ROWS($A$2:A62)-1)))>$B$3,"",MAX(ROW(INDIRECT($B$2&":"&$B$2+ROWS($A$2:A62)-1)))) -> 2017-10-31 | D62: 1 | E62: =IF(ISNA(MATCH(MAX(ROW(INDIRECT($B$2&":"&$B$2+ROWS($A$2:A62)-1))),INDIRECT("$J$1:$J$"&COUNT(K:K)),0)),$B$2+ROWS($A$2:A62)-1,$B$3+20) -> 2017-10-31 | G62: =IF($H62="","",VLOOKUP(TEXT(H62,"DDD"),{"sun","الأحد";"mon","الإثنين";"tue","الثلاثاء";"wed","الأربعاء";"thu","الخميس";"fri","الجمعة";"sat","السّبت"},2,0)) -> الإثنين | H62: =IF(ROWS($A$2:A62)>COUNTIF($D$2:$D$1001,1),"",INDEX($E$2:$E$1001,SMALL(IF($D$2:$D$1001=1,ROW($D$2:$D$1001)-ROW($D$2)+1),ROWS($A$2:A62)))) -> 2017-11-27 | I62: =IF(H62="","",MAX($I$1:I61)+1) -> 61
C63: =IF(MAX(ROW(INDIRECT($B$2&":"&$B$2+ROWS($A$2:A63)-1)))>$B$3,"",MAX(ROW(INDIRECT($B$2&":"&$B$2+ROWS($A$2:A63)-1)))) -> 2017-11-01 | D63: 1 | E63: =IF(ISNA(MATCH(MAX(ROW(INDIRECT($B$2&":"&$B$2+ROWS($A$2:A63)-1))),INDIRECT("$J$1:$J$"&COUNT(K:K)),0)),$B$2+ROWS($A$2:A63)-1,$B$3+20) -> 2017-11-01 | G63: =IF($H63="","",VLOOKUP(TEXT(H63,"DDD"),{"sun","الأحد";"mon","الإثنين";"tue","الثلاثاء";"wed","الأربعاء";"thu","الخميس";"fri","الجمعة";"sat","السّبت"},2,0)) -> الثلاثاء | H63: =IF(ROWS($A$2:A63)>COUNTIF($D$2:$D$1001,1),"",INDEX($E$2:$E$1001,SMALL(IF($D$2:$D$1001=1,ROW($D$2:$D$1001)-ROW($D$2)+1),ROWS($A$2:A63)))) -> 2017-11-28 | I63: =IF(H63="","",MAX($I$1:I62)+1) -> 62
C64: =IF(MAX(ROW(INDIRECT($B$2&":"&$B$2+ROWS($A$2:A64)-1)))>$B$3,"",MAX(ROW(INDIRECT($B$2&":"&$B$2+ROWS($A$2:A64)-1)))) -> 2017-11-02 | D64: 1 | E64: =IF(ISNA(MATCH(MAX(ROW(INDIRECT($B$2&":"&$B$2+ROWS($A$2:A64)-1))),INDIRECT("$J$1:$J$"&COUNT(K:K)),0)),$B$2+ROWS($A$2:A64)-1,$B$3+20) -> 2017-11-02 | G64: =IF($H64="","",VLOOKUP(TEXT(H64,"DDD"),{"sun","الأحد";"mon","الإثنين";"tue","الثلاثاء";"wed","الأربعاء";"thu","الخميس";"fri","الجمعة";"sat","السّبت"},2,0)) -> الأربعاء | H64: =IF(ROWS($A$2:A64)>COUNTIF($D$2:$D$1001,1),"",INDEX($E$2:$E$1001,SMALL(IF($D$2:$D$1001=1,ROW($D$2:$D$1001)-ROW($D$2)+1),ROWS($A$2:A64)))) -> 2017-11-29 | I64: =IF(H64="","",MAX($I$1:I63)+1) -> 63
C65: =IF(MAX(ROW(INDIRECT($B$2&":"&$B$2+ROWS($A$2:A65)-1)))>$B$3,"",MAX(ROW(INDIRECT($B$2&":"&$B$2+ROWS($A$2:A65)-1)))) -> 2017-11-03 | D65: 1 | E65: =IF(ISNA(MATCH(MAX(ROW(INDIRECT($B$2&":"&$B$2+ROWS($A$2:A65)-1))),INDIRECT("$J$1:$J$"&COUNT(K:K)),0)),$B$2+ROWS($A$2:A65)-1,$B$3+20) -> 2017-11-03 | G65: =IF($H65="","",VLOOKUP(TEXT(H65,"DDD"),{"sun","الأحد";"mon","الإثنين";"tue","الثلاثاء";"wed","الأربعاء";"thu","الخميس";"fri","الجمعة";"sat","السّبت"},2,0)) -> الخميس | H65: =IF(ROWS($A$2:A65)>COUNTIF($D$2:$D$1001,1),"",INDEX($E$2:$E$1001,SMALL(IF($D$2:$D$1001=1,ROW($D$2:$D$1001)-ROW($D$2)+1),ROWS($A$2:A65)))) -> 2017-11-30 | I65: =IF(H65="","",MAX($I$1:I64)+1) -> 64
C66: =IF(MAX(ROW(INDIRECT($B$2&":"&$B$2+ROWS($A$2:A66)-1)))>$B$3,"",MAX(ROW(INDIRECT($B$2&":"&$B$2+ROWS($A$2:A66)-1)))) -> 2017-11-04 | D66: 0 | E66: =IF(ISNA(MATCH(MAX(ROW(INDIRECT($B$2&":"&$B$2+ROWS($A$2:A66)-1))),INDIRECT("$J$1:$J$"&COUNT(K:K)),0)),$B$2+ROWS($A$2:A66)-1,$B$3+20) -> 2017-11-04 | G66: =IF($H66="","",VLOOKUP(TEXT(H66,"DDD"),{"sun","الأحد";"mon","الإثنين";"tue","الثلاثاء";"wed","الأربعاء";"thu","الخميس";"fri","الجمعة";"sat","السّبت"},2,0)) -> الجمعة | H66: =IF(ROWS($A$2:A66)>COUNTIF($D$2:$D$1001,1),"",INDEX($E$2:$E$1001,SMALL(IF($D$2:$D$1001=1,ROW($D$2:$D$1001)-ROW($D$2)+1),ROWS($A$2:A66)))) -> 2017-12-01 | I66: =IF(H66="","",MAX($I$1:I65)+1) -> 65
C67: =IF(MAX(ROW(INDIRECT($B$2&":"&$B$2+ROWS($A$2:A67)-1)))>$B$3,"",MAX(ROW(INDIRECT($B$2&":"&$B$2+ROWS($A$2:A67)-1)))) -> 2017-11-05 | D67: =IF($C67="","",AND(COUNTIF(K:K,C67)=0,NOT(OR(TEXT(C67,"DDD")=$L$2,TEXT(C67,"DDD")=$L$3))*1=1)*1) -> 0 | E67: =IF(ISNA(MATCH(MAX(ROW(INDIRECT($B$2&":"&$B$2+ROWS($A$2:A67)-1))),INDIRECT("$J$1:$J$"&COUNT(K:K)),0)),$B$2+ROWS($A$2:A67)-1,$B$3+20) -> 2017-11-05 | G67: =IF($H67="","",VLOOKUP(TEXT(H67,"DDD"),{"sun","الأحد";"mon","الإثنين";"tue","الثلاثاء";"wed","الأربعاء";"thu","الخميس";"fri","الجمعة";"sat","السّبت"},2,0)) -> الإثنين | H67: =IF(ROWS($A$2:A67)>COUNTIF($D$2:$D$1001,1),"",INDEX($E$2:$E$1001,SMALL(IF($D$2:$D$1001=1,ROW($D$2:$D$1001)-ROW($D$2)+1),ROWS($A$2:A67)))) -> 2017-12-04 | I67: =IF(H67="","",MAX($I$1:I66)+1) -> 66
C68: =IF(MAX(ROW(INDIRECT($B$2&":"&$B$2+ROWS($A$2:A68)-1)))>$B$3,"",MAX(ROW(INDIRECT($B$2&":"&$B$2+ROWS($A$2:A68)-1)))) -> 2017-11-06 | D68: 1 | E68: =IF(ISNA(MATCH(MAX(ROW(INDIRECT($B$2&":"&$B$2+ROWS($A$2:A68)-1))),INDIRECT("$J$1:$J$"&COUNT(K:K)),0)),$B$2+ROWS($A$2:A68)-1,$B$3+20) -> 2017-11-06 | G68: =IF($H68="","",VLOOKUP(TEXT(H68,"DDD"),{"sun","الأحد";"mon","الإثنين";"tue","الثلاثاء";"wed","الأربعاء";"thu","الخميس";"fri","الجمعة";"sat","السّبت"},2,0)) -> الثلاثاء | H68: =IF(ROWS($A$2:A68)>COUNTIF($D$2:$D$1001,1),"",INDEX($E$2:$E$1001,SMALL(IF($D$2:$D$1001=1,ROW($D$2:$D$1001)-ROW($D$2)+1),ROWS($A$2:A68)))) -> 2017-12-05 | I68: =IF(H68="","",MAX($I$1:I67)+1) -> 67
C69: =IF(MAX(ROW(INDIRECT($B$2&":"&$B$2+ROWS($A$2:A69)-1)))>$B$3,"",MAX(ROW(INDIRECT($B$2&":"&$B$2+ROWS($A$2:A69)-1)))) -> 2017-11-07 | D69: 1 | E69: =IF(ISNA(MATCH(MAX(ROW(INDIRECT($B$2&":"&$B$2+ROWS($A$2:A69)-1))),INDIRECT("$J$1:$J$"&COUNT(K:K)),0)),$B$2+ROWS($A$2:A69)-1,$B$3+20) -> 2017-11-07 | G69: =IF($H69="","",VLOOKUP(TEXT(H69,"DDD"),{"sun","الأحد";"mon","الإثنين";"tue","الثلاثاء";"wed","الأربعاء";"thu","الخميس";"fri","الجمعة";"sat","السّبت"},2,0)) -> الأربعاء | H69: =IF(ROWS($A$2:A69)>COUNTIF($D$2:$D$1001,1),"",INDEX($E$2:$E$1001,SMALL(IF($D$2:$D$1001=1,ROW($D$2:$D$1001)-ROW($D$2)+1),ROWS($A$2:A69)))) -> 2017-12-06 | I69: =IF(H69="","",MAX($I$1:I68)+1) -> 68
C70: =IF(MAX(ROW(INDIRECT($B$2&":"&$B$2+ROWS($A$2:A70)-1)))>$B$3,"",MAX(ROW(INDIRECT($B$2&":"&$B$2+ROWS($A$2:A70)-1)))) -> 2017-11-08 | D70: 1 | E70: =IF(ISNA(MATCH(MAX(ROW(INDIRECT($B$2&":"&$B$2+ROWS($A$2:A70)-1))),INDIRECT("$J$1:$J$"&COUNT(K:K)),0)),$B$2+ROWS($A$2:A70)-1,$B$3+20) -> 2017-11-08 | G70: =IF($H70="","",VLOOKUP(TEXT(H70,"DDD"),{"sun","الأحد";"mon","الإثنين";"tue","الثلاثاء";"wed","الأربعاء";"thu","الخميس";"fri","الجمعة";"sat","السّبت"},2,0)) -> الخميس | H70: =IF(ROWS($A$2:A70)>COUNTIF($D$2:$D$1001,1),"",INDEX($E$2:$E$1001,SMALL(IF($D$2:$D$1001=1,ROW($D$2:$D$1001)-ROW($D$2)+1),ROWS($A$2:A70)))) -> 2017-12-07 | I70: =IF(H70="","",MAX($I$1:I69)+1) -> 69
C71: =IF(MAX(ROW(INDIRECT($B$2&":"&$B$2+ROWS($A$2:A71)-1)))>$B$3,"",MAX(ROW(INDIRECT($B$2&":"&$B$2+ROWS($A$2:A71)-1)))) -> 2017-11-09 | D71: 1 | E71: =IF(ISNA(MATCH(MAX(ROW(INDIRECT($B$2&":"&$B$2+ROWS($A$2:A71)-1))),INDIRECT("$J$1:$J$"&COUNT(K:K)),0)),$B$2+ROWS($A$2:A71)-1,$B$3+20) -> 2017-11-09 | G71: =IF($H71="","",VLOOKUP(TEXT(H71,"DDD"),{"sun","الأحد";"mon","الإثنين";"tue","الثلاثاء";"wed","الأربعاء";"thu","الخميس";"fri","الجمعة";"sat","السّبت"},2,0)) -> الجمعة | H71: =IF(ROWS($A$2:A71)>COUNTIF($D$2:$D$1001,1),"",INDEX($E$2:$E$1001,SMALL(IF($D$2:$D$1001=1,ROW($D$2:$D$1001)-ROW($D$2)+1),ROWS($A$2:A71)))) -> 2017-12-08 | I71: =IF(H71="","",MAX($I$1:I70)+1) -> 70
C72: =IF(MAX(ROW(INDIRECT($B$2&":"&$B$2+ROWS($A$2:A72)-1)))>$B$3,"",MAX(ROW(INDIRECT($B$2&":"&$B$2+ROWS($A$2:A72)-1)))) -> 2017-11-10 | D72: 1 | E72: =IF(ISNA(MATCH(MAX(ROW(INDIRECT($B$2&":"&$B$2+ROWS($A$2:A72)-1))),INDIRECT("$J$1:$J$"&COUNT(K:K)),0)),$B$2+ROWS($A$2:A72)-1,$B$3+20) -> 2017-11-10 | G72: =IF($H72="","",VLOOKUP(TEXT(H72,"DDD"),{"sun","الأحد";"mon","الإثنين";"tue","الثلاثاء";"wed","الأربعاء";"thu","الخميس";"fri","الجمعة";"sat","السّبت"},2,0)) -> الإثنين | H72: =IF(ROWS($A$2:A72)>COUNTIF($D$2:$D$1001,1),"",INDEX($E$2:$E$1001,SMALL(IF($D$2:$D$1001=1,ROW($D$2:$D$1001)-ROW($D$2)+1),ROWS($A$2:A72)))) -> 2017-12-11 | I72: =IF(H72="","",MAX($I$1:I71)+1) -> 71
C73: =IF(MAX(ROW(INDIRECT($B$2&":"&$B$2+ROWS($A$2:A73)-1)))>$B$3,"",MAX(ROW(INDIRECT($B$2&":"&$B$2+ROWS($A$2:A73)-1)))) -> 2017-11-11 | D73: 0 | E73: =IF(ISNA(MATCH(MAX(ROW(INDIRECT($B$2&":"&$B$2+ROWS($A$2:A73)-1))),INDIRECT("$J$1:$J$"&COUNT(K:K)),0)),$B$2+ROWS($A$2:A73)-1,$B$3+20) -> 2017-11-11 | G73: =IF($H73="","",VLOOKUP(TEXT(H73,"DDD"),{"sun","الأحد";"mon","الإثنين";"tue","الثلاثاء";"wed","الأربعاء";"thu","الخميس";"fri","الجمعة";"sat","السّبت"},2,0)) -> الثلاثاء | H73: =IF(ROWS($A$2:A73)>COUNTIF($D$2:$D$1001,1),"",INDEX($E$2:$E$1001,SMALL(IF($D$2:$D$1001=1,ROW($D$2:$D$1001)-ROW($D$2)+1),ROWS($A$2:A73)))) -> 2017-12-12 | I73: =IF(H73="","",MAX($I$1:I72)+1) -> 72
C74: =IF(MAX(ROW(INDIRECT($B$2&":"&$B$2+ROWS($A$2:A74)-1)))>$B$3,"",MAX(ROW(INDIRECT($B$2&":"&$B$2+ROWS($A$2:A74)-1)))) -> 2017-11-12 | D74: 0 | E74: =IF(ISNA(MATCH(MAX(ROW(INDIRECT($B$2&":"&$B$2+ROWS($A$2:A74)-1))),INDIRECT("$J$1:$J$"&COUNT(K:K)),0)),$B$2+ROWS($A$2:A74)-1,$B$3+20) -> 2017-11-12 | G74: =IF($H74="","",VLOOKUP(TEXT(H74,"DDD"),{"sun","الأحد";"mon","الإثنين";"tue","الثلاثاء";"wed","الأربعاء";"thu","الخميس";"fri","الجمعة";"sat","السّبت"},2,0)) -> الأربعاء | H74: =IF(ROWS($A$2:A74)>COUNTIF($D$2:$D$1001,1),"",INDEX($E$2:$E$1001,SMALL(IF($D$2:$D$1001=1,ROW($D$2:$D$1001)-ROW($D$2)+1),ROWS($A$2:A74)))) -> 2017-12-13 | I74: =IF(H74="","",MAX($I$1:I73)+1) -> 73
C75: =IF(MAX(ROW(INDIRECT($B$2&":"&$B$2+ROWS($A$2:A75)-1)))>$B$3,"",MAX(ROW(INDIRECT($B$2&":"&$B$2+ROWS($A$2:A75)-1)))) -> 2017-11-13 | D75: 1 | E75: =IF(ISNA(MATCH(MAX(ROW(INDIRECT($B$2&":"&$B$2+ROWS($A$2:A75)-1))),INDIRECT("$J$1:$J$"&COUNT(K:K)),0)),$B$2+ROWS($A$2:A75)-1,$B$3+20) -> 2017-11-13 | G75: =IF($H75="","",VLOOKUP(TEXT(H75,"DDD"),{"sun","الأحد";"mon","الإثنين";"tue","الثلاثاء";"wed","الأربعاء";"thu","الخميس";"fri","الجمعة";"sat","السّبت"},2,0)) -> الخميس | H75: =IF(ROWS($A$2:A75)>COUNTIF($D$2:$D$1001,1),"",INDEX($E$2:$E$1001,SMALL(IF($D$2:$D$1001=1,ROW($D$2:$D$1001)-ROW($D$2)+1),ROWS($A$2:A75)))) -> 2017-12-14 | I75: =IF(H75="","",MAX($I$1:I74)+1) -> 74
C76: =IF(MAX(ROW(INDIRECT($B$2&":"&$B$2+ROWS($A$2:A76)-1)))>$B$3,"",MAX(ROW(INDIRECT($B$2&":"&$B$2+ROWS($A$2:A76)-1)))) -> 2017-11-14 | D76: 1 | E76: =IF(ISNA(MATCH(MAX(ROW(INDIRECT($B$2&":"&$B$2+ROWS($A$2:A76)-1))),INDIRECT("$J$1:$J$"&COUNT(K:K)),0)),$B$2+ROWS($A$2:A76)-1,$B$3+20) -> 2017-11-14 | G76: =IF($H76="","",VLOOKUP(TEXT(H76,"DDD"),{"sun","الأحد";"mon","الإثنين";"tue","الثلاثاء";"wed","الأربعاء";"thu","الخميس";"fri","الجمعة";"sat","السّبت"},2,0)) -> الجمعة | H76: =IF(ROWS($A$2:A76)>COUNTIF($D$2:$D$1001,1),"",INDEX($E$2:$E$1001,SMALL(IF($D$2:$D$1001=1,ROW($D$2:$D$1001)-ROW($D$2)+1),ROWS($A$2:A76)))) -> 2017-12-15 | I76: =IF(H76="","",MAX($I$1:I75)+1) -> 75
C77: =IF(MAX(ROW(INDIRECT($B$2&":"&$B$2+ROWS($A$2:A77)-1)))>$B$3,"",MAX(ROW(INDIRECT($B$2&":"&$B$2+ROWS($A$2:A77)-1)))) -> 2017-11-15 | D77: 1 | E77: =IF(ISNA(MATCH(MAX(ROW(INDIRECT($B$2&":"&$B$2+ROWS($A$2:A77)-1))),INDIRECT("$J$1:$J$"&COUNT(K:K)),0)),$B$2+ROWS($A$2:A77)-1,$B$3+20) -> 2017-11-15 | G77: =IF($H77="","",VLOOKUP(TEXT(H77,"DDD"),{"sun","الأحد";"mon","الإثنين";"tue","الثلاثاء";"wed","الأربعاء";"thu","الخميس";"fri","الجمعة";"sat","السّبت"},2,0)) -> الإثنين | H77: =IF(ROWS($A$2:A77)>COUNTIF($D$2:$D$1001,1),"",INDEX($E$2:$E$1001,SMALL(IF($D$2:$D$1001=1,ROW($D$2:$D$1001)-ROW($D$2)+1),ROWS($A$2:A77)))) -> 2017-12-18 | I77: =IF(H77="","",MAX($I$1:I76)+1) -> 76
C78: =IF(MAX(ROW(INDIRECT($B$2&":"&$B$2+ROWS($A$2:A78)-1)))>$B$3,"",MAX(ROW(INDIRECT($B$2&":"&$B$2+ROWS($A$2:A78)-1)))) -> 2017-11-16 | D78: 1 | E78: =IF(ISNA(MATCH(MAX(ROW(INDIRECT($B$2&":"&$B$2+ROWS($A$2:A78)-1))),INDIRECT("$J$1:$J$"&COUNT(K:K)),0)),$B$2+ROWS($A$2:A78)-1,$B$3+20) -> 2017-11-16 | G78: =IF($H78="","",VLOOKUP(TEXT(H78,"DDD"),{"sun","الأحد";"mon","الإثنين";"tue","الثلاثاء";"wed","الأربعاء";"thu","الخميس";"fri","الجمعة";"sat","السّبت"},2,0)) -> الثلاثاء | H78: =IF(ROWS($A$2:A78)>COUNTIF($D$2:$D$1001,1),"",INDEX($E$2:$E$1001,SMALL(IF($D$2:$D$1001=1,ROW($D$2:$D$1001)-ROW($D$2)+1),ROWS($A$2:A78)))) -> 2017-12-19 | I78: =IF(H78="","",MAX($I$1:I77)+1) -> 77
C79: =IF(MAX(ROW(INDIRECT($B$2&":"&$B$2+ROWS($A$2:A79)-1)))>$B$3,"",MAX(ROW(INDIRECT($B$2&":"&$B$2+ROWS($A$2:A79)-1)))) -> 2017-11-17 | D79: 1 | E79: =IF(ISNA(MATCH(MAX(ROW(INDIRECT($B$2&":"&$B$2+ROWS($A$2:A79)-1))),INDIRECT("$J$1:$J$"&COUNT(K:K)),0)),$B$2+ROWS($A$2:A79)-1,$B$3+20) -> 2017-11-17 | G79: =IF($H79="","",VLOOKUP(TEXT(H79,"DDD"),{"sun","الأحد";"mon","الإثنين";"tue","الثلاثاء";"wed","الأربعاء";"thu","الخميس";"fri","الجمعة";"sat","السّبت"},2,0)) -> الأربعاء | H79: =IF(ROWS($A$2:A79)>COUNTIF($D$2:$D$1001,1),"",INDEX($E$2:$E$1001,SMALL(IF($D$2:$D$1001=1,ROW($D$2:$D$1001)-ROW($D$2)+1),ROWS($A$2:A79)))) -> 2017-12-20 | I79: =IF(H79="","",MAX($I$1:I78)+1) -> 78
C80: =IF(MAX(ROW(INDIRECT($B$2&":"&$B$2+ROWS($A$2:A80)-1)))>$B$3,"",MAX(ROW(INDIRECT($B$2&":"&$B$2+ROWS($A$2:A80)-1)))) -> 2017-11-18 | D80: 0 | E80: =IF(ISNA(MATCH(MAX(ROW(INDIRECT($B$2&":"&$B$2+ROWS($A$2:A80)-1))),INDIRECT("$J$1:$J$"&COUNT(K:K)),0)),$B$2+ROWS($A$2:A80)-1,$B$3+20) -> 2017-11-18 | G80: =IF($H80="","",VLOOKUP(TEXT(H80,"DDD"),{"sun","الأحد";"mon","الإثنين";"tue","الثلاثاء";"wed","الأربعاء";"thu","الخميس";"fri","الجمعة";"sat","السّبت"},2,0)) -> الخميس | H80: =IF(ROWS($A$2:A80)>COUNTIF($D$2:$D$1001,1),"",INDEX($E$2:$E$1001,SMALL(IF($D$2:$D$1001=1,ROW($D$2:$D$1001)-ROW($D$2)+1),ROWS($A$2:A80)))) -> 2017-12-21 | I80: =IF(H80="","",MAX($I$1:I79)+1) -> 79
C81: =IF(MAX(ROW(INDIRECT($B$2&":"&$B$2+ROWS($A$2:A81)-1)))>$B$3,"",MAX(ROW(INDIRECT($B$2&":"&$B$2+ROWS($A$2:A81)-1)))) -> 2017-11-19 | D81: 0 | E81: =IF(ISNA(MATCH(MAX(ROW(INDIRECT($B$2&":"&$B$2+ROWS($A$2:A81)-1))),INDIRECT("$J$1:$J$"&COUNT(K:K)),0)),$B$2+ROWS($A$2:A81)-1,$B$3+20) -> 2017-11-19 | G81: =IF($H81="","",VLOOKUP(TEXT(H81,"DDD"),{"sun","الأحد";"mon","الإثنين";"tue","الثلاثاء";"wed","الأربعاء";"thu","الخميس";"fri","الجمعة";"sat","السّبت"},2,0)) -> الجمعة | H81: =IF(ROWS($A$2:A81)>COUNTIF($D$2:$D$1001,1),"",INDEX($E$2:$E$1001,SMALL(IF($D$2:$D$1001=1,ROW($D$2:$D$1001)-ROW($D$2)+1),ROWS($A$2:A81)))) -> 2017-12-22 | I81: =IF(H81="","",MAX($I$1:I80)+1) -> 80
C82: =IF(MAX(ROW(INDIRECT($B$2&":"&$B$2+ROWS($A$2:A82)-1)))>$B$3,"",MAX(ROW(INDIRECT($B$2&":"&$B$2+ROWS($A$2:A82)-1)))) -> 2017-11-20 | D82: 1 | E82: =IF(ISNA(MATCH(MAX(ROW(INDIRECT($B$2&":"&$B$2+ROWS($A$2:A82)-1))),INDIRECT("$J$1:$J$"&COUNT(K:K)),0)),$B$2+ROWS($A$2:A82)-1,$B$3+20) -> 2017-11-20 | G82: =IF($H82="","",VLOOKUP(TEXT(H82,"DDD"),{"sun","الأحد";"mon","الإثنين";"tue","الثلاثاء";"wed","الأربعاء";"thu","الخميس";"fri","الجمعة";"sat","السّبت"},2,0)) -> الأربعاء | H82: =IF(ROWS($A$2:A82)>COUNTIF($D$2:$D$1001,1),"",INDEX($E$2:$E$1001,SMALL(IF($D$2:$D$1001=1,ROW($D$2:$D$1001)-ROW($D$2)+1),ROWS($A$2:A82)))) -> 2018-01-03 | I82: =IF(H82="","",MAX($I$1:I81)+1) -> 81
C83: =IF(MAX(ROW(INDIRECT($B$2&":"&$B$2+ROWS($A$2:A83)-1)))>$B$3,"",MAX(ROW(INDIRECT($B$2&":"&$B$2+ROWS($A$2:A83)-1)))) -> 2017-11-21 | D83: 1 | E83: =IF(ISNA(MATCH(MAX(ROW(INDIRECT($B$2&":"&$B$2+ROWS($A$2:A83)-1))),INDIRECT("$J$1:$J$"&COUNT(K:K)),0)),$B$2+ROWS($A$2:A83)-1,$B$3+20) -> 2017-11-21 | G83: =IF($H83="","",VLOOKUP(TEXT(H83,"DDD"),{"sun","الأحد";"mon","الإثنين";"tue","الثلاثاء";"wed","الأربعاء";"thu","الخميس";"fri","الجمعة";"sat","السّبت"},2,0)) -> الخميس | H83: =IF(ROWS($A$2:A83)>COUNTIF($D$2:$D$1001,1),"",INDEX($E$2:$E$1001,SMALL(IF($D$2:$D$1001=1,ROW($D$2:$D$1001)-ROW($D$2)+1),ROWS($A$2:A83)))) -> 2018-01-04 | I83: =IF(H83="","",MAX($I$1:I82)+1) -> 82
C84: =IF(MAX(ROW(INDIRECT($B$2&":"&$B$2+ROWS($A$2:A84)-1)))>$B$3,"",MAX(ROW(INDIRECT($B$2&":"&$B$2+ROWS($A$2:A84)-1)))) -> 2017-11-22 | D84: 1 | E84: =IF(ISNA(MATCH(MAX(ROW(INDIRECT($B$2&":"&$B$2+ROWS($A$2:A84)-1))),INDIRECT("$J$1:$J$"&COUNT(K:K)),0)),$B$2+ROWS($A$2:A84)-1,$B$3+20) -> 2017-11-22 | G84: =IF($H84="","",VLOOKUP(TEXT(H84,"DDD"),{"sun","الأحد";"mon","الإثنين";"tue","الثلاثاء";"wed","الأربعاء";"thu","الخميس";"fri","الجمعة";"sat","السّبت"},2,0)) -> الجمعة | H84: =IF(ROWS($A$2:A84)>COUNTIF($D$2:$D$1001,1),"",INDEX($E$2:$E$1001,SMALL(IF($D$2:$D$1001=1,ROW($D$2:$D$1001)-ROW($D$2)+1),ROWS($A$2:A84)))) -> 2018-01-05 | I84: =IF(H84="","",MAX($I$1:I83)+1) -> 83
C85: =IF(MAX(ROW(INDIRECT($B$2&":"&$B$2+ROWS($A$2:A85)-1)))>$B$3,"",MAX(ROW(INDIRECT($B$2&":"&$B$2+ROWS($A$2:A85)-1)))) -> 2017-11-23 | D85: 1 | E85: =IF(ISNA(MATCH(MAX(ROW(INDIRECT($B$2&":"&$B$2+ROWS($A$2:A85)-1))),INDIRECT("$J$1:$J$"&COUNT(K:K)),0)),$B$2+ROWS($A$2:A85)-1,$B$3+20) -> 2017-11-23 | G85: =IF($H85="","",VLOOKUP(TEXT(H85,"DDD"),{"sun","الأحد";"mon","الإثنين";"tue","الثلاثاء";"wed","الأربعاء";"thu","الخميس";"fri","الجمعة";"sat","السّبت"},2,0)) -> الإثنين | H85: =IF(ROWS($A$2:A85)>COUNTIF($D$2:$D$1001,1),"",INDEX($E$2:$E$1001,SMALL(IF($D$2:$D$1001=1,ROW($D$2:$D$1001)-ROW($D$2)+1),ROWS($A$2:A85)))) -> 2018-01-08 | I85: =IF(H85="","",MAX($I$1:I84)+1) -> 84
C86: =IF(MAX(ROW(INDIRECT($B$2&":"&$B$2+ROWS($A$2:A86)-1)))>$B$3,"",MAX(ROW(INDIRECT($B$2&":"&$B$2+ROWS($A$2:A86)-1)))) -> 2017-11-24 | D86: 1 | E86: =IF(ISNA(MATCH(MAX(ROW(INDIRECT($B$2&":"&$B$2+ROWS($A$2:A86)-1))),INDIRECT("$J$1:$J$"&COUNT(K:K)),0)),$B$2+ROWS($A$2:A86)-1,$B$3+20) -> 2017-11-24 | G86: =IF($H86="","",VLOOKUP(TEXT(H86,"DDD"),{"sun","الأحد";"mon","الإثنين";"tue","الثلاثاء";"wed","الأربعاء";"thu","الخميس";"fri","الجمعة";"sat","السّبت"},2,0)) -> الثلاثاء | H86: =IF(ROWS($A$2:A86)>COUNTIF($D$2:$D$1001,1),"",INDEX($E$2:$E$1001,SMALL(IF($D$2:$D$1001=1,ROW($D$2:$D$1001)-ROW($D$2)+1),ROWS($A$2:A86)))) -> 2018-01-09 | I86: =IF(H86="","",MAX($I$1:I85)+1) -> 85
C87: =IF(MAX(ROW(INDIRECT($B$2&":"&$B$2+ROWS($A$2:A87)-1)))>$B$3,"",MAX(ROW(INDIRECT($B$2&":"&$B$2+ROWS($A$2:A87)-1)))) -> 2017-11-25 | D87: 0 | E87: =IF(ISNA(MATCH(MAX(ROW(INDIRECT($B$2&":"&$B$2+ROWS($A$2:A87)-1))),INDIRECT("$J$1:$J$"&COUNT(K:K)),0)),$B$2+ROWS($A$2:A87)-1,$B$3+20) -> 2017-11-25 | G87: =IF($H87="","",VLOOKUP(TEXT(H87,"DDD"),{"sun","الأحد";"mon","الإثنين";"tue","الثلاثاء";"wed","الأربعاء";"thu","الخميس";"fri","الجمعة";"sat","السّبت"},2,0)) -> الأربعاء | H87: =IF(ROWS($A$2:A87)>COUNTIF($D$2:$D$1001,1),"",INDEX($E$2:$E$1001,SMALL(IF($D$2:$D$1001=1,ROW($D$2:$D$1001)-ROW($D$2)+1),ROWS($A$2:A87)))) -> 2018-01-10 | I87: =IF(H87="","",MAX($I$1:I86)+1) -> 86
C88: =IF(MAX(ROW(INDIRECT($B$2&":"&$B$2+ROWS($A$2:A88)-1)))>$B$3,"",MAX(ROW(INDIRECT($B$2&":"&$B$2+ROWS($A$2:A88)-1)))) -> 2017-11-26 | D88: 0 | E88: =IF(ISNA(MATCH(MAX(ROW(INDIRECT($B$2&":"&$B$2+ROWS($A$2:A88)-1))),INDIRECT("$J$1:$J$"&COUNT(K:K)),0)),$B$2+ROWS($A$2:A88)-1,$B$3+20) -> 2017-11-26 | G88: =IF($H88="","",VLOOKUP(TEXT(H88,"DDD"),{"sun","الأحد";"mon","الإثنين";"tue","الثلاثاء";"wed","الأربعاء";"thu","الخميس";"fri","الجمعة";"sat","السّبت"},2,0)) -> الخميس | H88: =IF(ROWS($A$2:A88)>COUNTIF($D$2:$D$1001,1),"",INDEX($E$2:$E$1001,SMALL(IF($D$2:$D$1001=1,ROW($D$2:$D$1001)-ROW($D$2)+1),ROWS($A$2:A88)))) -> 2018-01-11 | I88: =IF(H88="","",MAX($I$1:I87)+1) -> 87
C89: =IF(MAX(ROW(INDIRECT($B$2&":"&$B$2+ROWS($A$2:A89)-1)))>$B$3,"",MAX(ROW(INDIRECT($B$2&":"&$B$2+ROWS($A$2:A89)-1)))) -> 2017-11-27 | D89: 1 | E89: =IF(ISNA(MATCH(MAX(ROW(INDIRECT($B$2&":"&$B$2+ROWS($A$2:A89)-1))),INDIRECT("$J$1:$J$"&COUNT(K:K)),0)),$B$2+ROWS($A$2:A89)-1,$B$3+20) -> 2017-11-27 | G89: =IF($H89="","",VLOOKUP(TEXT(H89,"DDD"),{"sun","الأحد";"mon","الإثنين";"tue","الثلاثاء";"wed","الأربعاء";"thu","الخميس";"fri","الجمعة";"sat","السّبت"},2,0)) -> الجمعة | H89: =IF(ROWS($A$2:A89)>COUNTIF($D$2:$D$1001,1),"",INDEX($E$2:$E$1001,SMALL(IF($D$2:$D$1001=1,ROW($D$2:$D$1001)-ROW($D$2)+1),ROWS($A$2:A89)))) -> 2018-01-12 | I89: =IF(H89="","",MAX($I$1:I88)+1) -> 88
C90: =IF(MAX(ROW(INDIRECT($B$2&":"&$B$2+ROWS($A$2:A90)-1)))>$B$3,"",MAX(ROW(INDIRECT($B$2&":"&$B$2+ROWS($A$2:A90)-1)))) -> 2017-11-28 | D90: 1 | E90: =IF(ISNA(MATCH(MAX(ROW(INDIRECT($B$2&":"&$B$2+ROWS($A$2:A90)-1))),INDIRECT("$J$1:$J$"&COUNT(K:K)),0)),$B$2+ROWS($A$2:A90)-1,$B$3+20) -> 2017-11-28 | G90: =IF($H90="","",VLOOKUP(TEXT(H90,"DDD"),{"sun","الأحد";"mon","الإثنين";"tue","الثلاثاء";"wed","الأربعاء";"thu","الخميس";"fri","الجمعة";"sat","السّبت"},2,0)) -> الإثنين | H90: =IF(ROWS($A$2:A90)>COUNTIF($D$2:$D$1001,1),"",INDEX($E$2:$E$1001,SMALL(IF($D$2:$D$1001=1,ROW($D$2:$D$1001)-ROW($D$2)+1),ROWS($A$2:A90)))) -> 2018-01-15 | I90: =IF(H90="","",MAX($I$1:I89)+1) -> 89
C91: =IF(MAX(ROW(INDIRECT($B$2&":"&$B$2+ROWS($A$2:A91)-1)))>$B$3,"",MAX(ROW(INDIRECT($B$2&":"&$B$2+ROWS($A$2:A91)-1)))) -> 2017-11-29 | D91: 1 | E91: =IF(ISNA(MATCH(MAX(ROW(INDIRECT($B$2&":"&$B$2+ROWS($A$2:A91)-1))),INDIRECT("$J$1:$J$"&COUNT(K:K)),0)),$B$2+ROWS($A$2:A91)-1,$B$3+20) -> 2017-11-29 | G91: =IF($H91="","",VLOOKUP(TEXT(H91,"DDD"),{"sun","الأحد";"mon","الإثنين";"tue","الثلاثاء";"wed","الأربعاء";"thu","الخميس";"fri","الجمعة";"sat","السّبت"},2,0)) -> الثلاثاء | H91: =IF(ROWS($A$2:A91)>COUNTIF($D$2:$D$1001,1),"",INDEX($E$2:$E$1001,SMALL(IF($D$2:$D$1001=1,ROW($D$2:$D$1001)-ROW($D$2)+1),ROWS($A$2:A91)))) -> 2018-01-16 | I91: =IF(H91="","",MAX($I$1:I90)+1) -> 90
C92: =IF(MAX(ROW(INDIRECT($B$2&":"&$B$2+ROWS($A$2:A92)-1)))>$B$3,"",MAX(ROW(INDIRECT($B$2&":"&$B$2+ROWS($A$2:A92)-1)))) -> 2017-11-30 | D92: 1 | E92: =IF(ISNA(MATCH(MAX(ROW(INDIRECT($B$2&":"&$B$2+ROWS($A$2:A92)-1))),INDIRECT("$J$1:$J$"&COUNT(K:K)),0)),$B$2+ROWS($A$2:A92)-1,$B$3+20) -> 2017-11-30 | G92: =IF($H92="","",VLOOKUP(TEXT(H92,"DDD"),{"sun","الأحد";"mon","الإثنين";"tue","الثلاثاء";"wed","الأربعاء";"thu","الخميس";"fri","الجمعة";"sat","السّبت"},2,0)) -> الأربعاء | H92: =IF(ROWS($A$2:A92)>COUNTIF($D$2:$D$1001,1),"",INDEX($E$2:$E$1001,SMALL(IF($D$2:$D$1001=1,ROW($D$2:$D$1001)-ROW($D$2)+1),ROWS($A$2:A92)))) -> 2018-01-17 | I92: =IF(H92="","",MAX($I$1:I91)+1) -> 91
C93: =IF(MAX(ROW(INDIRECT($B$2&":"&$B$2+ROWS($A$2:A93)-1)))>$B$3,"",MAX(ROW(INDIRECT($B$2&":"&$B$2+ROWS($A$2:A93)-1)))) -> 2017-12-01 | D93: 1 | E93: =IF(ISNA(MATCH(MAX(ROW(INDIRECT($B$2&":"&$B$2+ROWS($A$2:A93)-1))),INDIRECT("$J$1:$J$"&COUNT(K:K)),0)),$B$2+ROWS($A$2:A93)-1,$B$3+20) -> 2017-12-01 | G93: =IF($H93="","",VLOOKUP(TEXT(H93,"DDD"),{"sun","الأحد";"mon","الإثنين";"tue","الثلاثاء";"wed","الأربعاء";"thu","الخميس";"fri","الجمعة";"sat","السّبت"},2,0)) -> الخميس | H93: =IF(ROWS($A$2:A93)>COUNTIF($D$2:$D$1001,1),"",INDEX($E$2:$E$1001,SMALL(IF($D$2:$D$1001=1,ROW($D$2:$D$1001)-ROW($D$2)+1),ROWS($A$2:A93)))) -> 2018-01-18 | I93: =IF(H93="","",MAX($I$1:I92)+1) -> 92
C94: =IF(MAX(ROW(INDIRECT($B$2&":"&$B$2+ROWS($A$2:A94)-1)))>$B$3,"",MAX(ROW(INDIRECT($B$2&":"&$B$2+ROWS($A$2:A94)-1)))) -> 2017-12-02 | D94: 0 | E94: =IF(ISNA(MATCH(MAX(ROW(INDIRECT($B$2&":"&$B$2+ROWS($A$2:A94)-1))),INDIRECT("$J$1:$J$"&COUNT(K:K)),0)),$B$2+ROWS($A$2:A94)-1,$B$3+20) -> 2017-12-02 | G94: =IF($H94="","",VLOOKUP(TEXT(H94,"DDD"),{"sun","الأحد";"mon","الإثنين";"tue","الثلاثاء";"wed","الأربعاء";"thu","الخميس";"fri","الجمعة";"sat","السّبت"},2,0)) -> الجمعة | H94: =IF(ROWS($A$2:A94)>COUNTIF($D$2:$D$1001,1),"",INDEX($E$2:$E$1001,SMALL(IF($D$2:$D$1001=1,ROW($D$2:$D$1001)-ROW($D$2)+1),ROWS($A$2:A94)))) -> 2018-01-19 | I94: =IF(H94="","",MAX($I$1:I93)+1) -> 93
C95: =IF(MAX(ROW(INDIRECT($B$2&":"&$B$2+ROWS($A$2:A95)-1)))>$B$3,"",MAX(ROW(INDIRECT($B$2&":"&$B$2+ROWS($A$2:A95)-1)))) -> 2017-12-03 | D95: 0 | E95: =IF(ISNA(MATCH(MAX(ROW(INDIRECT($B$2&":"&$B$2+ROWS($A$2:A95)-1))),INDIRECT("$J$1:$J$"&COUNT(K:K)),0)),$B$2+ROWS($A$2:A95)-1,$B$3+20) -> 2017-12-03 | G95: =IF($H95="","",VLOOKUP(TEXT(H95,"DDD"),{"sun","الأحد";"mon","الإثنين";"tue","الثلاثاء";"wed","الأربعاء";"thu","الخميس";"fri","الجمعة";"sat","السّبت"},2,0)) -> الإثنين | H95: =IF(ROWS($A$2:A95)>COUNTIF($D$2:$D$1001,1),"",INDEX($E$2:$E$1001,SMALL(IF($D$2:$D$1001=1,ROW($D$2:$D$1001)-ROW($D$2)+1),ROWS($A$2:A95)))) -> 2018-01-22 | I95: =IF(H95="","",MAX($I$1:I94)+1) -> 94
C96: =IF(MAX(ROW(INDIRECT($B$2&":"&$B$2+ROWS($A$2:A96)-1)))>$B$3,"",MAX(ROW(INDIRECT($B$2&":"&$B$2+ROWS($A$2:A96)-1)))) -> 2017-12-04 | D96: 1 | E96: =IF(ISNA(MATCH(MAX(ROW(INDIRECT($B$2&":"&$B$2+ROWS($A$2:A96)-1))),INDIRECT("$J$1:$J$"&COUNT(K:K)),0)),$B$2+ROWS($A$2:A96)-1,$B$3+20) -> 2017-12-04 | G96: =IF($H96="","",VLOOKUP(TEXT(H96,"DDD"),{"sun","الأحد";"mon","الإثنين";"tue","الثلاثاء";"wed","الأربعاء";"thu","الخميس";"fri","الجمعة";"sat","السّبت"},2,0)) -> الثلاثاء | H96: =IF(ROWS($A$2:A96)>COUNTIF($D$2:$D$1001,1),"",INDEX($E$2:$E$1001,SMALL(IF($D$2:$D$1001=1,ROW($D$2:$D$1001)-ROW($D$2)+1),ROWS($A$2:A96)))) -> 2018-01-23 | I96: =IF(H96="","",MAX($I$1:I95)+1) -> 95
C97: =IF(MAX(ROW(INDIRECT($B$2&":"&$B$2+ROWS($A$2:A97)-1)))>$B$3,"",MAX(ROW(INDIRECT($B$2&":"&$B$2+ROWS($A$2:A97)-1)))) -> 2017-12-05 | D97: 1 | E97: =IF(ISNA(MATCH(MAX(ROW(INDIRECT($B$2&":"&$B$2+ROWS($A$2:A97)-1))),INDIRECT("$J$1:$J$"&COUNT(K:K)),0)),$B$2+ROWS($A$2:A97)-1,$B$3+20) -> 2017-12-05 | G97: =IF($H97="","",VLOOKUP(TEXT(H97,"DDD"),{"sun","الأحد";"mon","الإثنين";"tue","الثلاثاء";"wed","الأربعاء";"thu","الخميس";"fri","الجمعة";"sat","السّبت"},2,0)) -> الأربعاء | H97: =IF(ROWS($A$2:A97)>COUNTIF($D$2:$D$1001,1),"",INDEX($E$2:$E$1001,SMALL(IF($D$2:$D$1001=1,ROW($D$2:$D$1001)-ROW($D$2)+1),ROWS($A$2:A97)))) -> 2018-01-24 | I97: =IF(H97="","",MAX($I$1:I96)+1) -> 96
C98: =IF(MAX(ROW(INDIRECT($B$2&":"&$B$2+ROWS($A$2:A98)-1)))>$B$3,"",MAX(ROW(INDIRECT($B$2&":"&$B$2+ROWS($A$2:A98)-1)))) -> 2017-12-06 | D98: 1 | E98: =IF(ISNA(MATCH(MAX(ROW(INDIRECT($B$2&":"&$B$2+ROWS($A$2:A98)-1))),INDIRECT("$J$1:$J$"&COUNT(K:K)),0)),$B$2+ROWS($A$2:A98)-1,$B$3+20) -> 2017-12-06 | G98: =IF($H98="","",VLOOKUP(TEXT(H98,"DDD"),{"sun","الأحد";"mon","الإثنين";"tue","الثلاثاء";"wed","الأربعاء";"thu","الخميس";"fri","الجمعة";"sat","السّبت"},2,0)) -> الخميس | H98: =IF(ROWS($A$2:A98)>COUNTIF($D$2:$D$1001,1),"",INDEX($E$2:$E$1001,SMALL(IF($D$2:$D$1001=1,ROW($D$2:$D$1001)-ROW($D$2)+1),ROWS($A$2:A98)))) -> 2018-01-25 | I98: =IF(H98="","",MAX($I$1:I97)+1) -> 97
C99: =IF(MAX(ROW(INDIRECT($B$2&":"&$B$2+ROWS($A$2:A99)-1)))>$B$3,"",MAX(ROW(INDIRECT($B$2&":"&$B$2+ROWS($A$2:A99)-1)))) -> 2017-12-07 | D99: 1 | E99: =IF(ISNA(MATCH(MAX(ROW(INDIRECT($B$2&":"&$B$2+ROWS($A$2:A99)-1))),INDIRECT("$J$1:$J$"&COUNT(K:K)),0)),$B$2+ROWS($A$2:A99)-1,$B$3+20) -> 2017-12-07 | G99: =IF($H99="","",VLOOKUP(TEXT(H99,"DDD"),{"sun","الأحد";"mon","الإثنين";"tue","الثلاثاء";"wed","الأربعاء";"thu","الخميس";"fri","الجمعة";"sat","السّبت"},2,0)) -> الجمعة | H99: =IF(ROWS($A$2:A99)>COUNTIF($D$2:$D$1001,1),"",INDEX($E$2:$E$1001,SMALL(IF($D$2:$D$1001=1,ROW($D$2:$D$1001)-ROW($D$2)+1),ROWS($A$2:A99)))) -> 2018-01-26 | I99: =IF(H99="","",MAX($I$1:I98)+1) -> 98
C100: =IF(MAX(ROW(INDIRECT($B$2&":"&$B$2+ROWS($A$2:A100)-1)))>$B$3,"",MAX(ROW(INDIRECT($B$2&":"&$B$2+ROWS($A$2:A100)-1)))) -> 2017-12-08 | D100: 1 | E100: =IF(ISNA(MATCH(MAX(ROW(INDIRECT($B$2&":"&$B$2+ROWS($A$2:A100)-1))),INDIRECT("$J$1:$J$"&COUNT(K:K)),0)),$B$2+ROWS($A$2:A100)-1,$B$3+20) -> 2017-12-08 | G100: =IF($H100="","",VLOOKUP(TEXT(H100,"DDD"),{"sun","الأحد";"mon","الإثنين";"tue","الثلاثاء";"wed","الأربعاء";"thu","الخميس";"fri","الجمعة";"sat","السّبت"},2,0)) -> الإثنين | H100: =IF(ROWS($A$2:A100)>COUNTIF($D$2:$D$1001,1),"",INDEX($E$2:$E$1001,SMALL(IF($D$2:$D$1001=1,ROW($D$2:$D$1001)-ROW($D$2)+1),ROWS($A$2:A100)))) -> 2018-01-29 | I100: =IF(H100="","",MAX($I$1:I99)+1) -> 99
C101: =IF(MAX(ROW(INDIRECT($B$2&":"&$B$2+ROWS($A$2:A101)-1)))>$B$3,"",MAX(ROW(INDIRECT($B$2&":"&$B$2+ROWS($A$2:A101)-1)))) -> 2017-12-09 | D101: 0 | E101: =IF(ISNA(MATCH(MAX(ROW(INDIRECT($B$2&":"&$B$2+ROWS($A$2:A101)-1))),INDIRECT("$J$1:$J$"&COUNT(K:K)),0)),$B$2+ROWS($A$2:A101)-1,$B$3+20) -> 2017-12-09 | G101: =IF($H101="","",VLOOKUP(TEXT(H101,"DDD"),{"sun","الأحد";"mon","الإثنين";"tue","الثلاثاء";"wed","الأربعاء";"thu","الخميس";"fri","الجمعة";"sat","السّبت"},2,0)) -> الثلاثاء | H101: =IF(ROWS($A$2:A101)>COUNTIF($D$2:$D$1001,1),"",INDEX($E$2:$E$1001,SMALL(IF($D$2:$D$1001=1,ROW($D$2:$D$1001)-ROW($D$2)+1),ROWS($A$2:A101)))) -> 2018-01-30 | I101: =IF(H101="","",MAX($I$1:I100)+1) -> 100
C102: =IF(MAX(ROW(INDIRECT($B$2&":"&$B$2+ROWS($A$2:A102)-1)))>$B$3,"",MAX(ROW(INDIRECT($B$2&":"&$B$2+ROWS($A$2:A102)-1)))) -> 2017-12-10 | D102: 0 | E102: =IF(ISNA(MATCH(MAX(ROW(INDIRECT($B$2&":"&$B$2+ROWS($A$2:A102)-1))),INDIRECT("$J$1:$J$"&COUNT(K:K)),0)),$B$2+ROWS($A$2:A102)-1,$B$3+20) -> 2017-12-10 | G102: =IF($H102="","",VLOOKUP(TEXT(H102,"DDD"),{"sun","الأحد";"mon","الإثنين";"tue","الثلاثاء";"wed","الأربعاء";"thu","الخميس";"fri","الجمعة";"sat","السّبت"},2,0)) -> الأربعاء | H102: =IF(ROWS($A$2:A102)>COUNTIF($D$2:$D$1001,1),"",INDEX($E$2:$E$1001,SMALL(IF($D$2:$D$1001=1,ROW($D$2:$D$1001)-ROW($D$2)+1),ROWS($A$2:A102)))) -> 2018-01-31 | I102: =IF(H102="","",MAX($I$1:I101)+1) -> 101
C103: =IF(MAX(ROW(INDIRECT($B$2&":"&$B$2+ROWS($A$2:A103)-1)))>$B$3,"",MAX(ROW(INDIRECT($B$2&":"&$B$2+ROWS($A$2:A103)-1)))) -> 2017-12-11 | D103: 1 | E103: =IF(ISNA(MATCH(MAX(ROW(INDIRECT($B$2&":"&$B$2+ROWS($A$2:A103)-1))),INDIRECT("$J$1:$J$"&COUNT(K:K)),0)),$B$2+ROWS($A$2:A103)-1,$B$3+20) -> 2017-12-11 | G103: =IF($H103="","",VLOOKUP(TEXT(H103,"DDD"),{"sun","الأحد";"mon","الإثنين";"tue","الثلاثاء";"wed","الأربعاء";"thu","الخميس";"fri","الجمعة";"sat","السّبت"},2,0)) -> الخميس | H103: =IF(ROWS($A$2:A103)>COUNTIF($D$2:$D$1001,1),"",INDEX($E$2:$E$1001,SMALL(IF($D$2:$D$1001=1,ROW($D$2:$D$1001)-ROW($D$2)+1),ROWS($A$2:A103)))) -> 2018-02-01 | I103: =IF(H103="","",MAX($I$1:I102)+1) -> 102
C104: =IF(MAX(ROW(INDIRECT($B$2&":"&$B$2+ROWS($A$2:A104)-1)))>$B$3,"",MAX(ROW(INDIRECT($B$2&":"&$B$2+ROWS($A$2:A104)-1)))) -> 2017-12-12 | D104: 1 | E104: =IF(ISNA(MATCH(MAX(ROW(INDIRECT($B$2&":"&$B$2+ROWS($A$2:A104)-1))),INDIRECT("$J$1:$J$"&COUNT(K:K)),0)),$B$2+ROWS($A$2:A104)-1,$B$3+20) -> 2017-12-12 | G104: =IF($H104="","",VLOOKUP(TEXT(H104,"DDD"),{"sun","الأحد";"mon","الإثنين";"tue","الثلاثاء";"wed","الأربعاء";"thu","الخميس";"fri","الجمعة";"sat","السّبت"},2,0)) -> الجمعة | H104: =IF(ROWS($A$2:A104)>COUNTIF($D$2:$D$1001,1),"",INDEX($E$2:$E$1001,SMALL(IF($D$2:$D$1001=1,ROW($D$2:$D$1001)-ROW($D$2)+1),ROWS($A$2:A104)))) -> 2018-02-02 | I104: =IF(H104="","",MAX($I$1:I103)+1) -> 103
C105: =IF(MAX(ROW(INDIRECT($B$2&":"&$B$2+ROWS($A$2:A105)-1)))>$B$3,"",MAX(ROW(INDIRECT($B$2&":"&$B$2+ROWS($A$2:A105)-1)))) -> 2017-12-13 | D105: 1 | E105: =IF(ISNA(MATCH(MAX(ROW(INDIRECT($B$2&":"&$B$2+ROWS($A$2:A105)-1))),INDIRECT("$J$1:$J$"&COUNT(K:K)),0)),$B$2+ROWS($A$2:A105)-1,$B$3+20) -> 2017-12-13 | G105: =IF($H105="","",VLOOKUP(TEXT(H105,"DDD"),{"sun","الأحد";"mon","الإثنين";"tue","الثلاثاء";"wed","الأربعاء";"thu","الخميس";"fri","الجمعة";"sat","السّبت"},2,0)) -> الإثنين | H105: =IF(ROWS($A$2:A105)>COUNTIF($D$2:$D$1001,1),"",INDEX($E$2:$E$1001,SMALL(IF($D$2:$D$1001=1,ROW($D$2:$D$1001)-ROW($D$2)+1),ROWS($A$2:A105)))) -> 2018-02-05 | I105: =IF(H105="","",MAX($I$1:I104)+1) -> 104
C106: =IF(MAX(ROW(INDIRECT($B$2&":"&$B$2+ROWS($A$2:A106)-1)))>$B$3,"",MAX(ROW(INDIRECT($B$2&":"&$B$2+ROWS($A$2:A106)-1)))) -> 2017-12-14 | D106: 1 | E106: =IF(ISNA(MATCH(MAX(ROW(INDIRECT($B$2&":"&$B$2+ROWS($A$2:A106)-1))),INDIRECT("$J$1:$J$"&COUNT(K:K)),0)),$B$2+ROWS($A$2:A106)-1,$B$3+20) -> 2017-12-14 | G106: =IF($H106="","",VLOOKUP(TEXT(H106,"DDD"),{"sun","الأحد";"mon","الإثنين";"tue","الثلاثاء";"wed","الأربعاء";"thu","الخميس";"fri","الجمعة";"sat","السّبت"},2,0)) -> الثلاثاء | H106: =IF(ROWS($A$2:A106)>COUNTIF($D$2:$D$1001,1),"",INDEX($E$2:$E$1001,SMALL(IF($D$2:$D$1001=1,ROW($D$2:$D$1001)-ROW($D$2)+1),ROWS($A$2:A106)))) -> 2018-02-06 | I106: =IF(H106="","",MAX($I$1:I105)+1) -> 105
C107: =IF(MAX(ROW(INDIRECT($B$2&":"&$B$2+ROWS($A$2:A107)-1)))>$B$3,"",MAX(ROW(INDIRECT($B$2&":"&$B$2+ROWS($A$2:A107)-1)))) -> 2017-12-15 | D107: 1 | E107: =IF(ISNA(MATCH(MAX(ROW(INDIRECT($B$2&":"&$B$2+ROWS($A$2:A107)-1))),INDIRECT("$J$1:$J$"&COUNT(K:K)),0)),$B$2+ROWS($A$2:A107)-1,$B$3+20) -> 2017-12-15 | G107: =IF($H107="","",VLOOKUP(TEXT(H107,"DDD"),{"sun","الأحد";"mon","الإثنين";"tue","الثلاثاء";"wed","الأربعاء";"thu","الخميس";"fri","الجمعة";"sat","السّبت"},2,0)) -> الأربعاء | H107: =IF(ROWS($A$2:A107)>COUNTIF($D$2:$D$1001,1),"",INDEX($E$2:$E$1001,SMALL(IF($D$2:$D$1001=1,ROW($D$2:$D$1001)-ROW($D$2)+1),ROWS($A$2:A107)))) -> 2018-02-07 | I107: =IF(H107="","",MAX($I$1:I106)+1) -> 106
C108: =IF(MAX(ROW(INDIRECT($B$2&":"&$B$2+ROWS($A$2:A108)-1)))>$B$3,"",MAX(ROW(INDIRECT($B$2&":"&$B$2+ROWS($A$2:A108)-1)))) -> 2017-12-16 | D108: 0 | E108: =IF(ISNA(MATCH(MAX(ROW(INDIRECT($B$2&":"&$B$2+ROWS($A$2:A108)-1))),INDIRECT("$J$1:$J$"&COUNT(K:K)),0)),$B$2+ROWS($A$2:A108)-1,$B$3+20) -> 2017-12-16 | G108: =IF($H108="","",VLOOKUP(TEXT(H108,"DDD"),{"sun","الأحد";"mon","الإثنين";"tue","الثلاثاء";"wed","الأربعاء";"thu","الخميس";"fri","الجمعة";"sat","السّبت"},2,0)) -> الخميس | H108: =IF(ROWS($A$2:A108)>COUNTIF($D$2:$D$1001,1),"",INDEX($E$2:$E$1001,SMALL(IF($D$2:$D$1001=1,ROW($D$2:$D$1001)-ROW($D$2)+1),ROWS($A$2:A108)))) -> 2018-02-08 | I108: =IF(H108="","",MAX($I$1:I107)+1) -> 107
C109: =IF(MAX(ROW(INDIRECT($B$2&":"&$B$2+ROWS($A$2:A109)-1)))>$B$3,"",MAX(ROW(INDIRECT($B$2&":"&$B$2+ROWS($A$2:A109)-1)))) -> 2017-12-17 | D109: 0 | E109: =IF(ISNA(MATCH(MAX(ROW(INDIRECT($B$2&":"&$B$2+ROWS($A$2:A109)-1))),INDIRECT("$J$1:$J$"&COUNT(K:K)),0)),$B$2+ROWS($A$2:A109)-1,$B$3+20) -> 2017-12-17 | G109: =IF($H109="","",VLOOKUP(TEXT(H109,"DDD"),{"sun","الأحد";"mon","الإثنين";"tue","الثلاثاء";"wed","الأربعاء";"thu","الخميس";"fri","الجمعة";"sat","السّبت"},2,0)) -> الإثنين | H109: =IF(ROWS($A$2:A109)>COUNTIF($D$2:$D$1001,1),"",INDEX($E$2:$E$1001,SMALL(IF($D$2:$D$1001=1,ROW($D$2:$D$1001)-ROW($D$2)+1),ROWS($A$2:A109)))) -> 2018-02-12 | I109: =IF(H109="","",MAX($I$1:I108)+1) -> 108
C110: =IF(MAX(ROW(INDIRECT($B$2&":"&$B$2+ROWS($A$2:A110)-1)))>$B$3,"",MAX(ROW(INDIRECT($B$2&":"&$B$2+ROWS($A$2:A110)-1)))) -> 2017-12-18 | D110: 1 | E110: =IF(ISNA(MATCH(MAX(ROW(INDIRECT($B$2&":"&$B$2+ROWS($A$2:A110)-1))),INDIRECT("$J$1:$J$"&COUNT(K:K)),0)),$B$2+ROWS($A$2:A110)-1,$B$3+20) -> 2017-12-18 | G110: =IF($H110="","",VLOOKUP(TEXT(H110,"DDD"),{"sun","الأحد";"mon","الإثنين";"tue","الثلاثاء";"wed","الأربعاء";"thu","الخميس";"fri","الجمعة";"sat","السّبت"},2,0)) -> الثلاثاء | H110: =IF(ROWS($A$2:A110)>COUNTIF($D$2:$D$1001,1),"",INDEX($E$2:$E$1001,SMALL(IF($D$2:$D$1001=1,ROW($D$2:$D$1001)-ROW($D$2)+1),ROWS($A$2:A110)))) -> 2018-02-13 | I110: =IF(H110="","",MAX($I$1:I109)+1) -> 109
C111: =IF(MAX(ROW(INDIRECT($B$2&":"&$B$2+ROWS($A$2:A111)-1)))>$B$3,"",MAX(ROW(INDIRECT($B$2&":"&$B$2+ROWS($A$2:A111)-1)))) -> 2017-12-19 | D111: 1 | E111: =IF(ISNA(MATCH(MAX(ROW(INDIRECT($B$2&":"&$B$2+ROWS($A$2:A111)-1))),INDIRECT("$J$1:$J$"&COUNT(K:K)),0)),$B$2+ROWS($A$2:A111)-1,$B$3+20) -> 2017-12-19 | G111: =IF($H111="","",VLOOKUP(TEXT(H111,"DDD"),{"sun","الأحد";"mon","الإثنين";"tue","الثلاثاء";"wed","الأربعاء";"thu","الخميس";"fri","الجمعة";"sat","السّبت"},2,0)) -> الأربعاء | H111: =IF(ROWS($A$2:A111)>COUNTIF($D$2:$D$1001,1),"",INDEX($E$2:$E$1001,SMALL(IF($D$2:$D$1001=1,ROW($D$2:$D$1001)-ROW($D$2)+1),ROWS($A$2:A111)))) -> 2018-02-14 | I111: =IF(H111="","",MAX($I$1:I110)+1) -> 110
C112: =IF(MAX(ROW(INDIRECT($B$2&":"&$B$2+ROWS($A$2:A112)-1)))>$B$3,"",MAX(ROW(INDIRECT($B$2&":"&$B$2+ROWS($A$2:A112)-1)))) -> 2017-12-20 | D112: 1 | E112: =IF(ISNA(MATCH(MAX(ROW(INDIRECT($B$2&":"&$B$2+ROWS($A$2:A112)-1))),INDIRECT("$J$1:$J$"&COUNT(K:K)),0)),$B$2+ROWS($A$2:A112)-1,$B$3+20) -> 2017-12-20 | G112: =IF($H112="","",VLOOKUP(TEXT(H112,"DDD"),{"sun","الأحد";"mon","الإثنين";"tue","الثلاثاء";"wed","الأربعاء";"thu","الخميس";"fri","الجمعة";"sat","السّبت"},2,0)) -> الخميس | H112: =IF(ROWS($A$2:A112)>COUNTIF($D$2:$D$1001,1),"",INDEX($E$2:$E$1001,SMALL(IF($D$2:$D$1001=1,ROW($D$2:$D$1001)-ROW($D$2)+1),ROWS($A$2:A112)))) -> 2018-02-15 | I112: =IF(H112="","",MAX($I$1:I111)+1) -> 111
C113: =IF(MAX(ROW(INDIRECT($B$2&":"&$B$2+ROWS($A$2:A113)-1)))>$B$3,"",MAX(ROW(INDIRECT($B$2&":"&$B$2+ROWS($A$2:A113)-1)))) -> 2017-12-21 | D113: 1 | E113: =IF(ISNA(MATCH(MAX(ROW(INDIRECT($B$2&":"&$B$2+ROWS($A$2:A113)-1))),INDIRECT("$J$1:$J$"&COUNT(K:K)),0)),$B$2+ROWS($A$2:A113)-1,$B$3+20) -> 2017-12-21 | G113: =IF($H113="","",VLOOKUP(TEXT(H113,"DDD"),{"sun","الأحد";"mon","الإثنين";"tue","الثلاثاء";"wed","الأربعاء";"thu","الخميس";"fri","الجمعة";"sat","السّبت"},2,0)) -> الجمعة | H113: =IF(ROWS($A$2:A113)>COUNTIF($D$2:$D$1001,1),"",INDEX($E$2:$E$1001,SMALL(IF($D$2:$D$1001=1,ROW($D$2:$D$1001)-ROW($D$2)+1),ROWS($A$2:A113)))) -> 2018-02-16 | I113: =IF(H113="","",MAX($I$1:I112)+1) -> 112
C114: =IF(MAX(ROW(INDIRECT($B$2&":"&$B$2+ROWS($A$2:A114)-1)))>$B$3,"",MAX(ROW(INDIRECT($B$2&":"&$B$2+ROWS($A$2:A114)-1)))) -> 2017-12-22 | D114: 1 | E114: =IF(ISNA(MATCH(MAX(ROW(INDIRECT($B$2&":"&$B$2+ROWS($A$2:A114)-1))),INDIRECT("$J$1:$J$"&COUNT(K:K)),0)),$B$2+ROWS($A$2:A114)-1,$B$3+20) -> 2017-12-22 | G114: =IF($H114="","",VLOOKUP(TEXT(H114,"DDD"),{"sun","الأحد";"mon","الإثنين";"tue","الثلاثاء";"wed","الأربعاء";"thu","الخميس";"fri","الجمعة";"sat","السّبت"},2,0)) -> الإثنين | H114: =IF(ROWS($A$2:A114)>COUNTIF($D$2:$D$1001,1),"",INDEX($E$2:$E$1001,SMALL(IF($D$2:$D$1001=1,ROW($D$2:$D$1001)-ROW($D$2)+1),ROWS($A$2:A114)))) -> 2018-02-19 | I114: =IF(H114="","",MAX($I$1:I113)+1) -> 113
C115: =IF(MAX(ROW(INDIRECT($B$2&":"&$B$2+ROWS($A$2:A115)-1)))>$B$3,"",MAX(ROW(INDIRECT($B$2&":"&$B$2+ROWS($A$2:A115)-1)))) -> 2017-12-23 | D115: 0 | E115: =IF(ISNA(MATCH(MAX(ROW(INDIRECT($B$2&":"&$B$2+ROWS($A$2:A115)-1))),INDIRECT("$J$1:$J$"&COUNT(K:K)),0)),$B$2+ROWS($A$2:A115)-1,$B$3+20) -> 2017-12-23 | G115: =IF($H115="","",VLOOKUP(TEXT(H115,"DDD"),{"sun","الأحد";"mon","الإثنين";"tue","الثلاثاء";"wed","الأربعاء";"thu","الخميس";"fri","الجمعة";"sat","السّبت"},2,0)) -> الثلاثاء | H115: =IF(ROWS($A$2:A115)>COUNTIF($D$2:$D$1001,1),"",INDEX($E$2:$E$1001,SMALL(IF($D$2:$D$1001=1,ROW($D$2:$D$1001)-ROW($D$2)+1),ROWS($A$2:A115)))) -> 2018-02-20 | I115: =IF(H115="","",MAX($I$1:I114)+1) -> 114
C116: =IF(MAX(ROW(INDIRECT($B$2&":"&$B$2+ROWS($A$2:A116)-1)))>$B$3,"",MAX(ROW(INDIRECT($B$2&":"&$B$2+ROWS($A$2:A116)-1)))) -> 2017-12-24 | D116: 0 | E116: =IF(ISNA(MATCH(MAX(ROW(INDIRECT($B$2&":"&$B$2+ROWS($A$2:A116)-1))),INDIRECT("$J$1:$J$"&COUNT(K:K)),0)),$B$2+ROWS($A$2:A116)-1,$B$3+20) -> 2017-12-24 | G116: =IF($H116="","",VLOOKUP(TEXT(H116,"DDD"),{"sun","الأحد";"mon","الإثنين";"tue","الثلاثاء";"wed","الأربعاء";"thu","الخميس";"fri","الجمعة";"sat","السّبت"},2,0)) -> الأربعاء | H116: =IF(ROWS($A$2:A116)>COUNTIF($D$2:$D$1001,1),"",INDEX($E$2:$E$1001,SMALL(IF($D$2:$D$1001=1,ROW($D$2:$D$1001)-ROW($D$2)+1),ROWS($A$2:A116)))) -> 2018-02-21 | I116: =IF(H116="","",MAX($I$1:I115)+1) -> 115
C117: =IF(MAX(ROW(INDIRECT($B$2&":"&$B$2+ROWS($A$2:A117)-1)))>$B$3,"",MAX(ROW(INDIRECT($B$2&":"&$B$2+ROWS($A$2:A117)-1)))) -> 2017-12-25 | D117: 0 | E117: =IF(ISNA(MATCH(MAX(ROW(INDIRECT($B$2&":"&$B$2+ROWS($A$2:A117)-1))),INDIRECT("$J$1:$J$"&COUNT(K:K)),0)),$B$2+ROWS($A$2:A117)-1,$B$3+20) -> 2017-12-25 | G117: =IF($H117="","",VLOOKUP(TEXT(H117,"DDD"),{"sun","الأحد";"mon","الإثنين";"tue","الثلاثاء";"wed","الأربعاء";"thu","الخميس";"fri","الجمعة";"sat","السّبت"},2,0)) -> الخميس | H117: =IF(ROWS($A$2:A117)>COUNTIF($D$2:$D$1001,1),"",INDEX($E$2:$E$1001,SMALL(IF($D$2:$D$1001=1,ROW($D$2:$D$1001)-ROW($D$2)+1),ROWS($A$2:A117)))) -> 2018-02-22 | I117: =IF(H117="","",MAX($I$1:I116)+1) -> 116
C118: =IF(MAX(ROW(INDIRECT($B$2&":"&$B$2+ROWS($A$2:A118)-1)))>$B$3,"",MAX(ROW(INDIRECT($B$2&":"&$B$2+ROWS($A$2:A118)-1)))) -> 2017-12-26 | D118: 0 | E118: =IF(ISNA(MATCH(MAX(ROW(INDIRECT($B$2&":"&$B$2+ROWS($A$2:A118)-1))),INDIRECT("$J$1:$J$"&COUNT(K:K)),0)),$B$2+ROWS($A$2:A118)-1,$B$3+20) -> 2017-12-26 | G118: =IF($H118="","",VLOOKUP(TEXT(H118,"DDD"),{"sun","الأحد";"mon","الإثنين";"tue","الثلاثاء";"wed","الأربعاء";"thu","الخميس";"fri","الجمعة";"sat","السّبت"},2,0)) -> الجمعة | H118: =IF(ROWS($A$2:A118)>COUNTIF($D$2:$D$1001,1),"",INDEX($E$2:$E$1001,SMALL(IF($D$2:$D$1001=1,ROW($D$2:$D$1001)-ROW($D$2)+1),ROWS($A$2:A118)))) -> 2018-02-23 | I118: =IF(H118="","",MAX($I$1:I117)+1) -> 117
C119: =IF(MAX(ROW(INDIRECT($B$2&":"&$B$2+ROWS($A$2:A119)-1)))>$B$3,"",MAX(ROW(INDIRECT($B$2&":"&$B$2+ROWS($A$2:A119)-1)))) -> 2017-12-27 | D119: 0 | E119: =IF(ISNA(MATCH(MAX(ROW(INDIRECT($B$2&":"&$B$2+ROWS($A$2:A119)-1))),INDIRECT("$J$1:$J$"&COUNT(K:K)),0)),$B$2+ROWS($A$2:A119)-1,$B$3+20) -> 2017-12-27 | G119: =IF($H119="","",VLOOKUP(TEXT(H119,"DDD"),{"sun","الأحد";"mon","الإثنين";"tue","الثلاثاء";"wed","الأربعاء";"thu","الخميس";"fri","الجمعة";"sat","السّبت"},2,0)) -> الإثنين | H119: =IF(ROWS($A$2:A119)>COUNTIF($D$2:$D$1001,1),"",INDEX($E$2:$E$1001,SMALL(IF($D$2:$D$1001=1,ROW($D$2:$D$1001)-ROW($D$2)+1),ROWS($A$2:A119)))) -> 2018-02-26 | I119: =IF(H119="","",MAX($I$1:I118)+1) -> 118
C120: =IF(MAX(ROW(INDIRECT($B$2&":"&$B$2+ROWS($A$2:A120)-1)))>$B$3,"",MAX(ROW(INDIRECT($B$2&":"&$B$2+ROWS($A$2:A120)-1)))) -> 2017-12-28 | D120: 0 | E120: =IF(ISNA(MATCH(MAX(ROW(INDIRECT($B$2&":"&$B$2+ROWS($A$2:A120)-1))),INDIRECT("$J$1:$J$"&COUNT(K:K)),0)),$B$2+ROWS($A$2:A120)-1,$B$3+20) -> 2017-12-28 | G120: =IF($H120="","",VLOOKUP(TEXT(H120,"DDD"),{"sun","الأحد";"mon","الإثنين";"tue","الثلاثاء";"wed","الأربعاء";"thu","الخميس";"fri","الجمعة";"sat","السّبت"},2,0)) -> الثلاثاء | H120: =IF(ROWS($A$2:A120)>COUNTIF($D$2:$D$1001,1),"",INDEX($E$2:$E$1001,SMALL(IF($D$2:$D$1001=1,ROW($D$2:$D$1001)-ROW($D$2)+1),ROWS($A$2:A120)))) -> 2018-02-27 | I120: =IF(H120="","",MAX($I$1:I119)+1) -> 119
C121: =IF(MAX(ROW(INDIRECT($B$2&":"&$B$2+ROWS($A$2:A121)-1)))>$B$3,"",MAX(ROW(INDIRECT($B$2&":"&$B$2+ROWS($A$2:A121)-1)))) -> 2017-12-29 | D121: 0 | E121: =IF(ISNA(MATCH(MAX(ROW(INDIRECT($B$2&":"&$B$2+ROWS($A$2:A121)-1))),INDIRECT("$J$1:$J$"&COUNT(K:K)),0)),$B$2+ROWS($A$2:A121)-1,$B$3+20) -> 2017-12-29 | G121: =IF($H121="","",VLOOKUP(TEXT(H121,"DDD"),{"sun","الأحد";"mon","الإثنين";"tue","الثلاثاء";"wed","الأربعاء";"thu","الخميس";"fri","الجمعة";"sat","السّبت"},2,0)) -> الأربعاء | H121: =IF(ROWS($A$2:A121)>COUNTIF($D$2:$D$1001,1),"",INDEX($E$2:$E$1001,SMALL(IF($D$2:$D$1001=1,ROW($D$2:$D$1001)-ROW($D$2)+1),ROWS($A$2:A121)))) -> 2018-02-28 | I121: =IF(H121="","",MAX($I$1:I120)+1) -> 120
C122: =IF(MAX(ROW(INDIRECT($B$2&":"&$B$2+ROWS($A$2:A122)-1)))>$B$3,"",MAX(ROW(INDIRECT($B$2&":"&$B$2+ROWS($A$2:A122)-1)))) -> 2017-12-30 | D122: 0 | E122: =IF(ISNA(MATCH(MAX(ROW(INDIRECT($B$2&":"&$B$2+ROWS($A$2:A122)-1))),INDIRECT("$J$1:$J$"&COUNT(K:K)),0)),$B$2+ROWS($A$2:A122)-1,$B$3+20) -> 2017-12-30 | G122: =IF($H122="","",VLOOKUP(TEXT(H122,"DDD"),{"sun","الأحد";"mon","الإثنين";"tue","الثلاثاء";"wed","الأربعاء";"thu","الخميس";"fri","الجمعة";"sat","السّبت"},2,0)) -> الخميس | H122: =IF(ROWS($A$2:A122)>COUNTIF($D$2:$D$1001,1),"",INDEX($E$2:$E$1001,SMALL(IF($D$2:$D$1001=1,ROW($D$2:$D$1001)-ROW($D$2)+1),ROWS($A$2:A122)))) -> 2018-03-01 | I122: =IF(H122="","",MAX($I$1:I121)+1) -> 121
C123: =IF(MAX(ROW(INDIRECT($B$2&":"&$B$2+ROWS($A$2:A123)-1)))>$B$3,"",MAX(ROW(INDIRECT($B$2&":"&$B$2+ROWS($A$2:A123)-1)))) -> 2017-12-31 | D123: 0 | E123: =IF(ISNA(MATCH(MAX(ROW(INDIRECT($B$2&":"&$B$2+ROWS($A$2:A123)-1))),INDIRECT("$J$1:$J$"&COUNT(K:K)),0)),$B$2+ROWS($A$2:A123)-1,$B$3+20) -> 2017-12-31 | G123: =IF($H123="","",VLOOKUP(TEXT(H123,"DDD"),{"sun","الأحد";"mon","الإثنين";"tue","الثلاثاء";"wed","الأربعاء";"thu","الخميس";"fri","الجمعة";"sat","السّبت"},2,0)) -> الجمعة | H123: =IF(ROWS($A$2:A123)>COUNTIF($D$2:$D$1001,1),"",INDEX($E$2:$E$1001,SMALL(IF($D$2:$D$1001=1,ROW($D$2:$D$1001)-ROW($D$2)+1),ROWS($A$2:A123)))) -> 2018-03-02 | I123: =IF(H123="","",MAX($I$1:I122)+1) -> 122
C124: =IF(MAX(ROW(INDIRECT($B$2&":"&$B$2+ROWS($A$2:A124)-1)))>$B$3,"",MAX(ROW(INDIRECT($B$2&":"&$B$2+ROWS($A$2:A124)-1)))) -> 2018-01-01 | D124: 0 | E124: =IF(ISNA(MATCH(MAX(ROW(INDIRECT($B$2&":"&$B$2+ROWS($A$2:A124)-1))),INDIRECT("$J$1:$J$"&COUNT(K:K)),0)),$B$2+ROWS($A$2:A124)-1,$B$3+20) -> 2018-01-01 | G124: =IF($H124="","",VLOOKUP(TEXT(H124,"DDD"),{"sun","الأحد";"mon","الإثنين";"tue","الثلاثاء";"wed","الأربعاء";"thu","الخميس";"fri","الجمعة";"sat","السّبت"},2,0)) -> الإثنين | H124: =IF(ROWS($A$2:A124)>COUNTIF($D$2:$D$1001,1),"",INDEX($E$2:$E$1001,SMALL(IF($D$2:$D$1001=1,ROW($D$2:$D$1001)-ROW($D$2)+1),ROWS($A$2:A124)))) -> 2018-03-05 | I124: =IF(H124="","",MAX($I$1:I123)+1) -> 123
C125: =IF(MAX(ROW(INDIRECT($B$2&":"&$B$2+ROWS($A$2:A125)-1)))>$B$3,"",MAX(ROW(INDIRECT($B$2&":"&$B$2+ROWS($A$2:A125)-1)))) -> 2018-01-02 | D125: 0 | E125: =IF(ISNA(MATCH(MAX(ROW(INDIRECT($B$2&":"&$B$2+ROWS($A$2:A125)-1))),INDIRECT("$J$1:$J$"&COUNT(K:K)),0)),$B$2+ROWS($A$2:A125)-1,$B$3+20) -> 2018-01-02 | G125: =IF($H125="","",VLOOKUP(TEXT(H125,"DDD"),{"sun","الأحد";"mon","الإثنين";"tue","الثلاثاء";"wed","الأربعاء";"thu","الخميس";"fri","الجمعة";"sat","السّبت"},2,0)) -> الثلاثاء | H125: =IF(ROWS($A$2:A125)>COUNTIF($D$2:$D$1001,1),"",INDEX($E$2:$E$1001,SMALL(IF($D$2:$D$1001=1,ROW($D$2:$D$1001)-ROW($D$2)+1),ROWS($A$2:A125)))) -> 2018-03-06 | I125: =IF(H125="","",MAX($I$1:I124)+1) -> 124
C126: =IF(MAX(ROW(INDIRECT($B$2&":"&$B$2+ROWS($A$2:A126)-1)))>$B$3,"",MAX(ROW(INDIRECT($B$2&":"&$B$2+ROWS($A$2:A126)-1)))) -> 2018-01-03 | D126: 1 | E126: =IF(ISNA(MATCH(MAX(ROW(INDIRECT($B$2&":"&$B$2+ROWS($A$2:A126)-1))),INDIRECT("$J$1:$J$"&COUNT(K:K)),0)),$B$2+ROWS($A$2:A126)-1,$B$3+20) -> 2018-01-03 | G126: =IF($H126="","",VLOOKUP(TEXT(H126,"DDD"),{"sun","الأحد";"mon","الإثنين";"tue","الثلاثاء";"wed","الأربعاء";"thu","الخميس";"fri","الجمعة";"sat","السّبت"},2,0)) -> الأربعاء | H126: =IF(ROWS($A$2:A126)>COUNTIF($D$2:$D$1001,1),"",INDEX($E$2:$E$1001,SMALL(IF($D$2:$D$1001=1,ROW($D$2:$D$1001)-ROW($D$2)+1),ROWS($A$2:A126)))) -> 2018-03-07 | I126: =IF(H126="","",MAX($I$1:I125)+1) -> 125
C127: =IF(MAX(ROW(INDIRECT($B$2&":"&$B$2+ROWS($A$2:A127)-1)))>$B$3,"",MAX(ROW(INDIRECT($B$2&":"&$B$2+ROWS($A$2:A127)-1)))) -> 2018-01-04 | D127: 1 | E127: =IF(ISNA(MATCH(MAX(ROW(INDIRECT($B$2&":"&$B$2+ROWS($A$2:A127)-1))),INDIRECT("$J$1:$J$"&COUNT(K:K)),0)),$B$2+ROWS($A$2:A127)-1,$B$3+20) -> 2018-01-04 | G127: =IF($H127="","",VLOOKUP(TEXT(H127,"DDD"),{"sun","الأحد";"mon","الإثنين";"tue","الثلاثاء";"wed","الأربعاء";"thu","الخميس";"fri","الجمعة";"sat","السّبت"},2,0)) -> الخميس | H127: =IF(ROWS($A$2:A127)>COUNTIF($D$2:$D$1001,1),"",INDEX($E$2:$E$1001,SMALL(IF($D$2:$D$1001=1,ROW($D$2:$D$1001)-ROW($D$2)+1),ROWS($A$2:A127)))) -> 2018-03-08 | I127: =IF(H127="","",MAX($I$1:I126)+1) -> 126
C128: =IF(MAX(ROW(INDIRECT($B$2&":"&$B$2+ROWS($A$2:A128)-1)))>$B$3,"",MAX(ROW(INDIRECT($B$2&":"&$B$2+ROWS($A$2:A128)-1)))) -> 2018-01-05 | D128: 1 | E128: =IF(ISNA(MATCH(MAX(ROW(INDIRECT($B$2&":"&$B$2+ROWS($A$2:A128)-1))),INDIRECT("$J$1:$J$"&COUNT(K:K)),0)),$B$2+ROWS($A$2:A128)-1,$B$3+20) -> 2018-01-05 | G128: =IF($H128="","",VLOOKUP(TEXT(H128,"DDD"),{"sun","الأحد";"mon","الإثنين";"tue","الثلاثاء";"wed","الأربعاء";"thu","الخميس";"fri","الجمعة";"sat","السّبت"},2,0)) -> الإثنين | H128: =IF(ROWS($A$2:A128)>COUNTIF($D$2:$D$1001,1),"",INDEX($E$2:$E$1001,SMALL(IF($D$2:$D$1001=1,ROW($D$2:$D$1001)-ROW($D$2)+1),ROWS($A$2:A128)))) -> 2018-03-12 | I128: =IF(H128="","",MAX($I$1:I127)+1) -> 127
C129: =IF(MAX(ROW(INDIRECT($B$2&":"&$B$2+ROWS($A$2:A129)-1)))>$B$3,"",MAX(ROW(INDIRECT($B$2&":"&$B$2+ROWS($A$2:A129)-1)))) -> 2018-01-06 | D129: 0 | E129: =IF(ISNA(MATCH(MAX(ROW(INDIRECT($B$2&":"&$B$2+ROWS($A$2:A129)-1))),INDIRECT("$J$1:$J$"&COUNT(K:K)),0)),$B$2+ROWS($A$2:A129)-1,$B$3+20) -> 2018-01-06 | G129: =IF($H129="","",VLOOKUP(TEXT(H129,"DDD"),{"sun","الأحد";"mon","الإثنين";"tue","الثلاثاء";"wed","الأربعاء";"thu","الخميس";"fri","الجمعة";"sat","السّبت"},2,0)) -> الثلاثاء | H129: =IF(ROWS($A$2:A129)>COUNTIF($D$2:$D$1001,1),"",INDEX($E$2:$E$1001,SMALL(IF($D$2:$D$1001=1,ROW($D$2:$D$1001)-ROW($D$2)+1),ROWS($A$2:A129)))) -> 2018-03-13 | I129: =IF(H129="","",MAX($I$1:I128)+1) -> 128
C130: =IF(MAX(ROW(INDIRECT($B$2&":"&$B$2+ROWS($A$2:A130)-1)))>$B$3,"",MAX(ROW(INDIRECT($B$2&":"&$B$2+ROWS($A$2:A130)-1)))) -> 2018-01-07 | D130: 0 | E130: =IF(ISNA(MATCH(MAX(ROW(INDIRECT($B$2&":"&$B$2+ROWS($A$2:A130)-1))),INDIRECT("$J$1:$J$"&COUNT(K:K)),0)),$B$2+ROWS($A$2:A130)-1,$B$3+20) -> 2018-01-07 | G130: =IF($H130="","",VLOOKUP(TEXT(H130,"DDD"),{"sun","الأحد";"mon","الإثنين";"tue","الثلاثاء";"wed","الأربعاء";"thu","الخميس";"fri","الجمعة";"sat","السّبت"},2,0)) -> الأربعاء | H130: =IF(ROWS($A$2:A130)>COUNTIF($D$2:$D$1001,1),"",INDEX($E$2:$E$1001,SMALL(IF($D$2:$D$1001=1,ROW($D$2:$D$1001)-ROW($D$2)+1),ROWS($A$2:A130)))) -> 2018-03-14 | I130: =IF(H130="","",MAX($I$1:I129)+1) -> 129
C131: =IF(MAX(ROW(INDIRECT($B$2&":"&$B$2+ROWS($A$2:A131)-1)))>$B$3,"",MAX(ROW(INDIRECT($B$2&":"&$B$2+ROWS($A$2:A131)-1)))) -> 2018-01-08 | D131: =IF($C131="","",AND(COUNTIF(K:K,C131)=0,NOT(OR(TEXT(C131,"DDD")=$L$2,TEXT(C131,"DDD")=$L$3))*1=1)*1) -> 1 | E131: =IF(ISNA(MATCH(MAX(ROW(INDIRECT($B$2&":"&$B$2+ROWS($A$2:A131)-1))),INDIRECT("$J$1:$J$"&COUNT(K:K)),0)),$B$2+ROWS($A$2:A131)-1,$B$3+20) -> 2018-01-08 | G131: =IF($H131="","",VLOOKUP(TEXT(H131,"DDD"),{"sun","الأحد";"mon","الإثنين";"tue","الثلاثاء";"wed","الأربعاء";"thu","الخميس";"fri","الجمعة";"sat","السّبت"},2,0)) -> الخميس | H131: =IF(ROWS($A$2:A131)>COUNTIF($D$2:$D$1001,1),"",INDEX($E$2:$E$1001,SMALL(IF($D$2:$D$1001=1,ROW($D$2:$D$1001)-ROW($D$2)+1),ROWS($A$2:A131)))) -> 2018-03-15 | I131: =IF(H131="","",MAX($I$1:I130)+1) -> 130
C132: =IF(MAX(ROW(INDIRECT($B$2&":"&$B$2+ROWS($A$2:A132)-1)))>$B$3,"",MAX(ROW(INDIRECT($B$2&":"&$B$2+ROWS($A$2:A132)-1)))) -> 2018-01-09 | D132: 1 | E132: =IF(ISNA(MATCH(MAX(ROW(INDIRECT($B$2&":"&$B$2+ROWS($A$2:A132)-1))),INDIRECT("$J$1:$J$"&COUNT(K:K)),0)),$B$2+ROWS($A$2:A132)-1,$B$3+20) -> 2018-01-09 | G132: =IF($H132="","",VLOOKUP(TEXT(H132,"DDD"),{"sun","الأحد";"mon","الإثنين";"tue","الثلاثاء";"wed","الأربعاء";"thu","الخميس";"fri","الجمعة";"sat","السّبت"},2,0)) -> الجمعة | H132: =IF(ROWS($A$2:A132)>COUNTIF($D$2:$D$1001,1),"",INDEX($E$2:$E$1001,SMALL(IF($D$2:$D$1001=1,ROW($D$2:$D$1001)-ROW($D$2)+1),ROWS($A$2:A132)))) -> 2018-03-16 | I132: =IF(H132="","",MAX($I$1:I131)+1) -> 131
C133: =IF(MAX(ROW(INDIRECT($B$2&":"&$B$2+ROWS($A$2:A133)-1)))>$B$3,"",MAX(ROW(INDIRECT($B$2&":"&$B$2+ROWS($A$2:A133)-1)))) -> 2018-01-10 | D133: 1 | E133: =IF(ISNA(MATCH(MAX(ROW(INDIRECT($B$2&":"&$B$2+ROWS($A$2:A133)-1))),INDIRECT("$J$1:$J$"&COUNT(K:K)),0)),$B$2+ROWS($A$2:A133)-1,$B$3+20) -> 2018-01-10 | G133: =IF($H133="","",VLOOKUP(TEXT(H133,"DDD"),{"sun","الأحد";"mon","الإثنين";"tue","الثلاثاء";"wed","الأربعاء";"thu","الخميس";"fri","الجمعة";"sat","السّبت"},2,0)) -> الإثنين | H133: =IF(ROWS($A$2:A133)>COUNTIF($D$2:$D$1001,1),"",INDEX($E$2:$E$1001,SMALL(IF($D$2:$D$1001=1,ROW($D$2:$D$1001)-ROW($D$2)+1),ROWS($A$2:A133)))) -> 2018-03-19 | I133: =IF(H133="","",MAX($I$1:I132)+1) -> 132
C134: =IF(MAX(ROW(INDIRECT($B$2&":"&$B$2+ROWS($A$2:A134)-1)))>$B$3,"",MAX(ROW(INDIRECT($B$2&":"&$B$2+ROWS($A$2:A134)-1)))) -> 2018-01-11 | D134: 1 | E134: =IF(ISNA(MATCH(MAX(ROW(INDIRECT($B$2&":"&$B$2+ROWS($A$2:A134)-1))),INDIRECT("$J$1:$J$"&COUNT(K:K)),0)),$B$2+ROWS($A$2:A134)-1,$B$3+20) -> 2018-01-11 | G134: =IF($H134="","",VLOOKUP(TEXT(H134,"DDD"),{"sun","الأحد";"mon","الإثنين";"tue","الثلاثاء";"wed","الأربعاء";"thu","الخميس";"fri","الجمعة";"sat","السّبت"},2,0)) -> الثلاثاء | H134: =IF(ROWS($A$2:A134)>COUNTIF($D$2:$D$1001,1),"",INDEX($E$2:$E$1001,SMALL(IF($D$2:$D$1001=1,ROW($D$2:$D$1001)-ROW($D$2)+1),ROWS($A$2:A134)))) -> 2018-03-20 | I134: =IF(H134="","",MAX($I$1:I133)+1) -> 133
C135: =IF(MAX(ROW(INDIRECT($B$2&":"&$B$2+ROWS($A$2:A135)-1)))>$B$3,"",MAX(ROW(INDIRECT($B$2&":"&$B$2+ROWS($A$2:A135)-1)))) -> 2018-01-12 | D135: 1 | E135: =IF(ISNA(MATCH(MAX(ROW(INDIRECT($B$2&":"&$B$2+ROWS($A$2:A135)-1))),INDIRECT("$J$1:$J$"&COUNT(K:K)),0)),$B$2+ROWS($A$2:A135)-1,$B$3+20) -> 2018-01-12 | G135: =IF($H135="","",VLOOKUP(TEXT(H135,"DDD"),{"sun","الأحد";"mon","الإثنين";"tue","الثلاثاء";"wed","الأربعاء";"thu","الخميس";"fri","الجمعة";"sat","السّبت"},2,0)) -> الأربعاء | H135: =IF(ROWS($A$2:A135)>COUNTIF($D$2:$D$1001,1),"",INDEX($E$2:$E$1001,SMALL(IF($D$2:$D$1001=1,ROW($D$2:$D$1001)-ROW($D$2)+1),ROWS($A$2:A135)))) -> 2018-03-21 | I135: =IF(H135="","",MAX($I$1:I134)+1) -> 134
C136: =IF(MAX(ROW(INDIRECT($B$2&":"&$B$2+ROWS($A$2:A136)-1)))>$B$3,"",MAX(ROW(INDIRECT($B$2&":"&$B$2+ROWS($A$2:A136)-1)))) -> 2018-01-13 | D136: 0 | E136: =IF(ISNA(MATCH(MAX(ROW(INDIRECT($B$2&":"&$B$2+ROWS($A$2:A136)-1))),INDIRECT("$J$1:$J$"&COUNT(K:K)),0)),$B$2+ROWS($A$2:A136)-1,$B$3+20) -> 2018-01-13 | G136: =IF($H136="","",VLOOKUP(TEXT(H136,"DDD"),{"sun","الأحد";"mon","الإثنين";"tue","الثلاثاء";"wed","الأربعاء";"thu","الخميس";"fri","الجمعة";"sat","السّبت"},2,0)) -> الخميس | H136: =IF(ROWS($A$2:A136)>COUNTIF($D$2:$D$1001,1),"",INDEX($E$2:$E$1001,SMALL(IF($D$2:$D$1001=1,ROW($D$2:$D$1001)-ROW($D$2)+1),ROWS($A$2:A136)))) -> 2018-03-22 | I136: =IF(H136="","",MAX($I$1:I135)+1) -> 135
C137: =IF(MAX(ROW(INDIRECT($B$2&":"&$B$2+ROWS($A$2:A137)-1)))>$B$3,"",MAX(ROW(INDIRECT($B$2&":"&$B$2+ROWS($A$2:A137)-1)))) -> 2018-01-14 | D137: 0 | E137: =IF(ISNA(MATCH(MAX(ROW(INDIRECT($B$2&":"&$B$2+ROWS($A$2:A137)-1))),INDIRECT("$J$1:$J$"&COUNT(K:K)),0)),$B$2+ROWS($A$2:A137)-1,$B$3+20) -> 2018-01-14 | G137: =IF($H137="","",VLOOKUP(TEXT(H137,"DDD"),{"sun","الأحد";"mon","الإثنين";"tue","الثلاثاء";"wed","الأربعاء";"thu","الخميس";"fri","الجمعة";"sat","السّبت"},2,0)) -> الجمعة | H137: =IF(ROWS($A$2:A137)>COUNTIF($D$2:$D$1001,1),"",INDEX($E$2:$E$1001,SMALL(IF($D$2:$D$1001=1,ROW($D$2:$D$1001)-ROW($D$2)+1),ROWS($A$2:A137)))) -> 2018-03-23 | I137: =IF(H137="","",MAX($I$1:I136)+1) -> 136
C138: =IF(MAX(ROW(INDIRECT($B$2&":"&$B$2+ROWS($A$2:A138)-1)))>$B$3,"",MAX(ROW(INDIRECT($B$2&":"&$B$2+ROWS($A$2:A138)-1)))) -> 2018-01-15 | D138: 1 | E138: =IF(ISNA(MATCH(MAX(ROW(INDIRECT($B$2&":"&$B$2+ROWS($A$2:A138)-1))),INDIRECT("$J$1:$J$"&COUNT(K:K)),0)),$B$2+ROWS($A$2:A138)-1,$B$3+20) -> 2018-01-15 | G138: =IF($H138="","",VLOOKUP(TEXT(H138,"DDD"),{"sun","الأحد";"mon","الإثنين";"tue","الثلاثاء";"wed","الأربعاء";"thu","الخميس";"fri","الجمعة";"sat","السّبت"},2,0)) -> الإثنين | H138: =IF(ROWS($A$2:A138)>COUNTIF($D$2:$D$1001,1),"",INDEX($E$2:$E$1001,SMALL(IF($D$2:$D$1001=1,ROW($D$2:$D$1001)-ROW($D$2)+1),ROWS($A$2:A138)))) -> 2018-03-26 | I138: =IF(H138="","",MAX($I$1:I137)+1) -> 137
C139: =IF(MAX(ROW(INDIRECT($B$2&":"&$B$2+ROWS($A$2:A139)-1)))>$B$3,"",MAX(ROW(INDIRECT($B$2&":"&$B$2+ROWS($A$2:A139)-1)))) -> 2018-01-16 | D139: 1 | E139: =IF(ISNA(MATCH(MAX(ROW(INDIRECT($B$2&":"&$B$2+ROWS($A$2:A139)-1))),INDIRECT("$J$1:$J$"&COUNT(K:K)),0)),$B$2+ROWS($A$2:A139)-1,$B$3+20) -> 2018-01-16 | G139: =IF($H139="","",VLOOKUP(TEXT(H139,"DDD"),{"sun","الأحد";"mon","الإثنين";"tue","الثلاثاء";"wed","الأربعاء";"thu","الخميس";"fri","الجمعة";"sat","السّبت"},2,0)) -> الثلاثاء | H139: =IF(ROWS($A$2:A139)>COUNTIF($D$2:$D$1001,1),"",INDEX($E$2:$E$1001,SMALL(IF($D$2:$D$1001=1,ROW($D$2:$D$1001)-ROW($D$2)+1),ROWS($A$2:A139)))) -> 2018-03-27 | I139: =IF(H139="","",MAX($I$1:I138)+1) -> 138
C140: =IF(MAX(ROW(INDIRECT($B$2&":"&$B$2+ROWS($A$2:A140)-1)))>$B$3,"",MAX(ROW(INDIRECT($B$2&":"&$B$2+ROWS($A$2:A140)-1)))) -> 2018-01-17 | D140: 1 | E140: =IF(ISNA(MATCH(MAX(ROW(INDIRECT($B$2&":"&$B$2+ROWS($A$2:A140)-1))),INDIRECT("$J$1:$J$"&COUNT(K:K)),0)),$B$2+ROWS($A$2:A140)-1,$B$3+20) -> 2018-01-17 | G140: =IF($H140="","",VLOOKUP(TEXT(H140,"DDD"),{"sun","الأحد";"mon","الإثنين";"tue","الثلاثاء";"wed","الأربعاء";"thu","الخميس";"fri","الجمعة";"sat","السّبت"},2,0)) -> الأربعاء | H140: =IF(ROWS($A$2:A140)>COUNTIF($D$2:$D$1001,1),"",INDEX($E$2:$E$1001,SMALL(IF($D$2:$D$1001=1,ROW($D$2:$D$1001)-ROW($D$2)+1),ROWS($A$2:A140)))) -> 2018-03-28 | I140: =IF(H140="","",MAX($I$1:I139)+1) -> 139
C141: =IF(MAX(ROW(INDIRECT($B$2&":"&$B$2+ROWS($A$2:A141)-1)))>$B$3,"",MAX(ROW(INDIRECT($B$2&":"&$B$2+ROWS($A$2:A141)-1)))) -> 2018-01-18 | D141: 1 | E141: =IF(ISNA(MATCH(MAX(ROW(INDIRECT($B$2&":"&$B$2+ROWS($A$2:A141)-1))),INDIRECT("$J$1:$J$"&COUNT(K:K)),0)),$B$2+ROWS($A$2:A141)-1,$B$3+20) -> 2018-01-18 | G141: =IF($H141="","",VLOOKUP(TEXT(H141,"DDD"),{"sun","الأحد";"mon","الإثنين";"tue","الثلاثاء";"wed","الأربعاء";"thu","الخميس";"fri","الجمعة";"sat","السّبت"},2,0)) -> الأربعاء | H141: =IF(ROWS($A$2:A141)>COUNTIF($D$2:$D$1001,1),"",INDEX($E$2:$E$1001,SMALL(IF($D$2:$D$1001=1,ROW($D$2:$D$1001)-ROW($D$2)+1),ROWS($A$2:A141)))) -> 2018-04-11 | I141: =IF(H141="","",MAX($I$1:I140)+1) -> 140
C142: =IF(MAX(ROW(INDIRECT($B$2&":"&$B$2+ROWS($A$2:A142)-1)))>$B$3,"",MAX(ROW(INDIRECT($B$2&":"&$B$2+ROWS($A$2:A142)-1)))) -> 2018-01-19 | D142: 1 | E142: =IF(ISNA(MATCH(MAX(ROW(INDIRECT($B$2&":"&$B$2+ROWS($A$2:A142)-1))),INDIRECT("$J$1:$J$"&COUNT(K:K)),0)),$B$2+ROWS($A$2:A142)-1,$B$3+20) -> 2018-01-19 | G142: =IF($H142="","",VLOOKUP(TEXT(H142,"DDD"),{"sun","الأحد";"mon","الإثنين";"tue","الثلاثاء";"wed","الأربعاء";"thu","الخميس";"fri","الجمعة";"sat","السّبت"},2,0)) -> الخميس | H142: =IF(ROWS($A$2:A142)>COUNTIF($D$2:$D$1001,1),"",INDEX($E$2:$E$1001,SMALL(IF($D$2:$D$1001=1,ROW($D$2:$D$1001)-ROW($D$2)+1),ROWS($A$2:A142)))) -> 2018-04-12 | I142: =IF(H142="","",MAX($I$1:I141)+1) -> 141
C143: =IF(MAX(ROW(INDIRECT($B$2&":"&$B$2+ROWS($A$2:A143)-1)))>$B$3,"",MAX(ROW(INDIRECT($B$2&":"&$B$2+ROWS($A$2:A143)-1)))) -> 2018-01-20 | D143: 0 | E143: =IF(ISNA(MATCH(MAX(ROW(INDIRECT($B$2&":"&$B$2+ROWS($A$2:A143)-1))),INDIRECT("$J$1:$J$"&COUNT(K:K)),0)),$B$2+ROWS($A$2:A143)-1,$B$3+20) -> 2018-01-20 | G143: =IF($H143="","",VLOOKUP(TEXT(H143,"DDD"),{"sun","الأحد";"mon","الإثنين";"tue","الثلاثاء";"wed","الأربعاء";"thu","الخميس";"fri","الجمعة";"sat","السّبت"},2,0)) -> الجمعة | H143: =IF(ROWS($A$2:A143)>COUNTIF($D$2:$D$1001,1),"",INDEX($E$2:$E$1001,SMALL(IF($D$2:$D$1001=1,ROW($D$2:$D$1001)-ROW($D$2)+1),ROWS($A$2:A143)))) -> 2018-04-13 | I143: =IF(H143="","",MAX($I$1:I142)+1) -> 142
C144: =IF(MAX(ROW(INDIRECT($B$2&":"&$B$2+ROWS($A$2:A144)-1)))>$B$3,"",MAX(ROW(INDIRECT($B$2&":"&$B$2+ROWS($A$2:A144)-1)))) -> 2018-01-21 | D144: 0 | E144: =IF(ISNA(MATCH(MAX(ROW(INDIRECT($B$2&":"&$B$2+ROWS($A$2:A144)-1))),INDIRECT("$J$1:$J$"&COUNT(K:K)),0)),$B$2+ROWS($A$2:A144)-1,$B$3+20) -> 2018-01-21 | G144: =IF($H144="","",VLOOKUP(TEXT(H144,"DDD"),{"sun","الأحد";"mon","الإثنين";"tue","الثلاثاء";"wed","الأربعاء";"thu","الخميس";"fri","الجمعة";"sat","السّبت"},2,0)) -> الإثنين | H144: =IF(ROWS($A$2:A144)>COUNTIF($D$2:$D$1001,1),"",INDEX($E$2:$E$1001,SMALL(IF($D$2:$D$1001=1,ROW($D$2:$D$1001)-ROW($D$2)+1),ROWS($A$2:A144)))) -> 2018-04-16 | I144: =IF(H144="","",MAX($I$1:I143)+1) -> 143
C145: =IF(MAX(ROW(INDIRECT($B$2&":"&$B$2+ROWS($A$2:A145)-1)))>$B$3,"",MAX(ROW(INDIRECT($B$2&":"&$B$2+ROWS($A$2:A145)-1)))) -> 2018-01-22 | D145: 1 | E145: =IF(ISNA(MATCH(MAX(ROW(INDIRECT($B$2&":"&$B$2+ROWS($A$2:A145)-1))),INDIRECT("$J$1:$J$"&COUNT(K:K)),0)),$B$2+ROWS($A$2:A145)-1,$B$3+20) -> 2018-01-22 | G145: =IF($H145="","",VLOOKUP(TEXT(H145,"DDD"),{"sun","الأحد";"mon","الإثنين";"tue","الثلاثاء";"wed","الأربعاء";"thu","الخميس";"fri","الجمعة";"sat","السّبت"},2,0)) -> الثلاثاء | H145: =IF(ROWS($A$2:A145)>COUNTIF($D$2:$D$1001,1),"",INDEX($E$2:$E$1001,SMALL(IF($D$2:$D$1001=1,ROW($D$2:$D$1001)-ROW($D$2)+1),ROWS($A$2:A145)))) -> 2018-04-17 | I145: =IF(H145="","",MAX($I$1:I144)+1) -> 144
C146: =IF(MAX(ROW(INDIRECT($B$2&":"&$B$2+ROWS($A$2:A146)-1)))>$B$3,"",MAX(ROW(INDIRECT($B$2&":"&$B$2+ROWS($A$2:A146)-1)))) -> 2018-01-23 | D146: 1 | E146: =IF(ISNA(MATCH(MAX(ROW(INDIRECT($B$2&":"&$B$2+ROWS($A$2:A146)-1))),INDIRECT("$J$1:$J$"&COUNT(K:K)),0)),$B$2+ROWS($A$2:A146)-1,$B$3+20) -> 2018-01-23 | G146: =IF($H146="","",VLOOKUP(TEXT(H146,"DDD"),{"sun","الأحد";"mon","الإثنين";"tue","الثلاثاء";"wed","الأربعاء";"thu","الخميس";"fri","الجمعة";"sat","السّبت"},2,0)) -> الأربعاء | H146: =IF(ROWS($A$2:A146)>COUNTIF($D$2:$D$1001,1),"",INDEX($E$2:$E$1001,SMALL(IF($D$2:$D$1001=1,ROW($D$2:$D$1001)-ROW($D$2)+1),ROWS($A$2:A146)))) -> 2018-04-18 | I146: =IF(H146="","",MAX($I$1:I145)+1) -> 145
C147: =IF(MAX(ROW(INDIRECT($B$2&":"&$B$2+ROWS($A$2:A147)-1)))>$B$3,"",MAX(ROW(INDIRECT($B$2&":"&$B$2+ROWS($A$2:A147)-1)))) -> 2018-01-24 | D147: 1 | E147: =IF(ISNA(MATCH(MAX(ROW(INDIRECT($B$2&":"&$B$2+ROWS($A$2:A147)-1))),INDIRECT("$J$1:$J$"&COUNT(K:K)),0)),$B$2+ROWS($A$2:A147)-1,$B$3+20) -> 2018-01-24 | G147: =IF($H147="","",VLOOKUP(TEXT(H147,"DDD"),{"sun","الأحد";"mon","الإثنين";"tue","الثلاثاء";"wed","الأربعاء";"thu","الخميس";"fri","الجمعة";"sat","السّبت"},2,0)) -> الخميس | H147: =IF(ROWS($A$2:A147)>COUNTIF($D$2:$D$1001,1),"",INDEX($E$2:$E$1001,SMALL(IF($D$2:$D$1001=1,ROW($D$2:$D$1001)-ROW($D$2)+1),ROWS($A$2:A147)))) -> 2018-04-19 | I147: =IF(H147="","",MAX($I$1:I146)+1) -> 146
C148: =IF(MAX(ROW(INDIRECT($B$2&":"&$B$2+ROWS($A$2:A148)-1)))>$B$3,"",MAX(ROW(INDIRECT($B$2&":"&$B$2+ROWS($A$2:A148)-1)))) -> 2018-01-25 | D148: 1 | E148: =IF(ISNA(MATCH(MAX(ROW(INDIRECT($B$2&":"&$B$2+ROWS($A$2:A148)-1))),INDIRECT("$J$1:$J$"&COUNT(K:K)),0)),$B$2+ROWS($A$2:A148)-1,$B$3+20) -> 2018-01-25 | G148: =IF($H148="","",VLOOKUP(TEXT(H148,"DDD"),{"sun","الأحد";"mon","الإثنين";"tue","الثلاثاء";"wed","الأربعاء";"thu","الخميس";"fri","الجمعة";"sat","السّبت"},2,0)) -> الجمعة | H148: =IF(ROWS($A$2:A148)>COUNTIF($D$2:$D$1001,1),"",INDEX($E$2:$E$1001,SMALL(IF($D$2:$D$1001=1,ROW($D$2:$D$1001)-ROW($D$2)+1),ROWS($A$2:A148)))) -> 2018-04-20 | I148: =IF(H148="","",MAX($I$1:I147)+1) -> 147
C149: =IF(MAX(ROW(INDIRECT($B$2&":"&$B$2+ROWS($A$2:A149)-1)))>$B$3,"",MAX(ROW(INDIRECT($B$2&":"&$B$2+ROWS($A$2:A149)-1)))) -> 2018-01-26 | D149: 1 | E149: =IF(ISNA(MATCH(MAX(ROW(INDIRECT($B$2&":"&$B$2+ROWS($A$2:A149)-1))),INDIRECT("$J$1:$J$"&COUNT(K:K)),0)),$B$2+ROWS($A$2:A149)-1,$B$3+20) -> 2018-01-26 | G149: =IF($H149="","",VLOOKUP(TEXT(H149,"DDD"),{"sun","الأحد";"mon","الإثنين";"tue","الثلاثاء";"wed","الأربعاء";"thu","الخميس";"fri","الجمعة";"sat","السّبت"},2,0)) -> الإثنين | H149: =IF(ROWS($A$2:A149)>COUNTIF($D$2:$D$1001,1),"",INDEX($E$2:$E$1001,SMALL(IF($D$2:$D$1001=1,ROW($D$2:$D$1001)-ROW($D$2)+1),ROWS($A$2:A149)))) -> 2018-04-23 | I149: =IF(H149="","",MAX($I$1:I148)+1) -> 148
C150: =IF(MAX(ROW(INDIRECT($B$2&":"&$B$2+ROWS($A$2:A150)-1)))>$B$3,"",MAX(ROW(INDIRECT($B$2&":"&$B$2+ROWS($A$2:A150)-1)))) -> 2018-01-27 | D150: 0 | E150: =IF(ISNA(MATCH(MAX(ROW(INDIRECT($B$2&":"&$B$2+ROWS($A$2:A150)-1))),INDIRECT("$J$1:$J$"&COUNT(K:K)),0)),$B$2+ROWS($A$2:A150)-1,$B$3+20) -> 2018-01-27 | G150: =IF($H150="","",VLOOKUP(TEXT(H150,"DDD"),{"sun","الأحد";"mon","الإثنين";"tue","الثلاثاء";"wed","الأربعاء";"thu","الخميس";"fri","الجمعة";"sat","السّبت"},2,0)) -> الثلاثاء | H150: =IF(ROWS($A$2:A150)>COUNTIF($D$2:$D$1001,1),"",INDEX($E$2:$E$1001,SMALL(IF($D$2:$D$1001=1,ROW($D$2:$D$1001)-ROW($D$2)+1),ROWS($A$2:A150)))) -> 2018-04-24 | I150: =IF(H150="","",MAX($I$1:I149)+1) -> 149
C151: =IF(MAX(ROW(INDIRECT($B$2&":"&$B$2+ROWS($A$2:A151)-1)))>$B$3,"",MAX(ROW(INDIRECT($B$2&":"&$B$2+ROWS($A$2:A151)-1)))) -> 2018-01-28 | D151: 0 | E151: =IF(ISNA(MATCH(MAX(ROW(INDIRECT($B$2&":"&$B$2+ROWS($A$2:A151)-1))),INDIRECT("$J$1:$J$"&COUNT(K:K)),0)),$B$2+ROWS($A$2:A151)-1,$B$3+20) -> 2018-01-28 | G151: =IF($H151="","",VLOOKUP(TEXT(H151,"DDD"),{"sun","الأحد";"mon","الإثنين";"tue","الثلاثاء";"wed","الأربعاء";"thu","الخميس";"fri","الجمعة";"sat","السّبت"},2,0)) -> الأربعاء | H151: =IF(ROWS($A$2:A151)>COUNTIF($D$2:$D$1001,1),"",INDEX($E$2:$E$1001,SMALL(IF($D$2:$D$1001=1,ROW($D$2:$D$1001)-ROW($D$2)+1),ROWS($A$2:A151)))) -> 2018-04-25 | I151: =IF(H151="","",MAX($I$1:I150)+1) -> 150
C152: =IF(MAX(ROW(INDIRECT($B$2&":"&$B$2+ROWS($A$2:A152)-1)))>$B$3,"",MAX(ROW(INDIRECT($B$2&":"&$B$2+ROWS($A$2:A152)-1)))) -> 2018-01-29 | D152: 1 | E152: =IF(ISNA(MATCH(MAX(ROW(INDIRECT($B$2&":"&$B$2+ROWS($A$2:A152)-1))),INDIRECT("$J$1:$J$"&COUNT(K:K)),0)),$B$2+ROWS($A$2:A152)-1,$B$3+20) -> 2018-01-29 | G152: =IF($H152="","",VLOOKUP(TEXT(H152,"DDD"),{"sun","الأحد";"mon","الإثنين";"tue","الثلاثاء";"wed","الأربعاء";"thu","الخميس";"fri","الجمعة";"sat","السّبت"},2,0)) -> الخميس | H152: =IF(ROWS($A$2:A152)>COUNTIF($D$2:$D$1001,1),"",INDEX($E$2:$E$1001,SMALL(IF($D$2:$D$1001=1,ROW($D$2:$D$1001)-ROW($D$2)+1),ROWS($A$2:A152)))) -> 2018-04-26 | I152: =IF(H152="","",MAX($I$1:I151)+1) -> 151
C153: =IF(MAX(ROW(INDIRECT($B$2&":"&$B$2+ROWS($A$2:A153)-1)))>$B$3,"",MAX(ROW(INDIRECT($B$2&":"&$B$2+ROWS($A$2:A153)-1)))) -> 2018-01-30 | D153: 1 | E153: =IF(ISNA(MATCH(MAX(ROW(INDIRECT($B$2&":"&$B$2+ROWS($A$2:A153)-1))),INDIRECT("$J$1:$J$"&COUNT(K:K)),0)),$B$2+ROWS($A$2:A153)-1,$B$3+20) -> 2018-01-30 | G153: =IF($H153="","",VLOOKUP(TEXT(H153,"DDD"),{"sun","الأحد";"mon","الإثنين";"tue","الثلاثاء";"wed","الأربعاء";"thu","الخميس";"fri","الجمعة";"sat","السّبت"},2,0)) -> الجمعة | H153: =IF(ROWS($A$2:A153)>COUNTIF($D$2:$D$1001,1),"",INDEX($E$2:$E$1001,SMALL(IF($D$2:$D$1001=1,ROW($D$2:$D$1001)-ROW($D$2)+1),ROWS($A$2:A153)))) -> 2018-04-27 | I153: =IF(H153="","",MAX($I$1:I152)+1) -> 152
C154: =IF(MAX(ROW(INDIRECT($B$2&":"&$B$2+ROWS($A$2:A154)-1)))>$B$3,"",MAX(ROW(INDIRECT($B$2&":"&$B$2+ROWS($A$2:A154)-1)))) -> 2018-01-31 | D154: 1 | E154: =IF(ISNA(MATCH(MAX(ROW(INDIRECT($B$2&":"&$B$2+ROWS($A$2:A154)-1))),INDIRECT("$J$1:$J$"&COUNT(K:K)),0)),$B$2+ROWS($A$2:A154)-1,$B$3+20) -> 2018-01-31 | G154: =IF($H154="","",VLOOKUP(TEXT(H154,"DDD"),{"sun","الأحد";"mon","الإثنين";"tue","الثلاثاء";"wed","الأربعاء";"thu","الخميس";"fri","الجمعة";"sat","السّبت"},2,0)) -> الإثنين | H154: =IF(ROWS($A$2:A154)>COUNTIF($D$2:$D$1001,1),"",INDEX($E$2:$E$1001,SMALL(IF($D$2:$D$1001=1,ROW($D$2:$D$1001)-ROW($D$2)+1),ROWS($A$2:A154)))) -> 2018-04-30 | I154: =IF(H154="","",MAX($I$1:I153)+1) -> 153
C155: =IF(MAX(ROW(INDIRECT($B$2&":"&$B$2+ROWS($A$2:A155)-1)))>$B$3,"",MAX(ROW(INDIRECT($B$2&":"&$B$2+ROWS($A$2:A155)-1)))) -> 2018-02-01 | D155: 1 | E155: =IF(ISNA(MATCH(MAX(ROW(INDIRECT($B$2&":"&$B$2+ROWS($A$2:A155)-1))),INDIRECT("$J$1:$J$"&COUNT(K:K)),0)),$B$2+ROWS($A$2:A155)-1,$B$3+20) -> 2018-02-01 | G155: =IF($H155="","",VLOOKUP(TEXT(H155,"DDD"),{"sun","الأحد";"mon","الإثنين";"tue","الثلاثاء";"wed","الأربعاء";"thu","الخميس";"fri","الجمعة";"sat","السّبت"},2,0)) -> الثلاثاء | H155: =IF(ROWS($A$2:A155)>COUNTIF($D$2:$D$1001,1),"",INDEX($E$2:$E$1001,SMALL(IF($D$2:$D$1001=1,ROW($D$2:$D$1001)-ROW($D$2)+1),ROWS($A$2:A155)))) -> 2018-05-01 | I155: =IF(H155="","",MAX($I$1:I154)+1) -> 154
C156: =IF(MAX(ROW(INDIRECT($B$2&":"&$B$2+ROWS($A$2:A156)-1)))>$B$3,"",MAX(ROW(INDIRECT($B$2&":"&$B$2+ROWS($A$2:A156)-1)))) -> 2018-02-02 | D156: 1 | E156: =IF(ISNA(MATCH(MAX(ROW(INDIRECT($B$2&":"&$B$2+ROWS($A$2:A156)-1))),INDIRECT("$J$1:$J$"&COUNT(K:K)),0)),$B$2+ROWS($A$2:A156)-1,$B$3+20) -> 2018-02-02 | G156: =IF($H156="","",VLOOKUP(TEXT(H156,"DDD"),{"sun","الأحد";"mon","الإثنين";"tue","الثلاثاء";"wed","الأربعاء";"thu","الخميس";"fri","الجمعة";"sat","السّبت"},2,0)) -> الأربعاء | H156: =IF(ROWS($A$2:A156)>COUNTIF($D$2:$D$1001,1),"",INDEX($E$2:$E$1001,SMALL(IF($D$2:$D$1001=1,ROW($D$2:$D$1001)-ROW($D$2)+1),ROWS($A$2:A156)))) -> 2018-05-02 | I156: =IF(H156="","",MAX($I$1:I155)+1) -> 155
C157: =IF(MAX(ROW(INDIRECT($B$2&":"&$B$2+ROWS($A$2:A157)-1)))>$B$3,"",MAX(ROW(INDIRECT($B$2&":"&$B$2+ROWS($A$2:A157)-1)))) -> 2018-02-03 | D157: 0 | E157: =IF(ISNA(MATCH(MAX(ROW(INDIRECT($B$2&":"&$B$2+ROWS($A$2:A157)-1))),INDIRECT("$J$1:$J$"&COUNT(K:K)),0)),$B$2+ROWS($A$2:A157)-1,$B$3+20) -> 2018-02-03 | G157: =IF($H157="","",VLOOKUP(TEXT(H157,"DDD"),{"sun","الأحد";"mon","الإثنين";"tue","الثلاثاء";"wed","الأربعاء";"thu","الخميس";"fri","الجمعة";"sat","السّبت"},2,0)) -> الخميس | H157: =IF(ROWS($A$2:A157)>COUNTIF($D$2:$D$1001,1),"",INDEX($E$2:$E$1001,SMALL(IF($D$2:$D$1001=1,ROW($D$2:$D$1001)-ROW($D$2)+1),ROWS($A$2:A157)))) -> 2018-05-03 | I157: =IF(H157="","",MAX($I$1:I156)+1) -> 156
C158: =IF(MAX(ROW(INDIRECT($B$2&":"&$B$2+ROWS($A$2:A158)-1)))>$B$3,"",MAX(ROW(INDIRECT($B$2&":"&$B$2+ROWS($A$2:A158)-1)))) -> 2018-02-04 | D158: 0 | E158: =IF(ISNA(MATCH(MAX(ROW(INDIRECT($B$2&":"&$B$2+ROWS($A$2:A158)-1))),INDIRECT("$J$1:$J$"&COUNT(K:K)),0)),$B$2+ROWS($A$2:A158)-1,$B$3+20) -> 2018-02-04 | G158: =IF($H158="","",VLOOKUP(TEXT(H158,"DDD"),{"sun","الأحد";"mon","الإثنين";"tue","الثلاثاء";"wed","الأربعاء";"thu","الخميس";"fri","الجمعة";"sat","السّبت"},2,0)) -> الجمعة | H158: =IF(ROWS($A$2:A158)>COUNTIF($D$2:$D$1001,1),"",INDEX($E$2:$E$1001,SMALL(IF($D$2:$D$1001=1,ROW($D$2:$D$1001)-ROW($D$2)+1),ROWS($A$2:A158)))) -> 2018-05-04 | I158: =IF(H158="","",MAX($I$1:I157)+1) -> 157
C159: =IF(MAX(ROW(INDIRECT($B$2&":"&$B$2+ROWS($A$2:A159)-1)))>$B$3,"",MAX(ROW(INDIRECT($B$2&":"&$B$2+ROWS($A$2:A159)-1)))) -> 2018-02-05 | D159: 1 | E159: =IF(ISNA(MATCH(MAX(ROW(INDIRECT($B$2&":"&$B$2+ROWS($A$2:A159)-1))),INDIRECT("$J$1:$J$"&COUNT(K:K)),0)),$B$2+ROWS($A$2:A159)-1,$B$3+20) -> 2018-02-05 | G159: =IF($H159="","",VLOOKUP(TEXT(H159,"DDD"),{"sun","الأحد";"mon","الإثنين";"tue","الثلاثاء";"wed","الأربعاء";"thu","الخميس";"fri","الجمعة";"sat","السّبت"},2,0)) -> الإثنين | H159: =IF(ROWS($A$2:A159)>COUNTIF($D$2:$D$1001,1),"",INDEX($E$2:$E$1001,SMALL(IF($D$2:$D$1001=1,ROW($D$2:$D$1001)-ROW($D$2)+1),ROWS($A$2:A159)))) -> 2018-05-07 | I159: =IF(H159="","",MAX($I$1:I158)+1) -> 158
C160: =IF(MAX(ROW(INDIRECT($B$2&":"&$B$2+ROWS($A$2:A160)-1)))>$B$3,"",MAX(ROW(INDIRECT($B$2&":"&$B$2+ROWS($A$2:A160)-1)))) -> 2018-02-06 | D160: 1 | E160: =IF(ISNA(MATCH(MAX(ROW(INDIRECT($B$2&":"&$B$2+ROWS($A$2:A160)-1))),INDIRECT("$J$1:$J$"&COUNT(K:K)),0)),$B$2+ROWS($A$2:A160)-1,$B$3+20) -> 2018-02-06 | G160: =IF($H160="","",VLOOKUP(TEXT(H160,"DDD"),{"sun","الأحد";"mon","الإثنين";"tue","الثلاثاء";"wed","الأربعاء";"thu","الخميس";"fri","الجمعة";"sat","السّبت"},2,0)) -> الثلاثاء | H160: =IF(ROWS($A$2:A160)>COUNTIF($D$2:$D$1001,1),"",INDEX($E$2:$E$1001,SMALL(IF($D$2:$D$1001=1,ROW($D$2:$D$1001)-ROW($D$2)+1),ROWS($A$2:A160)))) -> 2018-05-08 | I160: =IF(H160="","",MAX($I$1:I159)+1) -> 159
C161: =IF(MAX(ROW(INDIRECT($B$2&":"&$B$2+ROWS($A$2:A161)-1)))>$B$3,"",MAX(ROW(INDIRECT($B$2&":"&$B$2+ROWS($A$2:A161)-1)))) -> 2018-02-07 | D161: 1 | E161: =IF(ISNA(MATCH(MAX(ROW(INDIRECT($B$2&":"&$B$2+ROWS($A$2:A161)-1))),INDIRECT("$J$1:$J$"&COUNT(K:K)),0)),$B$2+ROWS($A$2:A161)-1,$B$3+20) -> 2018-02-07 | G161: =IF($H161="","",VLOOKUP(TEXT(H161,"DDD"),{"sun","الأحد";"mon","الإثنين";"tue","الثلاثاء";"wed","الأربعاء";"thu","الخميس";"fri","الجمعة";"sat","السّبت"},2,0)) -> الأربعاء | H161: =IF(ROWS($A$2:A161)>COUNTIF($D$2:$D$1001,1),"",INDEX($E$2:$E$1001,SMALL(IF($D$2:$D$1001=1,ROW($D$2:$D$1001)-ROW($D$2)+1),ROWS($A$2:A161)))) -> 2018-05-09 | I161: =IF(H161="","",MAX($I$1:I160)+1) -> 160
C162: =IF(MAX(ROW(INDIRECT($B$2&":"&$B$2+ROWS($A$2:A162)-1)))>$B$3,"",MAX(ROW(INDIRECT($B$2&":"&$B$2+ROWS($A$2:A162)-1)))) -> 2018-02-08 | D162: 1 | E162: =IF(ISNA(MATCH(MAX(ROW(INDIRECT($B$2&":"&$B$2+ROWS($A$2:A162)-1))),INDIRECT("$J$1:$J$"&COUNT(K:K)),0)),$B$2+ROWS($A$2:A162)-1,$B$3+20) -> 2018-02-08 | G162: =IF($H162="","",VLOOKUP(TEXT(H162,"DDD"),{"sun","الأحد";"mon","الإثنين";"tue","الثلاثاء";"wed","الأربعاء";"thu","الخميس";"fri","الجمعة";"sat","السّبت"},2,0)) -> الخميس | H162: =IF(ROWS($A$2:A162)>COUNTIF($D$2:$D$1001,1),"",INDEX($E$2:$E$1001,SMALL(IF($D$2:$D$1001=1,ROW($D$2:$D$1001)-ROW($D$2)+1),ROWS($A$2:A162)))) -> 2018-05-10 | I162: =IF(H162="","",MAX($I$1:I161)+1) -> 161
C163: =IF(MAX(ROW(INDIRECT($B$2&":"&$B$2+ROWS($A$2:A163)-1)))>$B$3,"",MAX(ROW(INDIRECT($B$2&":"&$B$2+ROWS($A$2:A163)-1)))) -> 2018-02-09 | D163: 0 | E163: =IF(ISNA(MATCH(MAX(ROW(INDIRECT($B$2&":"&$B$2+ROWS($A$2:A163)-1))),INDIRECT("$J$1:$J$"&COUNT(K:K)),0)),$B$2+ROWS($A$2:A163)-1,$B$3+20) -> 2018-02-09 | G163: =IF($H163="","",VLOOKUP(TEXT(H163,"DDD"),{"sun","الأحد";"mon","الإثنين";"tue","الثلاثاء";"wed","الأربعاء";"thu","الخميس";"fri","الجمعة";"sat","السّبت"},2,0)) -> الجمعة | H163: =IF(ROWS($A$2:A163)>COUNTIF($D$2:$D$1001,1),"",INDEX($E$2:$E$1001,SMALL(IF($D$2:$D$1001=1,ROW($D$2:$D$1001)-ROW($D$2)+1),ROWS($A$2:A163)))) -> 2018-05-11 | I163: =IF(H163="","",MAX($I$1:I162)+1) -> 162
C164: =IF(MAX(ROW(INDIRECT($B$2&":"&$B$2+ROWS($A$2:A164)-1)))>$B$3,"",MAX(ROW(INDIRECT($B$2&":"&$B$2+ROWS($A$2:A164)-1)))) -> 2018-02-10 | D164: 0 | E164: =IF(ISNA(MATCH(MAX(ROW(INDIRECT($B$2&":"&$B$2+ROWS($A$2:A164)-1))),INDIRECT("$J$1:$J$"&COUNT(K:K)),0)),$B$2+ROWS($A$2:A164)-1,$B$3+20) -> 2018-02-10 | G164: =IF($H164="","",VLOOKUP(TEXT(H164,"DDD"),{"sun","الأحد";"mon","الإثنين";"tue","الثلاثاء";"wed","الأربعاء";"thu","الخميس";"fri","الجمعة";"sat","السّبت"},2,0)) ->  | H164: =IF(ROWS($A$2:A164)>COUNTIF($D$2:$D$1001,1),"",INDEX($E$2:$E$1001,SMALL(IF($D$2:$D$1001=1,ROW($D$2:$D$1001)-ROW($D$2)+1),ROWS($A$2:A164)))) ->  | I164: =IF(H164="","",MAX($I$1:I163)+1) -> 
C165: =IF(MAX(ROW(INDIRECT($B$2&":"&$B$2+ROWS($A$2:A165)-1)))>$B$3,"",MAX(ROW(INDIRECT($B$2&":"&$B$2+ROWS($A$2:A165)-1)))) -> 2018-02-11 | D165: 0 | E165: =IF(ISNA(MATCH(MAX(ROW(INDIRECT($B$2&":"&$B$2+ROWS($A$2:A165)-1))),INDIRECT("$J$1:$J$"&COUNT(K:K)),0)),$B$2+ROWS($A$2:A165)-1,$B$3+20) -> 2018-02-11 | G165: =IF($H165="","",VLOOKUP(TEXT(H165,"DDD"),{"sun","الأحد";"mon","الإثنين";"tue","الثلاثاء";"wed","الأربعاء";"thu","الخميس";"fri","الجمعة";"sat","السّبت"},2,0)) ->  | H165: =IF(ROWS($A$2:A165)>COUNTIF($D$2:$D$1001,1),"",INDEX($E$2:$E$1001,SMALL(IF($D$2:$D$1001=1,ROW($D$2:$D$1001)-ROW($D$2)+1),ROWS($A$2:A165)))) ->  | I165: =IF(H165="","",MAX($I$1:I164)+1) -> 
C166: =IF(MAX(ROW(INDIRECT($B$2&":"&$B$2+ROWS($A$2:A166)-1)))>$B$3,"",MAX(ROW(INDIRECT($B$2&":"&$B$2+ROWS($A$2:A166)-1)))) -> 2018-02-12 | D166: 1 | E166: =IF(ISNA(MATCH(MAX(ROW(INDIRECT($B$2&":"&$B$2+ROWS($A$2:A166)-1))),INDIRECT("$J$1:$J$"&COUNT(K:K)),0)),$B$2+ROWS($A$2:A166)-1,$B$3+20) -> 2018-02-12 | G166: =IF($H166="","",VLOOKUP(TEXT(H166,"DDD"),{"sun","الأحد";"mon","الإثنين";"tue","الثلاثاء";"wed","الأربعاء";"thu","الخميس";"fri","الجمعة";"sat","السّبت"},2,0)) ->  | H166: =IF(ROWS($A$2:A166)>COUNTIF($D$2:$D$1001,1),"",INDEX($E$2:$E$1001,SMALL(IF($D$2:$D$1001=1,ROW($D$2:$D$1001)-ROW($D$2)+1),ROWS($A$2:A166)))) ->  | I166: =IF(H166="","",MAX($I$1:I165)+1) -> 
C167: =IF(MAX(ROW(INDIRECT($B$2&":"&$B$2+ROWS($A$2:A167)-1)))>$B$3,"",MAX(ROW(INDIRECT($B$2&":"&$B$2+ROWS($A$2:A167)-1)))) -> 2018-02-13 | D167: 1 | E167: =IF(ISNA(MATCH(MAX(ROW(INDIRECT($B$2&":"&$B$2+ROWS($A$2:A167)-1))),INDIRECT("$J$1:$J$"&COUNT(K:K)),0)),$B$2+ROWS($A$2:A167)-1,$B$3+20) -> 2018-02-13 | G167: =IF($H167="","",VLOOKUP(TEXT(H167,"DDD"),{"sun","الأحد";"mon","الإثنين";"tue","الثلاثاء";"wed","الأربعاء";"thu","الخميس";"fri","الجمعة";"sat","السّبت"},2,0)) ->  | H167: =IF(ROWS($A$2:A167)>COUNTIF($D$2:$D$1001,1),"",INDEX($E$2:$E$1001,SMALL(IF($D$2:$D$1001=1,ROW($D$2:$D$1001)-ROW($D$2)+1),ROWS($A$2:A167)))) ->  | I167: =IF(H167="","",MAX($I$1:I166)+1) -> 
C168: =IF(MAX(ROW(INDIRECT($B$2&":"&$B$2+ROWS($A$2:A168)-1)))>$B$3,"",MAX(ROW(INDIRECT($B$2&":"&$B$2+ROWS($A$2:A168)-1)))) -> 2018-02-14 | D168: 1 | E168: =IF(ISNA(MATCH(MAX(ROW(INDIRECT($B$2&":"&$B$2+ROWS($A$2:A168)-1))),INDIRECT("$J$1:$J$"&COUNT(K:K)),0)),$B$2+ROWS($A$2:A168)-1,$B$3+20) -> 2018-02-14 | G168: =IF($H168="","",VLOOKUP(TEXT(H168,"DDD"),{"sun","الأحد";"mon","الإثنين";"tue","الثلاثاء";"wed","الأربعاء";"thu","الخميس";"fri","الجمعة";"sat","السّبت"},2,0)) ->  | H168: =IF(ROWS($A$2:A168)>COUNTIF($D$2:$D$1001,1),"",INDEX($E$2:$E$1001,SMALL(IF($D$2:$D$1001=1,ROW($D$2:$D$1001)-ROW($D$2)+1),ROWS($A$2:A168)))) ->  | I168: =IF(H168="","",MAX($I$1:I167)+1) -> 
C169: =IF(MAX(ROW(INDIRECT($B$2&":"&$B$2+ROWS($A$2:A169)-1)))>$B$3,"",MAX(ROW(INDIRECT($B$2&":"&$B$2+ROWS($A$2:A169)-1)))) -> 2018-02-15 | D169: 1 | E169: =IF(ISNA(MATCH(MAX(ROW(INDIRECT($B$2&":"&$B$2+ROWS($A$2:A169)-1))),INDIRECT("$J$1:$J$"&COUNT(K:K)),0)),$B$2+ROWS($A$2:A169)-1,$B$3+20) -> 2018-02-15 | G169: =IF($H169="","",VLOOKUP(TEXT(H169,"DDD"),{"sun","الأحد";"mon","الإثنين";"tue","الثلاثاء";"wed","الأربعاء";"thu","الخميس";"fri","الجمعة";"sat","السّبت"},2,0)) ->  | H169: =IF(ROWS($A$2:A169)>COUNTIF($D$2:$D$1001,1),"",INDEX($E$2:$E$1001,SMALL(IF($D$2:$D$1001=1,ROW($D$2:$D$1001)-ROW($D$2)+1),ROWS($A$2:A169)))) ->  | I169: =IF(H169="","",MAX($I$1:I168)+1) -> 
C170: =IF(MAX(ROW(INDIRECT($B$2&":"&$B$2+ROWS($A$2:A170)-1)))>$B$3,"",MAX(ROW(INDIRECT($B$2&":"&$B$2+ROWS($A$2:A170)-1)))) -> 2018-02-16 | D170: 1 | E170: =IF(ISNA(MATCH(MAX(ROW(INDIRECT($B$2&":"&$B$2+ROWS($A$2:A170)-1))),INDIRECT("$J$1:$J$"&COUNT(K:K)),0)),$B$2+ROWS($A$2:A170)-1,$B$3+20) -> 2018-02-16 | G170: =IF($H170="","",VLOOKUP(TEXT(H170,"DDD"),{"sun","الأحد";"mon","الإثنين";"tue","الثلاثاء";"wed","الأربعاء";"thu","الخميس";"fri","الجمعة";"sat","السّبت"},2,0)) ->  | H170: =IF(ROWS($A$2:A170)>COUNTIF($D$2:$D$1001,1),"",INDEX($E$2:$E$1001,SMALL(IF($D$2:$D$1001=1,ROW($D$2:$D$1001)-ROW($D$2)+1),ROWS($A$2:A170)))) ->  | I170: =IF(H170="","",MAX($I$1:I169)+1) -> 
C171: =IF(MAX(ROW(INDIRECT($B$2&":"&$B$2+ROWS($A$2:A171)-1)))>$B$3,"",MAX(ROW(INDIRECT($B$2&":"&$B$2+ROWS($A$2:A171)-1)))) -> 2018-02-17 | D171: 0 | E171: =IF(ISNA(MATCH(MAX(ROW(INDIRECT($B$2&":"&$B$2+ROWS($A$2:A171)-1))),INDIRECT("$J$1:$J$"&COUNT(K:K)),0)),$B$2+ROWS($A$2:A171)-1,$B$3+20) -> 2018-02-17 | G171: =IF($H171="","",VLOOKUP(TEXT(H171,"DDD"),{"sun","الأحد";"mon","الإثنين";"tue","الثلاثاء";"wed","الأربعاء";"thu","الخميس";"fri","الجمعة";"sat","السّبت"},2,0)) ->  | H171: =IF(ROWS($A$2:A171)>COUNTIF($D$2:$D$1001,1),"",INDEX($E$2:$E$1001,SMALL(IF($D$2:$D$1001=1,ROW($D$2:$D$1001)-ROW($D$2)+1),ROWS($A$2:A171)))) ->  | I171: =IF(H171="","",MAX($I$1:I170)+1) -> 
C172: =IF(MAX(ROW(INDIRECT($B$2&":"&$B$2+ROWS($A$2:A172)-1)))>$B$3,"",MAX(ROW(INDIRECT($B$2&":"&$B$2+ROWS($A$2:A172)-1)))) -> 2018-02-18 | D172: 0 | E172: =IF(ISNA(MATCH(MAX(ROW(INDIRECT($B$2&":"&$B$2+ROWS($A$2:A172)-1))),INDIRECT("$J$1:$J$"&COUNT(K:K)),0)),$B$2+ROWS($A$2:A172)-1,$B$3+20) -> 2018-02-18 | G172: =IF($H172="","",VLOOKUP(TEXT(H172,"DDD"),{"sun","الأحد";"mon","الإثنين";"tue","الثلاثاء";"wed","الأربعاء";"thu","الخميس";"fri","الجمعة";"sat","السّبت"},2,0)) ->  | H172: =IF(ROWS($A$2:A172)>COUNTIF($D$2:$D$1001,1),"",INDEX($E$2:$E$1001,SMALL(IF($D$2:$D$1001=1,ROW($D$2:$D$1001)-ROW($D$2)+1),ROWS($A$2:A172)))) ->  | I172: =IF(H172="","",MAX($I$1:I171)+1) -> 
C173: =IF(MAX(ROW(INDIRECT($B$2&":"&$B$2+ROWS($A$2:A173)-1)))>$B$3,"",MAX(ROW(INDIRECT($B$2&":"&$B$2+ROWS($A$2:A173)-1)))) -> 2018-02-19 | D173: 1 | E173: =IF(ISNA(MATCH(MAX(ROW(INDIRECT($B$2&":"&$B$2+ROWS($A$2:A173)-1))),INDIRECT("$J$1:$J$"&COUNT(K:K)),0)),$B$2+ROWS($A$2:A173)-1,$B$3+20) -> 2018-02-19 | G173: =IF($H173="","",VLOOKUP(TEXT(H173,"DDD"),{"sun","الأحد";"mon","الإثنين";"tue","الثلاثاء";"wed","الأربعاء";"thu","الخميس";"fri","الجمعة";"sat","السّبت"},2,0)) ->  | H173: =IF(ROWS($A$2:A173)>COUNTIF($D$2:$D$1001,1),"",INDEX($E$2:$E$1001,SMALL(IF($D$2:$D$1001=1,ROW($D$2:$D$1001)-ROW($D$2)+1),ROWS($A$2:A173)))) ->  | I173: =IF(H173="","",MAX($I$1:I172)+1) -> 
C174: =IF(MAX(ROW(INDIRECT($B$2&":"&$B$2+ROWS($A$2:A174)-1)))>$B$3,"",MAX(ROW(INDIRECT($B$2&":"&$B$2+ROWS($A$2:A174)-1)))) -> 2018-02-20 | D174: 1 | E174: =IF(ISNA(MATCH(MAX(ROW(INDIRECT($B$2&":"&$B$2+ROWS($A$2:A174)-1))),INDIRECT("$J$1:$J$"&COUNT(K:K)),0)),$B$2+ROWS($A$2:A174)-1,$B$3+20) -> 2018-02-20 | G174: =IF($H174="","",VLOOKUP(TEXT(H174,"DDD"),{"sun","الأحد";"mon","الإثنين";"tue","الثلاثاء";"wed","الأربعاء";"thu","الخميس";"fri","الجمعة";"sat","السّبت"},2,0)) ->  | H174: =IF(ROWS($A$2:A174)>COUNTIF($D$2:$D$1001,1),"",INDEX($E$2:$E$1001,SMALL(IF($D$2:$D$1001=1,ROW($D$2:$D$1001)-ROW($D$2)+1),ROWS($A$2:A174)))) ->  | I174: =IF(H174="","",MAX($I$1:I173)+1) -> 
C175: =IF(MAX(ROW(INDIRECT($B$2&":"&$B$2+ROWS($A$2:A175)-1)))>$B$3,"",MAX(ROW(INDIRECT($B$2&":"&$B$2+ROWS($A$2:A175)-1)))) -> 2018-02-21 | D175: 1 | E175: =IF(ISNA(MATCH(MAX(ROW(INDIRECT($B$2&":"&$B$2+ROWS($A$2:A175)-1))),INDIRECT("$J$1:$J$"&COUNT(K:K)),0)),$B$2+ROWS($A$2:A175)-1,$B$3+20) -> 2018-02-21 | G175: =IF($H175="","",VLOOKUP(TEXT(H175,"DDD"),{"sun","الأحد";"mon","الإثنين";"tue","الثلاثاء";"wed","الأربعاء";"thu","الخميس";"fri","الجمعة";"sat","السّبت"},2,0)) ->  | H175: =IF(ROWS($A$2:A175)>COUNTIF($D$2:$D$1001,1),"",INDEX($E$2:$E$1001,SMALL(IF($D$2:$D$1001=1,ROW($D$2:$D$1001)-ROW($D$2)+1),ROWS($A$2:A175)))) ->  | I175: =IF(H175="","",MAX($I$1:I174)+1) -> 
C176: =IF(MAX(ROW(INDIRECT($B$2&":"&$B$2+ROWS($A$2:A176)-1)))>$B$3,"",MAX(ROW(INDIRECT($B$2&":"&$B$2+ROWS($A$2:A176)-1)))) -> 2018-02-22 | D176: 1 | E176: =IF(ISNA(MATCH(MAX(ROW(INDIRECT($B$2&":"&$B$2+ROWS($A$2:A176)-1))),INDIRECT("$J$1:$J$"&COUNT(K:K)),0)),$B$2+ROWS($A$2:A176)-1,$B$3+20) -> 2018-02-22 | G176: =IF($H176="","",VLOOKUP(TEXT(H176,"DDD"),{"sun","الأحد";"mon","الإثنين";"tue","الثلاثاء";"wed","الأربعاء";"thu","الخميس";"fri","الجمعة";"sat","السّبت"},2,0)) ->  | H176: =IF(ROWS($A$2:A176)>COUNTIF($D$2:$D$1001,1),"",INDEX($E$2:$E$1001,SMALL(IF($D$2:$D$1001=1,ROW($D$2:$D$1001)-ROW($D$2)+1),ROWS($A$2:A176)))) ->  | I176: =IF(H176="","",MAX($I$1:I175)+1) -> 
C177: =IF(MAX(ROW(INDIRECT($B$2&":"&$B$2+ROWS($A$2:A177)-1)))>$B$3,"",MAX(ROW(INDIRECT($B$2&":"&$B$2+ROWS($A$2:A177)-1)))) -> 2018-02-23 | D177: 1 | E177: =IF(ISNA(MATCH(MAX(ROW(INDIRECT($B$2&":"&$B$2+ROWS($A$2:A177)-1))),INDIRECT("$J$1:$J$"&COUNT(K:K)),0)),$B$2+ROWS($A$2:A177)-1,$B$3+20) -> 2018-02-23 | G177: =IF($H177="","",VLOOKUP(TEXT(H177,"DDD"),{"sun","الأحد";"mon","الإثنين";"tue","الثلاثاء";"wed","الأربعاء";"thu","الخميس";"fri","الجمعة";"sat","السّبت"},2,0)) ->  | H177: =IF(ROWS($A$2:A177)>COUNTIF($D$2:$D$1001,1),"",INDEX($E$2:$E$1001,SMALL(IF($D$2:$D$1001=1,ROW($D$2:$D$1001)-ROW($D$2)+1),ROWS($A$2:A177)))) ->  | I177: =IF(H177="","",MAX($I$1:I176)+1) -> 
C178: =IF(MAX(ROW(INDIRECT($B$2&":"&$B$2+ROWS($A$2:A178)-1)))>$B$3,"",MAX(ROW(INDIRECT($B$2&":"&$B$2+ROWS($A$2:A178)-1)))) -> 2018-02-24 | D178: 0 | E178: =IF(ISNA(MATCH(MAX(ROW(INDIRECT($B$2&":"&$B$2+ROWS($A$2:A178)-1))),INDIRECT("$J$1:$J$"&COUNT(K:K)),0)),$B$2+ROWS($A$2:A178)-1,$B$3+20) -> 2018-02-24 | G178: =IF($H178="","",VLOOKUP(TEXT(H178,"DDD"),{"sun","الأحد";"mon","الإثنين";"tue","الثلاثاء";"wed","الأربعاء";"thu","الخميس";"fri","الجمعة";"sat","السّبت"},2,0)) ->  | H178: =IF(ROWS($A$2:A178)>COUNTIF($D$2:$D$1001,1),"",INDEX($E$2:$E$1001,SMALL(IF($D$2:$D$1001=1,ROW($D$2:$D$1001)-ROW($D$2)+1),ROWS($A$2:A178)))) ->  | I178: =IF(H178="","",MAX($I$1:I177)+1) -> 
C179: =IF(MAX(ROW(INDIRECT($B$2&":"&$B$2+ROWS($A$2:A179)-1)))>$B$3,"",MAX(ROW(INDIRECT($B$2&":"&$B$2+ROWS($A$2:A179)-1)))) -> 2018-02-25 | D179: 0 | E179: =IF(ISNA(MATCH(MAX(ROW(INDIRECT($B$2&":"&$B$2+ROWS($A$2:A179)-1))),INDIRECT("$J$1:$J$"&COUNT(K:K)),0)),$B$2+ROWS($A$2:A179)-1,$B$3+20) -> 2018-02-25 | G179: =IF($H179="","",VLOOKUP(TEXT(H179,"DDD"),{"sun","الأحد";"mon","الإثنين";"tue","الثلاثاء";"wed","الأربعاء";"thu","الخميس";"fri","الجمعة";"sat","السّبت"},2,0)) ->  | H179: =IF(ROWS($A$2:A179)>COUNTIF($D$2:$D$1001,1),"",INDEX($E$2:$E$1001,SMALL(IF($D$2:$D$1001=1,ROW($D$2:$D$1001)-ROW($D$2)+1),ROWS($A$2:A179)))) ->  | I179: =IF(H179="","",MAX($I$1:I178)+1) -> 
C180: =IF(MAX(ROW(INDIRECT($B$2&":"&$B$2+ROWS($A$2:A180)-1)))>$B$3,"",MAX(ROW(INDIRECT($B$2&":"&$B$2+ROWS($A$2:A180)-1)))) -> 2018-02-26 | D180: 1 | E180: =IF(ISNA(MATCH(MAX(ROW(INDIRECT($B$2&":"&$B$2+ROWS($A$2:A180)-1))),INDIRECT("$J$1:$J$"&COUNT(K:K)),0)),$B$2+ROWS($A$2:A180)-1,$B$3+20) -> 2018-02-26 | G180: =IF($H180="","",VLOOKUP(TEXT(H180,"DDD"),{"sun","الأحد";"mon","الإثنين";"tue","الثلاثاء";"wed","الأربعاء";"thu","الخميس";"fri","الجمعة";"sat","السّبت"},2,0)) ->  | H180: =IF(ROWS($A$2:A180)>COUNTIF($D$2:$D$1001,1),"",INDEX($E$2:$E$1001,SMALL(IF($D$2:$D$1001=1,ROW($D$2:$D$1001)-ROW($D$2)+1),ROWS($A$2:A180)))) ->  | I180: =IF(H180="","",MAX($I$1:I179)+1) -> 
C181: =IF(MAX(ROW(INDIRECT($B$2&":"&$B$2+ROWS($A$2:A181)-1)))>$B$3,"",MAX(ROW(INDIRECT($B$2&":"&$B$2+ROWS($A$2:A181)-1)))) -> 2018-02-27 | D181: 1 | E181: =IF(ISNA(MATCH(MAX(ROW(INDIRECT($B$2&":"&$B$2+ROWS($A$2:A181)-1))),INDIRECT("$J$1:$J$"&COUNT(K:K)),0)),$B$2+ROWS($A$2:A181)-1,$B$3+20) -> 2018-02-27 | G181: =IF($H181="","",VLOOKUP(TEXT(H181,"DDD"),{"sun","الأحد";"mon","الإثنين";"tue","الثلاثاء";"wed","الأربعاء";"thu","الخميس";"fri","الجمعة";"sat","السّبت"},2,0)) ->  | H181: =IF(ROWS($A$2:A181)>COUNTIF($D$2:$D$1001,1),"",INDEX($E$2:$E$1001,SMALL(IF($D$2:$D$1001=1,ROW($D$2:$D$1001)-ROW($D$2)+1),ROWS($A$2:A181)))) ->  | I181: =IF(H181="","",MAX($I$1:I180)+1) -> 
C182: =IF(MAX(ROW(INDIRECT($B$2&":"&$B$2+ROWS($A$2:A182)-1)))>$B$3,"",MAX(ROW(INDIRECT($B$2&":"&$B$2+ROWS($A$2:A182)-1)))) -> 2018-02-28 | D182: 1 | E182: =IF(ISNA(MATCH(MAX(ROW(INDIRECT($B$2&":"&$B$2+ROWS($A$2:A182)-1))),INDIRECT("$J$1:$J$"&COUNT(K:K)),0)),$B$2+ROWS($A$2:A182)-1,$B$3+20) -> 2018-02-28 | G182: =IF($H182="","",VLOOKUP(TEXT(H182,"DDD"),{"sun","الأحد";"mon","الإثنين";"tue","الثلاثاء";"wed","الأربعاء";"thu","الخميس";"fri","الجمعة";"sat","السّبت"},2,0)) ->  | H182: =IF(ROWS($A$2:A182)>COUNTIF($D$2:$D$1001,1),"",INDEX($E$2:$E$1001,SMALL(IF($D$2:$D$1001=1,ROW($D$2:$D$1001)-ROW($D$2)+1),ROWS($A$2:A182)))) ->  | I182: =IF(H182="","",MAX($I$1:I181)+1) -> 
C183: =IF(MAX(ROW(INDIRECT($B$2&":"&$B$2+ROWS($A$2:A183)-1)))>$B$3,"",MAX(ROW(INDIRECT($B$2&":"&$B$2+ROWS($A$2:A183)-1)))) -> 2018-03-01 | D183: 1 | E183: =IF(ISNA(MATCH(MAX(ROW(INDIRECT($B$2&":"&$B$2+ROWS($A$2:A183)-1))),INDIRECT("$J$1:$J$"&COUNT(K:K)),0)),$B$2+ROWS($A$2:A183)-1,$B$3+20) -> 2018-03-01 | G183: =IF($H183="","",VLOOKUP(TEXT(H183,"DDD"),{"sun","الأحد";"mon","الإثنين";"tue","الثلاثاء";"wed","الأربعاء";"thu","الخميس";"fri","الجمعة";"sat","السّبت"},2,0)) ->  | H183: =IF(ROWS($A$2:A183)>COUNTIF($D$2:$D$1001,1),"",INDEX($E$2:$E$1001,SMALL(IF($D$2:$D$1001=1,ROW($D$2:$D$1001)-ROW($D$2)+1),ROWS($A$2:A183)))) ->  | I183: =IF(H183="","",MAX($I$1:I182)+1) -> 
C184: =IF(MAX(ROW(INDIRECT($B$2&":"&$B$2+ROWS($A$2:A184)-1)))>$B$3,"",MAX(ROW(INDIRECT($B$2&":"&$B$2+ROWS($A$2:A184)-1)))) -> 2018-03-02 | D184: 1 | E184: =IF(ISNA(MATCH(MAX(ROW(INDIRECT($B$2&":"&$B$2+ROWS($A$2:A184)-1))),INDIRECT("$J$1:$J$"&COUNT(K:K)),0)),$B$2+ROWS($A$2:A184)-1,$B$3+20) -> 2018-03-02 | G184: =IF($H184="","",VLOOKUP(TEXT(H184,"DDD"),{"sun","الأحد";"mon","الإثنين";"tue","الثلاثاء";"wed","الأربعاء";"thu","الخميس";"fri","الجمعة";"sat","السّبت"},2,0)) ->  | H184: =IF(ROWS($A$2:A184)>COUNTIF($D$2:$D$1001,1),"",INDEX($E$2:$E$1001,SMALL(IF($D$2:$D$1001=1,ROW($D$2:$D$1001)-ROW($D$2)+1),ROWS($A$2:A184)))) ->  | I184: =IF(H184="","",MAX($I$1:I183)+1) -> 
C185: =IF(MAX(ROW(INDIRECT($B$2&":"&$B$2+ROWS($A$2:A185)-1)))>$B$3,"",MAX(ROW(INDIRECT($B$2&":"&$B$2+ROWS($A$2:A185)-1)))) -> 2018-03-03 | D185: 0 | E185: =IF(ISNA(MATCH(MAX(ROW(INDIRECT($B$2&":"&$B$2+ROWS($A$2:A185)-1))),INDIRECT("$J$1:$J$"&COUNT(K:K)),0)),$B$2+ROWS($A$2:A185)-1,$B$3+20) -> 2018-03-03 | G185: =IF($H185="","",VLOOKUP(TEXT(H185,"DDD"),{"sun","الأحد";"mon","الإثنين";"tue","الثلاثاء";"wed","الأربعاء";"thu","الخميس";"fri","الجمعة";"sat","السّبت"},2,0)) ->  | H185: =IF(ROWS($A$2:A185)>COUNTIF($D$2:$D$1001,1),"",INDEX($E$2:$E$1001,SMALL(IF($D$2:$D$1001=1,ROW($D$2:$D$1001)-ROW($D$2)+1),ROWS($A$2:A185)))) ->  | I185: =IF(H185="","",MAX($I$1:I184)+1) -> 
C186: =IF(MAX(ROW(INDIRECT($B$2&":"&$B$2+ROWS($A$2:A186)-1)))>$B$3,"",MAX(ROW(INDIRECT($B$2&":"&$B$2+ROWS($A$2:A186)-1)))) -> 2018-03-04 | D186: 0 | E186: =IF(ISNA(MATCH(MAX(ROW(INDIRECT($B$2&":"&$B$2+ROWS($A$2:A186)-1))),INDIRECT("$J$1:$J$"&COUNT(K:K)),0)),$B$2+ROWS($A$2:A186)-1,$B$3+20) -> 2018-03-04 | G186: =IF($H186="","",VLOOKUP(TEXT(H186,"DDD"),{"sun","الأحد";"mon","الإثنين";"tue","الثلاثاء";"wed","الأربعاء";"thu","الخميس";"fri","الجمعة";"sat","السّبت"},2,0)) ->  | H186: =IF(ROWS($A$2:A186)>COUNTIF($D$2:$D$1001,1),"",INDEX($E$2:$E$1001,SMALL(IF($D$2:$D$1001=1,ROW($D$2:$D$1001)-ROW($D$2)+1),ROWS($A$2:A186)))) ->  | I186: =IF(H186="","",MAX($I$1:I185)+1) -> 
C187: =IF(MAX(ROW(INDIRECT($B$2&":"&$B$2+ROWS($A$2:A187)-1)))>$B$3,"",MAX(ROW(INDIRECT($B$2&":"&$B$2+ROWS($A$2:A187)-1)))) -> 2018-03-05 | D187: 1 | E187: =IF(ISNA(MATCH(MAX(ROW(INDIRECT($B$2&":"&$B$2+ROWS($A$2:A187)-1))),INDIRECT("$J$1:$J$"&COUNT(K:K)),0)),$B$2+ROWS($A$2:A187)-1,$B$3+20) -> 2018-03-05 | G187: =IF($H187="","",VLOOKUP(TEXT(H187,"DDD"),{"sun","الأحد";"mon","الإثنين";"tue","الثلاثاء";"wed","الأربعاء";"thu","الخميس";"fri","الجمعة";"sat","السّبت"},2,0)) ->  | H187: =IF(ROWS($A$2:A187)>COUNTIF($D$2:$D$1001,1),"",INDEX($E$2:$E$1001,SMALL(IF($D$2:$D$1001=1,ROW($D$2:$D$1001)-ROW($D$2)+1),ROWS($A$2:A187)))) ->  | I187: =IF(H187="","",MAX($I$1:I186)+1) -> 
C188: =IF(MAX(ROW(INDIRECT($B$2&":"&$B$2+ROWS($A$2:A188)-1)))>$B$3,"",MAX(ROW(INDIRECT($B$2&":"&$B$2+ROWS($A$2:A188)-1)))) -> 2018-03-06 | D188: 1 | E188: =IF(ISNA(MATCH(MAX(ROW(INDIRECT($B$2&":"&$B$2+ROWS($A$2:A188)-1))),INDIRECT("$J$1:$J$"&COUNT(K:K)),0)),$B$2+ROWS($A$2:A188)-1,$B$3+20) -> 2018-03-06 | G188: =IF($H188="","",VLOOKUP(TEXT(H188,"DDD"),{"sun","الأحد";"mon","الإثنين";"tue","الثلاثاء";"wed","الأربعاء";"thu","الخميس";"fri","الجمعة";"sat","السّبت"},2,0)) ->  | H188: =IF(ROWS($A$2:A188)>COUNTIF($D$2:$D$1001,1),"",INDEX($E$2:$E$1001,SMALL(IF($D$2:$D$1001=1,ROW($D$2:$D$1001)-ROW($D$2)+1),ROWS($A$2:A188)))) ->  | I188: =IF(H188="","",MAX($I$1:I187)+1) -> 
C189: =IF(MAX(ROW(INDIRECT($B$2&":"&$B$2+ROWS($A$2:A189)-1)))>$B$3,"",MAX(ROW(INDIRECT($B$2&":"&$B$2+ROWS($A$2:A189)-1)))) -> 2018-03-07 | D189: 1 | E189: =IF(ISNA(MATCH(MAX(ROW(INDIRECT($B$2&":"&$B$2+ROWS($A$2:A189)-1))),INDIRECT("$J$1:$J$"&COUNT(K:K)),0)),$B$2+ROWS($A$2:A189)-1,$B$3+20) -> 2018-03-07 | G189: =IF($H189="","",VLOOKUP(TEXT(H189,"DDD"),{"sun","الأحد";"mon","الإثنين";"tue","الثلاثاء";"wed","الأربعاء";"thu","الخميس";"fri","الجمعة";"sat","السّبت"},2,0)) ->  | H189: =IF(ROWS($A$2:A189)>COUNTIF($D$2:$D$1001,1),"",INDEX($E$2:$E$1001,SMALL(IF($D$2:$D$1001=1,ROW($D$2:$D$1001)-ROW($D$2)+1),ROWS($A$2:A189)))) ->  | I189: =IF(H189="","",MAX($I$1:I188)+1) -> 
C190: =IF(MAX(ROW(INDIRECT($B$2&":"&$B$2+ROWS($A$2:A190)-1)))>$B$3,"",MAX(ROW(INDIRECT($B$2&":"&$B$2+ROWS($A$2:A190)-1)))) -> 2018-03-08 | D190: 1 | E190: =IF(ISNA(MATCH(MAX(ROW(INDIRECT($B$2&":"&$B$2+ROWS($A$2:A190)-1))),INDIRECT("$J$1:$J$"&COUNT(K:K)),0)),$B$2+ROWS($A$2:A190)-1,$B$3+20) -> 2018-03-08 | G190: =IF($H190="","",VLOOKUP(TEXT(H190,"DDD"),{"sun","الأحد";"mon","الإثنين";"tue","الثلاثاء";"wed","الأربعاء";"thu","الخميس";"fri","الجمعة";"sat","السّبت"},2,0)) ->  | H190: =IF(ROWS($A$2:A190)>COUNTIF($D$2:$D$1001,1),"",INDEX($E$2:$E$1001,SMALL(IF($D$2:$D$1001=1,ROW($D$2:$D$1001)-ROW($D$2)+1),ROWS($A$2:A190)))) ->  | I190: =IF(H190="","",MAX($I$1:I189)+1) -> 
C191: =IF(MAX(ROW(INDIRECT($B$2&":"&$B$2+ROWS($A$2:A191)-1)))>$B$3,"",MAX(ROW(INDIRECT($B$2&":"&$B$2+ROWS($A$2:A191)-1)))) -> 2018-03-09 | D191: 0 | E191: =IF(ISNA(MATCH(MAX(ROW(INDIRECT($B$2&":"&$B$2+ROWS($A$2:A191)-1))),INDIRECT("$J$1:$J$"&COUNT(K:K)),0)),$B$2+ROWS($A$2:A191)-1,$B$3+20) -> 2018-03-09 | G191: =IF($H191="","",VLOOKUP(TEXT(H191,"DDD"),{"sun","الأحد";"mon","الإثنين";"tue","الثلاثاء";"wed","الأربعاء";"thu","الخميس";"fri","الجمعة";"sat","السّبت"},2,0)) ->  | H191: =IF(ROWS($A$2:A191)>COUNTIF($D$2:$D$1001,1),"",INDEX($E$2:$E$1001,SMALL(IF($D$2:$D$1001=1,ROW($D$2:$D$1001)-ROW($D$2)+1),ROWS($A$2:A191)))) ->  | I191: =IF(H191="","",MAX($I$1:I190)+1) -> 
C192: =IF(MAX(ROW(INDIRECT($B$2&":"&$B$2+ROWS($A$2:A192)-1)))>$B$3,"",MAX(ROW(INDIRECT($B$2&":"&$B$2+ROWS($A$2:A192)-1)))) -> 2018-03-10 | D192: 0 | E192: =IF(ISNA(MATCH(MAX(ROW(INDIRECT($B$2&":"&$B$2+ROWS($A$2:A192)-1))),INDIRECT("$J$1:$J$"&COUNT(K:K)),0)),$B$2+ROWS($A$2:A192)-1,$B$3+20) -> 2018-03-10 | G192: =IF($H192="","",VLOOKUP(TEXT(H192,"DDD"),{"sun","الأحد";"mon","الإثنين";"tue","الثلاثاء";"wed","الأربعاء";"thu","الخميس";"fri","الجمعة";"sat","السّبت"},2,0)) ->  | H192: =IF(ROWS($A$2:A192)>COUNTIF($D$2:$D$1001,1),"",INDEX($E$2:$E$1001,SMALL(IF($D$2:$D$1001=1,ROW($D$2:$D$1001)-ROW($D$2)+1),ROWS($A$2:A192)))) ->  | I192: =IF(H192="","",MAX($I$1:I191)+1) -> 
C193: =IF(MAX(ROW(INDIRECT($B$2&":"&$B$2+ROWS($A$2:A193)-1)))>$B$3,"",MAX(ROW(INDIRECT($B$2&":"&$B$2+ROWS($A$2:A193)-1)))) -> 2018-03-11 | D193: 0 | E193: =IF(ISNA(MATCH(MAX(ROW(INDIRECT($B$2&":"&$B$2+ROWS($A$2:A193)-1))),INDIRECT("$J$1:$J$"&COUNT(K:K)),0)),$B$2+ROWS($A$2:A193)-1,$B$3+20) -> 2018-03-11 | G193: =IF($H193="","",VLOOKUP(TEXT(H193,"DDD"),{"sun","الأحد";"mon","الإثنين";"tue","الثلاثاء";"wed","الأربعاء";"thu","الخميس";"fri","الجمعة";"sat","السّبت"},2,0)) ->  | H193: =IF(ROWS($A$2:A193)>COUNTIF($D$2:$D$1001,1),"",INDEX($E$2:$E$1001,SMALL(IF($D$2:$D$1001=1,ROW($D$2:$D$1001)-ROW($D$2)+1),ROWS($A$2:A193)))) ->  | I193: =IF(H193="","",MAX($I$1:I192)+1) -> 
C194: =IF(MAX(ROW(INDIRECT($B$2&":"&$B$2+ROWS($A$2:A194)-1)))>$B$3,"",MAX(ROW(INDIRECT($B$2&":"&$B$2+ROWS($A$2:A194)-1)))) -> 2018-03-12 | D194: 1 | E194: =IF(ISNA(MATCH(MAX(ROW(INDIRECT($B$2&":"&$B$2+ROWS($A$2:A194)-1))),INDIRECT("$J$1:$J$"&COUNT(K:K)),0)),$B$2+ROWS($A$2:A194)-1,$B$3+20) -> 2018-03-12 | G194: =IF($H194="","",VLOOKUP(TEXT(H194,"DDD"),{"sun","الأحد";"mon","الإثنين";"tue","الثلاثاء";"wed","الأربعاء";"thu","الخميس";"fri","الجمعة";"sat","السّبت"},2,0)) ->  | H194: =IF(ROWS($A$2:A194)>COUNTIF($D$2:$D$1001,1),"",INDEX($E$2:$E$1001,SMALL(IF($D$2:$D$1001=1,ROW($D$2:$D$1001)-ROW($D$2)+1),ROWS($A$2:A194)))) ->  | I194: =IF(H194="","",MAX($I$1:I193)+1) -> 
C195: =IF(MAX(ROW(INDIRECT($B$2&":"&$B$2+ROWS($A$2:A195)-1)))>$B$3,"",MAX(ROW(INDIRECT($B$2&":"&$B$2+ROWS($A$2:A195)-1)))) -> 2018-03-13 | D195: =IF($C195="","",AND(COUNTIF(K:K,C195)=0,NOT(OR(TEXT(C195,"DDD")=$L$2,TEXT(C195,"DDD")=$L$3))*1=1)*1) -> 1 | E195: =IF(ISNA(MATCH(MAX(ROW(INDIRECT($B$2&":"&$B$2+ROWS($A$2:A195)-1))),INDIRECT("$J$1:$J$"&COUNT(K:K)),0)),$B$2+ROWS($A$2:A195)-1,$B$3+20) -> 2018-03-13 | G195: =IF($H195="","",VLOOKUP(TEXT(H195,"DDD"),{"sun","الأحد";"mon","الإثنين";"tue","الثلاثاء";"wed","الأربعاء";"thu","الخميس";"fri","الجمعة";"sat","السّبت"},2,0)) ->  | H195: =IF(ROWS($A$2:A195)>COUNTIF($D$2:$D$1001,1),"",INDEX($E$2:$E$1001,SMALL(IF($D$2:$D$1001=1,ROW($D$2:$D$1001)-ROW($D$2)+1),ROWS($A$2:A195)))) ->  | I195: =IF(H195="","",MAX($I$1:I194)+1) -> 
C196: =IF(MAX(ROW(INDIRECT($B$2&":"&$B$2+ROWS($A$2:A196)-1)))>$B$3,"",MAX(ROW(INDIRECT($B$2&":"&$B$2+ROWS($A$2:A196)-1)))) -> 2018-03-14 | D196: 1 | E196: =IF(ISNA(MATCH(MAX(ROW(INDIRECT($B$2&":"&$B$2+ROWS($A$2:A196)-1))),INDIRECT("$J$1:$J$"&COUNT(K:K)),0)),$B$2+ROWS($A$2:A196)-1,$B$3+20) -> 2018-03-14 | G196: =IF($H196="","",VLOOKUP(TEXT(H196,"DDD"),{"sun","الأحد";"mon","الإثنين";"tue","الثلاثاء";"wed","الأربعاء";"thu","الخميس";"fri","الجمعة";"sat","السّبت"},2,0)) ->  | H196: =IF(ROWS($A$2:A196)>COUNTIF($D$2:$D$1001,1),"",INDEX($E$2:$E$1001,SMALL(IF($D$2:$D$1001=1,ROW($D$2:$D$1001)-ROW($D$2)+1),ROWS($A$2:A196)))) ->  | I196: =IF(H196="","",MAX($I$1:I195)+1) -> 
C197: =IF(MAX(ROW(INDIRECT($B$2&":"&$B$2+ROWS($A$2:A197)-1)))>$B$3,"",MAX(ROW(INDIRECT($B$2&":"&$B$2+ROWS($A$2:A197)-1)))) -> 2018-03-15 | D197: 1 | E197: =IF(ISNA(MATCH(MAX(ROW(INDIRECT($B$2&":"&$B$2+ROWS($A$2:A197)-1))),INDIRECT("$J$1:$J$"&COUNT(K:K)),0)),$B$2+ROWS($A$2:A197)-1,$B$3+20) -> 2018-03-15 | G197: =IF($H197="","",VLOOKUP(TEXT(H197,"DDD"),{"sun","الأحد";"mon","الإثنين";"tue","الثلاثاء";"wed","الأربعاء";"thu","الخميس";"fri","الجمعة";"sat","السّبت"},2,0)) ->  | H197: =IF(ROWS($A$2:A197)>COUNTIF($D$2:$D$1001,1),"",INDEX($E$2:$E$1001,SMALL(IF($D$2:$D$1001=1,ROW($D$2:$D$1001)-ROW($D$2)+1),ROWS($A$2:A197)))) ->  | I197: =IF(H197="","",MAX($I$1:I196)+1) -> 
C198: =IF(MAX(ROW(INDIRECT($B$2&":"&$B$2+ROWS($A$2:A198)-1)))>$B$3,"",MAX(ROW(INDIRECT($B$2&":"&$B$2+ROWS($A$2:A198)-1)))) -> 2018-03-16 | D198: 1 | E198: =IF(ISNA(MATCH(MAX(ROW(INDIRECT($B$2&":"&$B$2+ROWS($A$2:A198)-1))),INDIRECT("$J$1:$J$"&COUNT(K:K)),0)),$B$2+ROWS($A$2:A198)-1,$B$3+20) -> 2018-03-16 | G198: =IF($H198="","",VLOOKUP(TEXT(H198,"DDD"),{"sun","الأحد";"mon","الإثنين";"tue","الثلاثاء";"wed","الأربعاء";"thu","الخميس";"fri","الجمعة";"sat","السّبت"},2,0)) ->  | H198: =IF(ROWS($A$2:A198)>COUNTIF($D$2:$D$1001,1),"",INDEX($E$2:$E$1001,SMALL(IF($D$2:$D$1001=1,ROW($D$2:$D$1001)-ROW($D$2)+1),ROWS($A$2:A198)))) ->  | I198: =IF(H198="","",MAX($I$1:I197)+1) -> 
C199: =IF(MAX(ROW(INDIRECT($B$2&":"&$B$2+ROWS($A$2:A199)-1)))>$B$3,"",MAX(ROW(INDIRECT($B$2&":"&$B$2+ROWS($A$2:A199)-1)))) -> 2018-03-17 | D199: 0 | E199: =IF(ISNA(MATCH(MAX(ROW(INDIRECT($B$2&":"&$B$2+ROWS($A$2:A199)-1))),INDIRECT("$J$1:$J$"&COUNT(K:K)),0)),$B$2+ROWS($A$2:A199)-1,$B$3+20) -> 2018-03-17 | G199: =IF($H199="","",VLOOKUP(TEXT(H199,"DDD"),{"sun","الأحد";"mon","الإثنين";"tue","الثلاثاء";"wed","الأربعاء";"thu","الخميس";"fri","الجمعة";"sat","السّبت"},2,0)) ->  | H199: =IF(ROWS($A$2:A199)>COUNTIF($D$2:$D$1001,1),"",INDEX($E$2:$E$1001,SMALL(IF($D$2:$D$1001=1,ROW($D$2:$D$1001)-ROW($D$2)+1),ROWS($A$2:A199)))) ->  | I199: =IF(H199="","",MAX($I$1:I198)+1) -> 
C200: =IF(MAX(ROW(INDIRECT($B$2&":"&$B$2+ROWS($A$2:A200)-1)))>$B$3,"",MAX(ROW(INDIRECT($B$2&":"&$B$2+ROWS($A$2:A200)-1)))) -> 2018-03-18 | D200: 0 | E200: =IF(ISNA(MATCH(MAX(ROW(INDIRECT($B$2&":"&$B$2+ROWS($A$2:A200)-1))),INDIRECT("$J$1:$J$"&COUNT(K:K)),0)),$B$2+ROWS($A$2:A200)-1,$B$3+20) -> 2018-03-18 | G200: =IF($H200="","",VLOOKUP(TEXT(H200,"DDD"),{"sun","الأحد";"mon","الإثنين";"tue","الثلاثاء";"wed","الأربعاء";"thu","الخميس";"fri","الجمعة";"sat","السّبت"},2,0)) ->  | H200: =IF(ROWS($A$2:A200)>COUNTIF($D$2:$D$1001,1),"",INDEX($E$2:$E$1001,SMALL(IF($D$2:$D$1001=1,ROW($D$2:$D$1001)-ROW($D$2)+1),ROWS($A$2:A200)))) ->  | I200: =IF(H200="","",MAX($I$1:I199)+1) -> 
... 801 more rows

Sheet Main
H1: without | I1: =IF(I2="","",TEXT(I2,"DDD")) -> Mon | J1: Thu | K1: Wed | R1: Mon | AW1: =IF(AW2="","",VLOOKUP(TEXT(AW2,"DDD"),{"Sun","الأحد";"Mon","الإثنين";"Tue","الثلاثاء";"Wed","الأربعاء";"Thu","الخميس";"Fri","الجمعة";"Sat","السّبت"},2,0)) ->  | AX1: =IF(AX2="","",VLOOKUP(TEXT(AX2,"DDD"),{"Sun","الأحد";"Mon","الإثنين";"Tue","الثلاثاء";"Wed","الأربعاء";"Thu","الخميس";"Fri","الجمعة";"Sat","السّبت"},2,0)) ->  | AY1: =IF(AY2="","",VLOOKUP(TEXT(AY2,"DDD"),{"Sun","الأحد";"Mon","الإثنين";"Tue","الثلاثاء";"Wed","الأربعاء";"Thu","الخميس";"Fri","الجمعة";"Sat","السّبت"},2,0)) ->  | AZ1: =IF(AZ2="","",VLOOKUP(TEXT(AZ2,"DDD"),{"Sun","الأحد";"Mon","الإثنين";"Tue","الثلاثاء";"Wed","الأربعاء";"Thu","الخميس";"Fri","الجمعة";"Sat","السّبت"},2,0)) ->  | BA1: =IF(BA2="","",VLOOKUP(TEXT(BA2,"DDD"),{"Sun","الأحد";"Mon","الإثنين";"Tue","الثلاثاء";"Wed","الأربعاء";"Thu","الخميس";"Fri","الجمعة";"Sat","السّبت"},2,0)) ->  | BB1: =IF(BB2="","",VLOOKUP(TEXT(BB2,"DDD"),{"Sun","الأحد";"Mon","الإثنين";"Tue","الثلاثاء";"Wed","الأربعاء";"Thu","الخميس";"Fri","الجمعة";"Sat","السّبت"},2,0)) ->  | BC1: =IF(BC2="","",VLOOKUP(TEXT(BC2,"DDD"),{"Sun","الأحد";"Mon","الإثنين";"Tue","الثلاثاء";"Wed","الأربعاء";"Thu","الخميس";"Fri","الجمعة";"Sat","السّبت"},2,0)) ->  | BD1: =IF(BD2="","",VLOOKUP(TEXT(BD2,"DDD"),{"Sun","الأحد";"Mon","الإثنين";"Tue","الثلاثاء";"Wed","الأربعاء";"Thu","الخميس";"Fri","الجمعة";"Sat","السّبت"},2,0)) ->  | BE1: =IF(BE2="","",VLOOKUP(TEXT(BE2,"DDD"),{"Sun","الأحد";"Mon","الإثنين";"Tue","الثلاثاء";"Wed","الأربعاء";"Thu","الخميس";"Fri","الجمعة";"Sat","السّبت"},2,0)) ->  | BF1: =IF(BF2="","",VLOOKUP(TEXT(BF2,"DDD"),{"Sun","الأحد";"Mon","الإثنين";"Tue","الثلاثاء";"Wed","الأربعاء";"Thu","الخميس";"Fri","الجمعة";"Sat","السّبت"},2,0)) ->  | BG1: =IF(BG2="","",VLOOKUP(TEXT(BG2,"DDD"),{"Sun","الأحد";"Mon","الإثنين";"Tue","الثلاثاء";"Wed","الأربعاء";"Thu","الخميس";"Fri","الجمعة";"Sat","السّبت"},2,0)) ->  | BH1: =IF(BH2="","",VLOOKUP(TEXT(BH2,"DDD"),{"Sun","الأحد";"Mon","الإثنين";"Tue","الثلاثاء";"Wed","الأربعاء";"Thu","الخميس";"Fri","الجمعة";"Sat","السّبت"},2,0)) ->  | BI1: =IF(BI2="","",VLOOKUP(TEXT(BI2,"DDD"),{"Sun","الأحد";"Mon","الإثنين";"Tue","الثلاثاء";"Wed","الأربعاء";"Thu","الخميس";"Fri","الجمعة";"Sat","السّبت"},2,0)) ->  | BJ1: =IF(BJ2="","",VLOOKUP(TEXT(BJ2,"DDD"),{"Sun","الأحد";"Mon","الإثنين";"Tue","الثلاثاء";"Wed","الأربعاء";"Thu","الخميس";"Fri","الجمعة";"Sat","السّبت"},2,0)) ->  | BK1: =IF(BK2="","",VLOOKUP(TEXT(BK2,"DDD"),{"Sun","الأحد";"Mon","الإثنين";"Tue","الثلاثاء";"Wed","الأربعاء";"Thu","الخميس";"Fri","الجمعة";"Sat","السّبت"},2,0)) ->  | BL1: =IF(BL2="","",VLOOKUP(TEXT(BL2,"DDD"),{"Sun","الأحد";"Mon","الإثنين";"Tue","الثلاثاء";"Wed","الأربعاء";"Thu","الخميس";"Fri","الجمعة";"Sat","السّبت"},2,0)) ->  | BM1: =IF(BM2="","",VLOOKUP(TEXT(BM2,"DDD"),{"Sun","الأحد";"Mon","الإثنين";"Tue","الثلاثاء";"Wed","الأربعاء";"Thu","الخميس";"Fri","الجمعة";"Sat","السّبت"},2,0)) ->  | BN1: =IF(BN2="","",VLOOKUP(TEXT(BN2,"DDD"),{"Sun","الأحد";"Mon","الإثنين";"Tue","الثلاثاء";"Wed","الأربعاء";"Thu","الخميس";"Fri","الجمعة";"Sat","السّبت"},2,0)) ->  | BO1: =IF(BO2="","",VLOOKUP(TEXT(BO2,"DDD"),{"Sun","الأحد";"Mon","الإثنين";"Tue","الثلاثاء";"Wed","الأربعاء";"Thu","الخميس";"Fri","الجمعة";"Sat","السّبت"},2,0)) ->  | BP1: =IF(BP2="","",VLOOKUP(TEXT(BP2,"DDD"),{"Sun","الأحد";"Mon","الإثنين";"Tue","الثلاثاء";"Wed","الأربعاء";"Thu","الخميس";"Fri","الجمعة";"Sat","السّبت"},2,0)) ->  | BQ1: =IF(BQ2="","",VLOOKUP(TEXT(BQ2,"DDD"),{"Sun","الأحد";"Mon","الإثنين";"Tue","الثلاثاء";"Wed","الأربعاء";"Thu","الخميس";"Fri","الجمعة";"Sat","السّبت"},2,0)) ->  | BR1: =IF(BR2="","",VLOOKUP(TEXT(BR2,"DDD"),{"Sun","الأحد";"Mon","الإثنين";"Tue","الثلاثاء";"Wed","الأربعاء";"Thu","الخميس";"Fri","الجمعة";"Sat","السّبت"},2,0)) ->  | BS1: =IF(BS2="","",VLOOKUP(TEXT(BS2,"DDD"),{"Sun","الأحد";"Mon","الإثنين";"Tue","الثلاثاء";"Wed","الأربعاء";"Thu","الخميس";"Fri","الجمعة";"Sat","السّبت"},2,0)) ->  | BT1: =IF(BT2="","",VLOOKUP(TEXT(BT2,"DDD"),{"Sun","الأحد";"Mon","الإثنين";"Tue","الثلاثاء";"Wed","الأربعاء";"Thu","الخميس";"Fri","الجمعة";"Sat","السّبت"},2,0)) -> 
A2: START DATE | B2: 2018-09-01 | C2: =IF(MAX(ROW(INDIRECT($B$2&":"&$B$2+ROWS($A$2:A2)-1)))>$B$3,"",MAX(ROW(INDIRECT($B$2&":"&$B$2+ROWS($A$2:A2)-1)))) -> 2018-09-01 | D2: =IF($C2="","",AND(COUNTIF(K:K,C2)=0,NOT(OR(TEXT(C2,"DDD")=$L$2,TEXT(C2,"DDD")=$L$3))*1=1)*1) -> 1 | E2: =IF(ISNA(MATCH(MAX(ROW(INDIRECT($B$2&":"&$B$2+ROWS($A$2:A2)-1))),INDIRECT("$J$1:$J$"&COUNT(K:K)),0)),$B$2+ROWS($A$2:A2)-1,$B$3+20) -> 2018-09-01 | H2: الأحد | I2: 2018-09-10 | J2: 2018-09-20 | K2: 2019-05-01 | R2: 2018-12-31
A3: END DATE | B3: 2019-06-30 | C3: =IF(MAX(ROW(INDIRECT($B$2&":"&$B$2+ROWS($A$2:A3)-1)))>$B$3,"",MAX(ROW(INDIRECT($B$2&":"&$B$2+ROWS($A$2:A3)-1)))) -> 2018-09-02 | D3: =IF($C3="","",AND(COUNTIF(K:K,C3)=0,NOT(OR(TEXT(C3,"DDD")=$L$2,TEXT(C3,"DDD")=$L$3))*1=1)*1) -> 1 | E3: =IF(ISNA(MATCH(MAX(ROW(INDIRECT($B$2&":"&$B$2+ROWS($A$2:A3)-1))),INDIRECT("$J$1:$J$"&COUNT(K:K)),0)),$B$2+ROWS($A$2:A3)-1,$B$3+20) -> 2018-09-02 | H3: السبت | I3: السنة الهجرية | J3: عيد الاضحى | K3: عيد العمال | R3: رأ س السنة
C4: =IF(MAX(ROW(INDIRECT($B$2&":"&$B$2+ROWS($A$2:A4)-1)))>$B$3,"",MAX(ROW(INDIRECT($B$2&":"&$B$2+ROWS($A$2:A4)-1)))) -> 2018-09-03 | D4: 1 | E4: =IF(ISNA(MATCH(MAX(ROW(INDIRECT($B$2&":"&$B$2+ROWS($A$2:A4)-1))),INDIRECT("$J$1:$J$"&COUNT(K:K)),0)),$B$2+ROWS($A$2:A4)-1,$B$3+20) -> 2018-09-03
A5: =SUM($A$6:$A$12) -> 211 | B5: Count | C5: =IF(MAX(ROW(INDIRECT($B$2&":"&$B$2+ROWS($A$2:A5)-1)))>$B$3,"",MAX(ROW(INDIRECT($B$2&":"&$B$2+ROWS($A$2:A5)-1)))) -> 2018-09-04 | D5: 1 | E5: =IF(ISNA(MATCH(MAX(ROW(INDIRECT($B$2&":"&$B$2+ROWS($A$2:A5)-1))),INDIRECT("$J$1:$J$"&COUNT(K:K)),0)),$B$2+ROWS($A$2:A5)-1,$B$3+20) -> 2018-09-04
A6: =COUNTIF($H$9:$BZ$41,$B6) -> 0 | B6: الأحد | C6: =IF(MAX(ROW(INDIRECT($B$2&":"&$B$2+ROWS($A$2:A6)-1)))>$B$3,"",MAX(ROW(INDIRECT($B$2&":"&$B$2+ROWS($A$2:A6)-1)))) -> 2018-09-05 | D6: 1 | E6: =IF(ISNA(MATCH(MAX(ROW(INDIRECT($B$2&":"&$B$2+ROWS($A$2:A6)-1))),INDIRECT("$J$1:$J$"&COUNT(K:K)),0)),$B$2+ROWS($A$2:A6)-1,$B$3+20) -> 2018-09-05 | J6: 211 | K6: Total Days
A7: =COUNTIF($H$9:$BZ$41,$B7) -> 41 | B7: الإثنين | C7: =IF(MAX(ROW(INDIRECT($B$2&":"&$B$2+ROWS($A$2:A7)-1)))>$B$3,"",MAX(ROW(INDIRECT($B$2&":"&$B$2+ROWS($A$2:A7)-1)))) -> 2018-09-06 | D7: 1 | E7: =IF(ISNA(MATCH(MAX(ROW(INDIRECT($B$2&":"&$B$2+ROWS($A$2:A7)-1))),INDIRECT("$J$1:$J$"&COUNT(K:K)),0)),$B$2+ROWS($A$2:A7)-1,$B$3+20) -> 2018-09-06
A8: 43 | B8: الثلاثاء | C8: =IF(MAX(ROW(INDIRECT($B$2&":"&$B$2+ROWS($A$2:A8)-1)))>$B$3,"",MAX(ROW(INDIRECT($B$2&":"&$B$2+ROWS($A$2:A8)-1)))) -> 2018-09-07 | D8: 1 | E8: =IF(ISNA(MATCH(MAX(ROW(INDIRECT($B$2&":"&$B$2+ROWS($A$2:A8)-1))),INDIRECT("$J$1:$J$"&COUNT(K:K)),0)),$B$2+ROWS($A$2:A8)-1,$B$3+20) -> 2018-09-07 | H8: 18 | J8: 23 | L8: 22 | N8: 20 | P8: 23 | R8: 20 | T8: 21 | V8: 22 | X8: 22 | Z8: 20
A9: 42 | B9: الأربعاء | C9: =IF(MAX(ROW(INDIRECT($B$2&":"&$B$2+ROWS($A$2:A9)-1)))>$B$3,"",MAX(ROW(INDIRECT($B$2&":"&$B$2+ROWS($A$2:A9)-1)))) -> 2018-09-08 | D9: 1 | E9: =IF(ISNA(MATCH(MAX(ROW(INDIRECT($B$2&":"&$B$2+ROWS($A$2:A9)-1))),INDIRECT("$J$1:$J$"&COUNT(K:K)),0)),$B$2+ROWS($A$2:A9)-1,$B$3+20) -> 2018-09-08 | H9: أيلول | I9: 2018 | J9: تشرين الأوّل | K9: 2018 | L9: تشرين الثّاني | M9: 2018 | N9: كانون الأوّل | O9: 2018 | P9: كانون الثّاني | Q9: 2019 | R9: شباط | S9: 2019 | T9: آذار | U9: 2019 | V9: نيسان | W9: 2019 | X9: أيّار | Y9: 2019 | Z9: حزيران | AA9: 2019
A10: 42 | B10: الخميس | C10: =IF(MAX(ROW(INDIRECT($B$2&":"&$B$2+ROWS($A$2:A10)-1)))>$B$3,"",MAX(ROW(INDIRECT($B$2&":"&$B$2+ROWS($A$2:A10)-1)))) -> 2018-09-09 | D10: 1 | E10: =IF(ISNA(MATCH(MAX(ROW(INDIRECT($B$2&":"&$B$2+ROWS($A$2:A10)-1))),INDIRECT("$J$1:$J$"&COUNT(K:K)),0)),$B$2+ROWS($A$2:A10)-1,$B$3+20) -> 2018-09-09 | H10: 2018-09-03 | I10: الإثنين | J10: 2018-10-01 | K10: الإثنين | L10: 2018-11-01 | M10: الخميس | N10: 2018-12-03 | O10: الإثنين | P10: 2019-01-01 | Q10: الثلاثاء | R10: 2019-02-01 | S10: الجمعة | T10: 2019-03-01 | U10: الجمعة | V10: 2019-04-01 | W10: الإثنين | X10: 2019-05-02 | Y10: الخميس | Z10: 2019-06-03 | AA10: الإثنين
A11: 43 | B11: الجمعة | C11: =IF(MAX(ROW(INDIRECT($B$2&":"&$B$2+ROWS($A$2:A11)-1)))>$B$3,"",MAX(ROW(INDIRECT($B$2&":"&$B$2+ROWS($A$2:A11)-1)))) -> 2018-09-10 | D11: 1 | E11: =IF(ISNA(MATCH(MAX(ROW(INDIRECT($B$2&":"&$B$2+ROWS($A$2:A11)-1))),INDIRECT("$J$1:$J$"&COUNT(K:K)),0)),$B$2+ROWS($A$2:A11)-1,$B$3+20) -> 2018-09-10 | H11: 2018-09-04 | I11: الثلاثاء | J11: 2018-10-02 | K11: الثلاثاء | L11: 2018-11-02 | M11: الجمعة | N11: 2018-12-04 | O11: الثلاثاء | P11: 2019-01-02 | Q11: الأربعاء | R11: 2019-02-04 | S11: الإثنين | T11: 2019-03-04 | U11: الإثنين | V11: 2019-04-02 | W11: الثلاثاء | X11: 2019-05-03 | Y11: الجمعة | Z11: 2019-06-04 | AA11: الثلاثاء
A12: 0 | B12: السبت | C12: =IF(MAX(ROW(INDIRECT($B$2&":"&$B$2+ROWS($A$2:A12)-1)))>$B$3,"",MAX(ROW(INDIRECT($B$2&":"&$B$2+ROWS($A$2:A12)-1)))) -> 2018-09-11 | D12: 1 | E12: =IF(ISNA(MATCH(MAX(ROW(INDIRECT($B$2&":"&$B$2+ROWS($A$2:A12)-1))),INDIRECT("$J$1:$J$"&COUNT(K:K)),0)),$B$2+ROWS($A$2:A12)-1,$B$3+20) -> 2018-09-11 | H12: 2018-09-05 | I12: الأربعاء | J12: 2018-10-03 | K12: الأربعاء | L12: 2018-11-05 | M12: الإثنين | N12: 2018-12-05 | O12: الأربعاء | P12: 2019-01-03 | Q12: الخميس | R12: 2019-02-05 | S12: الثلاثاء | T12: 2019-03-05 | U12: الثلاثاء | V12: 2019-04-03 | W12: الأربعاء | X12: 2019-05-06 | Y12: الإثنين | Z12: 2019-06-05 | AA12: الأربعاء
C13: =IF(MAX(ROW(INDIRECT($B$2&":"&$B$2+ROWS($A$2:A13)-1)))>$B$3,"",MAX(ROW(INDIRECT($B$2&":"&$B$2+ROWS($A$2:A13)-1)))) -> 2018-09-12 | D13: 1 | E13: =IF(ISNA(MATCH(MAX(ROW(INDIRECT($B$2&":"&$B$2+ROWS($A$2:A13)-1))),INDIRECT("$J$1:$J$"&COUNT(K:K)),0)),$B$2+ROWS($A$2:A13)-1,$B$3+20) -> 2018-09-12 | H13: 2018-09-06 | I13: الخميس | J13: 2018-10-04 | K13: الخميس | L13: 2018-11-06 | M13: الثلاثاء | N13: 2018-12-06 | O13: الخميس | P13: 2019-01-04 | Q13: الجمعة | R13: 2019-02-06 | S13: الأربعاء | T13: 2019-03-06 | U13: الأربعاء | V13: 2019-04-04 | W13: الخميس | X13: 2019-05-07 | Y13: الثلاثاء | Z13: 2019-06-06 | AA13: الخميس
C14: =IF(MAX(ROW(INDIRECT($B$2&":"&$B$2+ROWS($A$2:A14)-1)))>$B$3,"",MAX(ROW(INDIRECT($B$2&":"&$B$2+ROWS($A$2:A14)-1)))) -> 2018-09-13 | D14: 1 | E14: =IF(ISNA(MATCH(MAX(ROW(INDIRECT($B$2&":"&$B$2+ROWS($A$2:A14)-1))),INDIRECT("$J$1:$J$"&COUNT(K:K)),0)),$B$2+ROWS($A$2:A14)-1,$B$3+20) -> 2018-09-13 | H14: 2018-09-07 | I14: الجمعة | J14: 2018-10-05 | K14: الجمعة | L14: 2018-11-07 | M14: الأربعاء | N14: 2018-12-07 | O14: الجمعة | P14: 2019-01-07 | Q14: الإثنين | R14: 2019-02-07 | S14: الخميس | T14: 2019-03-07 | U14: الخميس | V14: 2019-04-05 | W14: الجمعة | X14: 2019-05-08 | Y14: الأربعاء | Z14: 2019-06-07 | AA14: الجمعة
C15: =IF(MAX(ROW(INDIRECT($B$2&":"&$B$2+ROWS($A$2:A15)-1)))>$B$3,"",MAX(ROW(INDIRECT($B$2&":"&$B$2+ROWS($A$2:A15)-1)))) -> 2018-09-14 | D15: 1 | E15: =IF(ISNA(MATCH(MAX(ROW(INDIRECT($B$2&":"&$B$2+ROWS($A$2:A15)-1))),INDIRECT("$J$1:$J$"&COUNT(K:K)),0)),$B$2+ROWS($A$2:A15)-1,$B$3+20) -> 2018-09-14 | H15: 2018-09-11 | I15: الثلاثاء | J15: 2018-10-08 | K15: الإثنين | L15: 2018-11-08 | M15: الخميس | N15: 2018-12-10 | O15: الإثنين | P15: 2019-01-08 | Q15: الثلاثاء | R15: 2019-02-08 | S15: الجمعة | T15: 2019-03-08 | U15: الجمعة | V15: 2019-04-08 | W15: الإثنين | X15: 2019-05-09 | Y15: الخميس | Z15: 2019-06-10 | AA15: الإثنين
C16: =IF(MAX(ROW(INDIRECT($B$2&":"&$B$2+ROWS($A$2:A16)-1)))>$B$3,"",MAX(ROW(INDIRECT($B$2&":"&$B$2+ROWS($A$2:A16)-1)))) -> 2018-09-15 | D16: 1 | E16: =IF(ISNA(MATCH(MAX(ROW(INDIRECT($B$2&":"&$B$2+ROWS($A$2:A16)-1))),INDIRECT("$J$1:$J$"&COUNT(K:K)),0)),$B$2+ROWS($A$2:A16)-1,$B$3+20) -> 2018-09-15 | H16: 2018-09-12 | I16: الأربعاء | J16: 2018-10-09 | K16: الثلاثاء | L16: 2018-11-09 | M16: الجمعة | N16: 2018-12-11 | O16: الثلاثاء | P16: 2019-01-09 | Q16: الأربعاء | R16: 2019-02-11 | S16: الإثنين | T16: 2019-03-11 | U16: الإثنين | V16: 2019-04-09 | W16: الثلاثاء | X16: 2019-05-10 | Y16: الجمعة | Z16: 2019-06-11 | AA16: الثلاثاء
C17: =IF(MAX(ROW(INDIRECT($B$2&":"&$B$2+ROWS($A$2:A17)-1)))>$B$3,"",MAX(ROW(INDIRECT($B$2&":"&$B$2+ROWS($A$2:A17)-1)))) -> 2018-09-16 | D17: 1 | E17: =IF(ISNA(MATCH(MAX(ROW(INDIRECT($B$2&":"&$B$2+ROWS($A$2:A17)-1))),INDIRECT("$J$1:$J$"&COUNT(K:K)),0)),$B$2+ROWS($A$2:A17)-1,$B$3+20) -> 2018-09-16 | H17: 2018-09-13 | I17: الخميس | J17: 2018-10-10 | K17: الأربعاء | L17: 2018-11-12 | M17: الإثنين | N17: 2018-12-12 | O17: الأربعاء | P17: 2019-01-10 | Q17: الخميس | R17: 2019-02-12 | S17: الثلاثاء | T17: 2019-03-12 | U17: الثلاثاء | V17: 2019-04-10 | W17: الأربعاء | X17: 2019-05-13 | Y17: الإثنين | Z17: 2019-06-12 | AA17: الأربعاء
C18: =IF(MAX(ROW(INDIRECT($B$2&":"&$B$2+ROWS($A$2:A18)-1)))>$B$3,"",MAX(ROW(INDIRECT($B$2&":"&$B$2+ROWS($A$2:A18)-1)))) -> 2018-09-17 | D18: 1 | E18: =IF(ISNA(MATCH(MAX(ROW(INDIRECT($B$2&":"&$B$2+ROWS($A$2:A18)-1))),INDIRECT("$J$1:$J$"&COUNT(K:K)),0)),$B$2+ROWS($A$2:A18)-1,$B$3+20) -> 2018-09-17 | H18: 2018-09-14 | I18: الجمعة | J18: 2018-10-11 | K18: الخميس | L18: 2018-11-13 | M18: الثلاثاء | N18: 2018-12-13 | O18: الخميس | P18: 2019-01-11 | Q18: الجمعة | R18: 2019-02-13 | S18: الأربعاء | T18: 2019-03-13 | U18: الأربعاء | V18: 2019-04-11 | W18: الخميس | X18: 2019-05-14 | Y18: الثلاثاء | Z18: 2019-06-13 | AA18: الخميس
C19: =IF(MAX(ROW(INDIRECT($B$2&":"&$B$2+ROWS($A$2:A19)-1)))>$B$3,"",MAX(ROW(INDIRECT($B$2&":"&$B$2+ROWS($A$2:A19)-1)))) -> 2018-09-18 | D19: 1 | E19: =IF(ISNA(MATCH(MAX(ROW(INDIRECT($B$2&":"&$B$2+ROWS($A$2:A19)-1))),INDIRECT("$J$1:$J$"&COUNT(K:K)),0)),$B$2+ROWS($A$2:A19)-1,$B$3+20) -> 2018-09-18 | H19: 2018-09-17 | I19: الإثنين | J19: 2018-10-12 | K19: الجمعة | L19: 2018-11-14 | M19: الأربعاء | N19: 2018-12-14 | O19: الجمعة | P19: 2019-01-14 | Q19: الإثنين | R19: 2019-02-14 | S19: الخميس | T19: 2019-03-14 | U19: الخميس | V19: 2019-04-12 | W19: الجمعة | X19: 2019-05-15 | Y19: الأربعاء | Z19: 2019-06-14 | AA19: الجمعة
C20: =IF(MAX(ROW(INDIRECT($B$2&":"&$B$2+ROWS($A$2:A20)-1)))>$B$3,"",MAX(ROW(INDIRECT($B$2&":"&$B$2+ROWS($A$2:A20)-1)))) -> 2018-09-19 | D20: 1 | E20: =IF(ISNA(MATCH(MAX(ROW(INDIRECT($B$2&":"&$B$2+ROWS($A$2:A20)-1))),INDIRECT("$J$1:$J$"&COUNT(K:K)),0)),$B$2+ROWS($A$2:A20)-1,$B$3+20) -> 2018-09-19 | H20: 2018-09-18 | I20: الثلاثاء | J20: 2018-10-15 | K20: الإثنين | L20: 2018-11-15 | M20: الخميس | N20: 2018-12-17 | O20: الإثنين | P20: 2019-01-15 | Q20: الثلاثاء | R20: 2019-02-15 | S20: الجمعة | T20: 2019-03-15 | U20: الجمعة | V20: 2019-04-15 | W20: الإثنين | X20: 2019-05-16 | Y20: الخميس | Z20: 2019-06-17 | AA20: الإثنين
C21: =IF(MAX(ROW(INDIRECT($B$2&":"&$B$2+ROWS($A$2:A21)-1)))>$B$3,"",MAX(ROW(INDIRECT($B$2&":"&$B$2+ROWS($A$2:A21)-1)))) -> 2018-09-20 | D21: 1 | E21: =IF(ISNA(MATCH(MAX(ROW(INDIRECT($B$2&":"&$B$2+ROWS($A$2:A21)-1))),INDIRECT("$J$1:$J$"&COUNT(K:K)),0)),$B$2+ROWS($A$2:A21)-1,$B$3+20) -> 2019-07-20 | H21: 2018-09-19 | I21: الأربعاء | J21: 2018-10-16 | K21: الثلاثاء | L21: 2018-11-16 | M21: الجمعة | N21: 2018-12-18 | O21: الثلاثاء | P21: 2019-01-16 | Q21: الأربعاء | R21: 2019-02-18 | S21: الإثنين | T21: 2019-03-18 | U21: الإثنين | V21: 2019-04-16 | W21: الثلاثاء | X21: 2019-05-17 | Y21: الجمعة | Z21: 2019-06-18 | AA21: الثلاثاء
C22: =IF(MAX(ROW(INDIRECT($B$2&":"&$B$2+ROWS($A$2:A22)-1)))>$B$3,"",MAX(ROW(INDIRECT($B$2&":"&$B$2+ROWS($A$2:A22)-1)))) -> 2018-09-21 | D22: 1 | E22: =IF(ISNA(MATCH(MAX(ROW(INDIRECT($B$2&":"&$B$2+ROWS($A$2:A22)-1))),INDIRECT("$J$1:$J$"&COUNT(K:K)),0)),$B$2+ROWS($A$2:A22)-1,$B$3+20) -> 2018-09-21 | H22: 2018-09-21 | I22: الجمعة | J22: 2018-10-17 | K22: الأربعاء | L22: 2018-11-19 | M22: الإثنين | N22: 2018-12-19 | O22: الأربعاء | P22: 2019-01-17 | Q22: الخميس | R22: 2019-02-19 | S22: الثلاثاء | T22: 2019-03-19 | U22: الثلاثاء | V22: 2019-04-17 | W22: الأربعاء | X22: 2019-05-20 | Y22: الإثنين | Z22: 2019-06-19 | AA22: الأربعاء
C23: =IF(MAX(ROW(INDIRECT($B$2&":"&$B$2+ROWS($A$2:A23)-1)))>$B$3,"",MAX(ROW(INDIRECT($B$2&":"&$B$2+ROWS($A$2:A23)-1)))) -> 2018-09-22 | D23: 1 | E23: =IF(ISNA(MATCH(MAX(ROW(INDIRECT($B$2&":"&$B$2+ROWS($A$2:A23)-1))),INDIRECT("$J$1:$J$"&COUNT(K:K)),0)),$B$2+ROWS($A$2:A23)-1,$B$3+20) -> 2018-09-22 | H23: 2018-09-24 | I23: الإثنين | J23: 2018-10-18 | K23: الخميس | L23: 2018-11-20 | M23: الثلاثاء | N23: 2018-12-20 | O23: الخميس | P23: 2019-01-18 | Q23: الجمعة | R23: 2019-02-20 | S23: الأربعاء | T23: 2019-03-20 | U23: الأربعاء | V23: 2019-04-18 | W23: الخميس | X23: 2019-05-21 | Y23: الثلاثاء | Z23: 2019-06-20 | AA23: الخميس
C24: =IF(MAX(ROW(INDIRECT($B$2&":"&$B$2+ROWS($A$2:A24)-1)))>$B$3,"",MAX(ROW(INDIRECT($B$2&":"&$B$2+ROWS($A$2:A24)-1)))) -> 2018-09-23 | D24: 1 | E24: =IF(ISNA(MATCH(MAX(ROW(INDIRECT($B$2&":"&$B$2+ROWS($A$2:A24)-1))),INDIRECT("$J$1:$J$"&COUNT(K:K)),0)),$B$2+ROWS($A$2:A24)-1,$B$3+20) -> 2018-09-23 | H24: 2018-09-25 | I24: الثلاثاء | J24: 2018-10-19 | K24: الجمعة | L24: 2018-11-21 | M24: الأربعاء | N24: 2018-12-21 | O24: الجمعة | P24: 2019-01-21 | Q24: الإثنين | R24: 2019-02-21 | S24: الخميس | T24: 2019-03-21 | U24: الخميس | V24: 2019-04-19 | W24: الجمعة | X24: 2019-05-22 | Y24: الأربعاء | Z24: 2019-06-21 | AA24: الجمعة
C25: =IF(MAX(ROW(INDIRECT($B$2&":"&$B$2+ROWS($A$2:A25)-1)))>$B$3,"",MAX(ROW(INDIRECT($B$2&":"&$B$2+ROWS($A$2:A25)-1)))) -> 2018-09-24 | D25: 1 | E25: =IF(ISNA(MATCH(MAX(ROW(INDIRECT($B$2&":"&$B$2+ROWS($A$2:A25)-1))),INDIRECT("$J$1:$J$"&COUNT(K:K)),0)),$B$2+ROWS($A$2:A25)-1,$B$3+20) -> 2018-09-24 | H25: 2018-09-26 | I25: الأربعاء | J25: 2018-10-22 | K25: الإثنين | L25: 2018-11-22 | M25: الخميس | N25: 2018-12-24 | O25: الإثنين | P25: 2019-01-22 | Q25: الثلاثاء | R25: 2019-02-22 | S25: الجمعة | T25: 2019-03-22 | U25: الجمعة | V25: 2019-04-22 | W25: الإثنين | X25: 2019-05-23 | Y25: الخميس | Z25: 2019-06-24 | AA25: الإثنين
C26: =IF(MAX(ROW(INDIRECT($B$2&":"&$B$2+ROWS($A$2:A26)-1)))>$B$3,"",MAX(ROW(INDIRECT($B$2&":"&$B$2+ROWS($A$2:A26)-1)))) -> 2018-09-25 | D26: 1 | E26: =IF(ISNA(MATCH(MAX(ROW(INDIRECT($B$2&":"&$B$2+ROWS($A$2:A26)-1))),INDIRECT("$J$1:$J$"&COUNT(K:K)),0)),$B$2+ROWS($A$2:A26)-1,$B$3+20) -> 2018-09-25 | H26: 2018-09-27 | I26: الخميس | J26: 2018-10-23 | K26: الثلاثاء | L26: 2018-11-23 | M26: الجمعة | N26: 2018-12-25 | O26: الثلاثاء | P26: 2019-01-23 | Q26: الأربعاء | R26: 2019-02-25 | S26: الإثنين | T26: 2019-03-25 | U26: الإثنين | V26: 2019-04-23 | W26: الثلاثاء | X26: 2019-05-24 | Y26: الجمعة | Z26: 2019-06-25 | AA26: الثلاثاء
C27: =IF(MAX(ROW(INDIRECT($B$2&":"&$B$2+ROWS($A$2:A27)-1)))>$B$3,"",MAX(ROW(INDIRECT($B$2&":"&$B$2+ROWS($A$2:A27)-1)))) -> 2018-09-26 | D27: 1 | E27: =IF(ISNA(MATCH(MAX(ROW(INDIRECT($B$2&":"&$B$2+ROWS($A$2:A27)-1))),INDIRECT("$J$1:$J$"&COUNT(K:K)),0)),$B$2+ROWS($A$2:A27)-1,$B$3+20) -> 2018-09-26 | H27: 2018-09-28 | I27: الجمعة | J27: 2018-10-24 | K27: الأربعاء | L27: 2018-11-26 | M27: الإثنين | N27: 2018-12-26 | O27: الأربعاء | P27: 2019-01-24 | Q27: الخميس | R27: 2019-02-26 | S27: الثلاثاء | T27: 2019-03-26 | U27: الثلاثاء | V27: 2019-04-24 | W27: الأربعاء | X27: 2019-05-27 | Y27: الإثنين | Z27: 2019-06-26 | AA27: الأربعاء
C28: =IF(MAX(ROW(INDIRECT($B$2&":"&$B$2+ROWS($A$2:A28)-1)))>$B$3,"",MAX(ROW(INDIRECT($B$2&":"&$B$2+ROWS($A$2:A28)-1)))) -> 2018-09-27 | D28: 1 | E28: =IF(ISNA(MATCH(MAX(ROW(INDIRECT($B$2&":"&$B$2+ROWS($A$2:A28)-1))),INDIRECT("$J$1:$J$"&COUNT(K:K)),0)),$B$2+ROWS($A$2:A28)-1,$B$3+20) -> 2018-09-27 | J28: 2018-10-25 | K28: الخميس | L28: 2018-11-27 | M28: الثلاثاء | N28: 2018-12-27 | O28: الخميس | P28: 2019-01-25 | Q28: الجمعة | R28: 2019-02-27 | S28: الأربعاء | T28: 2019-03-27 | U28: الأربعاء | V28: 2019-04-25 | W28: الخميس | X28: 2019-05-28 | Y28: الثلاثاء | Z28: 2019-06-27 | AA28: الخميس
C29: =IF(MAX(ROW(INDIRECT($B$2&":"&$B$2+ROWS($A$2:A29)-1)))>$B$3,"",MAX(ROW(INDIRECT($B$2&":"&$B$2+ROWS($A$2:A29)-1)))) -> 2018-09-28 | D29: 1 | E29: =IF(ISNA(MATCH(MAX(ROW(INDIRECT($B$2&":"&$B$2+ROWS($A$2:A29)-1))),INDIRECT("$J$1:$J$"&COUNT(K:K)),0)),$B$2+ROWS($A$2:A29)-1,$B$3+20) -> 2018-09-28 | J29: 2018-10-26 | K29: الجمعة | L29: 2018-11-28 | M29: الأربعاء | N29: 2018-12-28 | O29: الجمعة | P29: 2019-01-28 | Q29: الإثنين | R29: 2019-02-28 | S29: الخميس | T29: 2019-03-28 | U29: الخميس | V29: 2019-04-26 | W29: الجمعة | X29: 2019-05-29 | Y29: الأربعاء | Z29: 2019-06-28 | AA29: الجمعة
C30: =IF(MAX(ROW(INDIRECT($B$2&":"&$B$2+ROWS($A$2:A30)-1)))>$B$3,"",MAX(ROW(INDIRECT($B$2&":"&$B$2+ROWS($A$2:A30)-1)))) -> 2018-09-29 | D30: 1 | E30: =IF(ISNA(MATCH(MAX(ROW(INDIRECT($B$2&":"&$B$2+ROWS($A$2:A30)-1))),INDIRECT("$J$1:$J$"&COUNT(K:K)),0)),$B$2+ROWS($A$2:A30)-1,$B$3+20) -> 2018-09-29 | J30: 2018-10-29 | K30: الإثنين | L30: 2018-11-29 | M30: الخميس | P30: 2019-01-29 | Q30: الثلاثاء | T30: 2019-03-29 | U30: الجمعة | V30: 2019-04-29 | W30: الإثنين | X30: 2019-05-30 | Y30: الخميس
C31: =IF(MAX(ROW(INDIRECT($B$2&":"&$B$2+ROWS($A$2:A31)-1)))>$B$3,"",MAX(ROW(INDIRECT($B$2&":"&$B$2+ROWS($A$2:A31)-1)))) -> 2018-09-30 | D31: 1 | E31: =IF(ISNA(MATCH(MAX(ROW(INDIRECT($B$2&":"&$B$2+ROWS($A$2:A31)-1))),INDIRECT("$J$1:$J$"&COUNT(K:K)),0)),$B$2+ROWS($A$2:A31)-1,$B$3+20) -> 2018-09-30 | J31: 2018-10-30 | K31: الثلاثاء | L31: 2018-11-30 | M31: الجمعة | P31: 2019-01-30 | Q31: الأربعاء | V31: 2019-04-30 | W31: الثلاثاء | X31: 2019-05-31 | Y31: الجمعة
C32: =IF(MAX(ROW(INDIRECT($B$2&":"&$B$2+ROWS($A$2:A32)-1)))>$B$3,"",MAX(ROW(INDIRECT($B$2&":"&$B$2+ROWS($A$2:A32)-1)))) -> 2018-10-01 | D32: 1 | E32: =IF(ISNA(MATCH(MAX(ROW(INDIRECT($B$2&":"&$B$2+ROWS($A$2:A32)-1))),INDIRECT("$J$1:$J$"&COUNT(K:K)),0)),$B$2+ROWS($A$2:A32)-1,$B$3+20) -> 2018-10-01 | J32: 2018-10-31 | K32: الأربعاء | P32: 2019-01-31 | Q32: الخميس
C33: =IF(MAX(ROW(INDIRECT($B$2&":"&$B$2+ROWS($A$2:A33)-1)))>$B$3,"",MAX(ROW(INDIRECT($B$2&":"&$B$2+ROWS($A$2:A33)-1)))) -> 2018-10-02 | D33: 1 | E33: =IF(ISNA(MATCH(MAX(ROW(INDIRECT($B$2&":"&$B$2+ROWS($A$2:A33)-1))),INDIRECT("$J$1:$J$"&COUNT(K:K)),0)),$B$2+ROWS($A$2:A33)-1,$B$3+20) -> 2018-10-02
C34: =IF(MAX(ROW(INDIRECT($B$2&":"&$B$2+ROWS($A$2:A34)-1)))>$B$3,"",MAX(ROW(INDIRECT($B$2&":"&$B$2+ROWS($A$2:A34)-1)))) -> 2018-10-03 | D34: 1 | E34: =IF(ISNA(MATCH(MAX(ROW(INDIRECT($B$2&":"&$B$2+ROWS($A$2:A34)-1))),INDIRECT("$J$1:$J$"&COUNT(K:K)),0)),$B$2+ROWS($A$2:A34)-1,$B$3+20) -> 2018-10-03
C35: =IF(MAX(ROW(INDIRECT($B$2&":"&$B$2+ROWS($A$2:A35)-1)))>$B$3,"",MAX(ROW(INDIRECT($B$2&":"&$B$2+ROWS($A$2:A35)-1)))) -> 2018-10-04 | D35: 1 | E35: =IF(ISNA(MATCH(MAX(ROW(INDIRECT($B$2&":"&$B$2+ROWS($A$2:A35)-1))),INDIRECT("$J$1:$J$"&COUNT(K:K)),0)),$B$2+ROWS($A$2:A35)-1,$B$3+20) -> 2018-10-04
C36: =IF(MAX(ROW(INDIRECT($B$2&":"&$B$2+ROWS($A$2:A36)-1)))>$B$3,"",MAX(ROW(INDIRECT($B$2&":"&$B$2+ROWS($A$2:A36)-1)))) -> 2018-10-05 | D36: 1 | E36: =IF(ISNA(MATCH(MAX(ROW(INDIRECT($B$2&":"&$B$2+ROWS($A$2:A36)-1))),INDIRECT("$J$1:$J$"&COUNT(K:K)),0)),$B$2+ROWS($A$2:A36)-1,$B$3+20) -> 2018-10-05
C37: =IF(MAX(ROW(INDIRECT($B$2&":"&$B$2+ROWS($A$2:A37)-1)))>$B$3,"",MAX(ROW(INDIRECT($B$2&":"&$B$2+ROWS($A$2:A37)-1)))) -> 2018-10-06 | D37: 1 | E37: =IF(ISNA(MATCH(MAX(ROW(INDIRECT($B$2&":"&$B$2+ROWS($A$2:A37)-1))),INDIRECT("$J$1:$J$"&COUNT(K:K)),0)),$B$2+ROWS($A$2:A37)-1,$B$3+20) -> 2018-10-06
C38: =IF(MAX(ROW(INDIRECT($B$2&":"&$B$2+ROWS($A$2:A38)-1)))>$B$3,"",MAX(ROW(INDIRECT($B$2&":"&$B$2+ROWS($A$2:A38)-1)))) -> 2018-10-07 | D38: 1 | E38: =IF(ISNA(MATCH(MAX(ROW(INDIRECT($B$2&":"&$B$2+ROWS($A$2:A38)-1))),INDIRECT("$J$1:$J$"&COUNT(K:K)),0)),$B$2+ROWS($A$2:A38)-1,$B$3+20) -> 2018-10-07
C39: =IF(MAX(ROW(INDIRECT($B$2&":"&$B$2+ROWS($A$2:A39)-1)))>$B$3,"",MAX(ROW(INDIRECT($B$2&":"&$B$2+ROWS($A$2:A39)-1)))) -> 2018-10-08 | D39: 1 | E39: =IF(ISNA(MATCH(MAX(ROW(INDIRECT($B$2&":"&$B$2+ROWS($A$2:A39)-1))),INDIRECT("$J$1:$J$"&COUNT(K:K)),0)),$B$2+ROWS($A$2:A39)-1,$B$3+20) -> 2018-10-08
C40: =IF(MAX(ROW(INDIRECT($B$2&":"&$B$2+ROWS($A$2:A40)-1)))>$B$3,"",MAX(ROW(INDIRECT($B$2&":"&$B$2+ROWS($A$2:A40)-1)))) -> 2018-10-09 | D40: 1 | E40: =IF(ISNA(MATCH(MAX(ROW(INDIRECT($B$2&":"&$B$2+ROWS($A$2:A40)-1))),INDIRECT("$J$1:$J$"&COUNT(K:K)),0)),$B$2+ROWS($A$2:A40)-1,$B$3+20) -> 2018-10-09
C41: =IF(MAX(ROW(INDIRECT($B$2&":"&$B$2+ROWS($A$2:A41)-1)))>$B$3,"",MAX(ROW(INDIRECT($B$2&":"&$B$2+ROWS($A$2:A41)-1)))) -> 2018-10-10 | D41: 1 | E41: =IF(ISNA(MATCH(MAX(ROW(INDIRECT($B$2&":"&$B$2+ROWS($A$2:A41)-1))),INDIRECT("$J$1:$J$"&COUNT(K:K)),0)),$B$2+ROWS($A$2:A41)-1,$B$3+20) -> 2018-10-10
C42: =IF(MAX(ROW(INDIRECT($B$2&":"&$B$2+ROWS($A$2:A42)-1)))>$B$3,"",MAX(ROW(INDIRECT($B$2&":"&$B$2+ROWS($A$2:A42)-1)))) -> 2018-10-11 | D42: 1 | E42: =IF(ISNA(MATCH(MAX(ROW(INDIRECT($B$2&":"&$B$2+ROWS($A$2:A42)-1))),INDIRECT("$J$1:$J$"&COUNT(K:K)),0)),$B$2+ROWS($A$2:A42)-1,$B$3+20) -> 2018-10-11
C43: =IF(MAX(ROW(INDIRECT($B$2&":"&$B$2+ROWS($A$2:A43)-1)))>$B$3,"",MAX(ROW(INDIRECT($B$2&":"&$B$2+ROWS($A$2:A43)-1)))) -> 2018-10-12 | D43: 1 | E43: =IF(ISNA(MATCH(MAX(ROW(INDIRECT($B$2&":"&$B$2+ROWS($A$2:A43)-1))),INDIRECT("$J$1:$J$"&COUNT(K:K)),0)),$B$2+ROWS($A$2:A43)-1,$B$3+20) -> 2018-10-12
C44: =IF(MAX(ROW(INDIRECT($B$2&":"&$B$2+ROWS($A$2:A44)-1)))>$B$3,"",MAX(ROW(INDIRECT($B$2&":"&$B$2+ROWS($A$2:A44)-1)))) -> 2018-10-13 | D44: 1 | E44: =IF(ISNA(MATCH(MAX(ROW(INDIRECT($B$2&":"&$B$2+ROWS($A$2:A44)-1))),INDIRECT("$J$1:$J$"&COUNT(K:K)),0)),$B$2+ROWS($A$2:A44)-1,$B$3+20) -> 2018-10-13
C45: =IF(MAX(ROW(INDIRECT($B$2&":"&$B$2+ROWS($A$2:A45)-1)))>$B$3,"",MAX(ROW(INDIRECT($B$2&":"&$B$2+ROWS($A$2:A45)-1)))) -> 2018-10-14 | D45: 1 | E45: =IF(ISNA(MATCH(MAX(ROW(INDIRECT($B$2&":"&$B$2+ROWS($A$2:A45)-1))),INDIRECT("$J$1:$J$"&COUNT(K:K)),0)),$B$2+ROWS($A$2:A45)-1,$B$3+20) -> 2018-10-14
C46: =IF(MAX(ROW(INDIRECT($B$2&":"&$B$2+ROWS($A$2:A46)-1)))>$B$3,"",MAX(ROW(INDIRECT($B$2&":"&$B$2+ROWS($A$2:A46)-1)))) -> 2018-10-15 | D46: 1 | E46: =IF(ISNA(MATCH(MAX(ROW(INDIRECT($B$2&":"&$B$2+ROWS($A$2:A46)-1))),INDIRECT("$J$1:$J$"&COUNT(K:K)),0)),$B$2+ROWS($A$2:A46)-1,$B$3+20) -> 2018-10-15
C47: =IF(MAX(ROW(INDIRECT($B$2&":"&$B$2+ROWS($A$2:A47)-1)))>$B$3,"",MAX(ROW(INDIRECT($B$2&":"&$B$2+ROWS($A$2:A47)-1)))) -> 2018-10-16 | D47: 1 | E47: =IF(ISNA(MATCH(MAX(ROW(INDIRECT($B$2&":"&$B$2+ROWS($A$2:A47)-1))),INDIRECT("$J$1:$J$"&COUNT(K:K)),0)),$B$2+ROWS($A$2:A47)-1,$B$3+20) -> 2018-10-16
C48: =IF(MAX(ROW(INDIRECT($B$2&":"&$B$2+ROWS($A$2:A48)-1)))>$B$3,"",MAX(ROW(INDIRECT($B$2&":"&$B$2+ROWS($A$2:A48)-1)))) -> 2018-10-17 | D48: 1 | E48: =IF(ISNA(MATCH(MAX(ROW(INDIRECT($B$2&":"&$B$2+ROWS($A$2:A48)-1))),INDIRECT("$J$1:$J$"&COUNT(K:K)),0)),$B$2+ROWS($A$2:A48)-1,$B$3+20) -> 2018-10-17
C49: =IF(MAX(ROW(INDIRECT($B$2&":"&$B$2+ROWS($A$2:A49)-1)))>$B$3,"",MAX(ROW(INDIRECT($B$2&":"&$B$2+ROWS($A$2:A49)-1)))) -> 2018-10-18 | D49: 1 | E49: =IF(ISNA(MATCH(MAX(ROW(INDIRECT($B$2&":"&$B$2+ROWS($A$2:A49)-1))),INDIRECT("$J$1:$J$"&COUNT(K:K)),0)),$B$2+ROWS($A$2:A49)-1,$B$3+20) -> 2018-10-18
C50: =IF(MAX(ROW(INDIRECT($B$2&":"&$B$2+ROWS($A$2:A50)-1)))>$B$3,"",MAX(ROW(INDIRECT($B$2&":"&$B$2+ROWS($A$2:A50)-1)))) -> 2018-10-19 | D50: 1 | E50: =IF(ISNA(MATCH(MAX(ROW(INDIRECT($B$2&":"&$B$2+ROWS($A$2:A50)-1))),INDIRECT("$J$1:$J$"&COUNT(K:K)),0)),$B$2+ROWS($A$2:A50)-1,$B$3+20) -> 2018-10-19
C51: =IF(MAX(ROW(INDIRECT($B$2&":"&$B$2+ROWS($A$2:A51)-1)))>$B$3,"",MAX(ROW(INDIRECT($B$2&":"&$B$2+ROWS($A$2:A51)-1)))) -> 2018-10-20 | D51: 1 | E51: =IF(ISNA(MATCH(MAX(ROW(INDIRECT($B$2&":"&$B$2+ROWS($A$2:A51)-1))),INDIRECT("$J$1:$J$"&COUNT(K:K)),0)),$B$2+ROWS($A$2:A51)-1,$B$3+20) -> 2018-10-20
C52: =IF(MAX(ROW(INDIRECT($B$2&":"&$B$2+ROWS($A$2:A52)-1)))>$B$3,"",MAX(ROW(INDIRECT($B$2&":"&$B$2+ROWS($A$2:A52)-1)))) -> 2018-10-21 | D52: 1 | E52: =IF(ISNA(MATCH(MAX(ROW(INDIRECT($B$2&":"&$B$2+ROWS($A$2:A52)-1))),INDIRECT("$J$1:$J$"&COUNT(K:K)),0)),$B$2+ROWS($A$2:A52)-1,$B$3+20) -> 2018-10-21
C53: =IF(MAX(ROW(INDIRECT($B$2&":"&$B$2+ROWS($A$2:A53)-1)))>$B$3,"",MAX(ROW(INDIRECT($B$2&":"&$B$2+ROWS($A$2:A53)-1)))) -> 2018-10-22 | D53: 1 | E53: =IF(ISNA(MATCH(MAX(ROW(INDIRECT($B$2&":"&$B$2+ROWS($A$2:A53)-1))),INDIRECT("$J$1:$J$"&COUNT(K:K)),0)),$B$2+ROWS($A$2:A53)-1,$B$3+20) -> 2018-10-22
C54: =IF(MAX(ROW(INDIRECT($B$2&":"&$B$2+ROWS($A$2:A54)-1)))>$B$3,"",MAX(ROW(INDIRECT($B$2&":"&$B$2+ROWS($A$2:A54)-1)))) -> 2018-10-23 | D54: 1 | E54: =IF(ISNA(MATCH(MAX(ROW(INDIRECT($B$2&":"&$B$2+ROWS($A$2:A54)-1))),INDIRECT("$J$1:$J$"&COUNT(K:K)),0)),$B$2+ROWS($A$2:A54)-1,$B$3+20) -> 2018-10-23
C55: =IF(MAX(ROW(INDIRECT($B$2&":"&$B$2+ROWS($A$2:A55)-1)))>$B$3,"",MAX(ROW(INDIRECT($B$2&":"&$B$2+ROWS($A$2:A55)-1)))) -> 2018-10-24 | D55: 1 | E55: =IF(ISNA(MATCH(MAX(ROW(INDIRECT($B$2&":"&$B$2+ROWS($A$2:A55)-1))),INDIRECT("$J$1:$J$"&COUNT(K:K)),0)),$B$2+ROWS($A$2:A55)-1,$B$3+20) -> 2018-10-24
C56: =IF(MAX(ROW(INDIRECT($B$2&":"&$B$2+ROWS($A$2:A56)-1)))>$B$3,"",MAX(ROW(INDIRECT($B$2&":"&$B$2+ROWS($A$2:A56)-1)))) -> 2018-10-25 | D56: 1 | E56: =IF(ISNA(MATCH(MAX(ROW(INDIRECT($B$2&":"&$B$2+ROWS($A$2:A56)-1))),INDIRECT("$J$1:$J$"&COUNT(K:K)),0)),$B$2+ROWS($A$2:A56)-1,$B$3+20) -> 2018-10-25
C57: =IF(MAX(ROW(INDIRECT($B$2&":"&$B$2+ROWS($A$2:A57)-1)))>$B$3,"",MAX(ROW(INDIRECT($B$2&":"&$B$2+ROWS($A$2:A57)-1)))) -> 2018-10-26 | D57: 1 | E57: =IF(ISNA(MATCH(MAX(ROW(INDIRECT($B$2&":"&$B$2+ROWS($A$2:A57)-1))),INDIRECT("$J$1:$J$"&COUNT(K:K)),0)),$B$2+ROWS($A$2:A57)-1,$B$3+20) -> 2018-10-26
C58: =IF(MAX(ROW(INDIRECT($B$2&":"&$B$2+ROWS($A$2:A58)-1)))>$B$3,"",MAX(ROW(INDIRECT($B$2&":"&$B$2+ROWS($A$2:A58)-1)))) -> 2018-10-27 | D58: 1 | E58: =IF(ISNA(MATCH(MAX(ROW(INDIRECT($B$2&":"&$B$2+ROWS($A$2:A58)-1))),INDIRECT("$J$1:$J$"&COUNT(K:K)),0)),$B$2+ROWS($A$2:A58)-1,$B$3+20) -> 2018-10-27
C59: =IF(MAX(ROW(INDIRECT($B$2&":"&$B$2+ROWS($A$2:A59)-1)))>$B$3,"",MAX(ROW(INDIRECT($B$2&":"&$B$2+ROWS($A$2:A59)-1)))) -> 2018-10-28 | D59: 1 | E59: =IF(ISNA(MATCH(MAX(ROW(INDIRECT($B$2&":"&$B$2+ROWS($A$2:A59)-1))),INDIRECT("$J$1:$J$"&COUNT(K:K)),0)),$B$2+ROWS($A$2:A59)-1,$B$3+20) -> 2018-10-28
C60: =IF(MAX(ROW(INDIRECT($B$2&":"&$B$2+ROWS($A$2:A60)-1)))>$B$3,"",MAX(ROW(INDIRECT($B$2&":"&$B$2+ROWS($A$2:A60)-1)))) -> 2018-10-29 | D60: 1 | E60: =IF(ISNA(MATCH(MAX(ROW(INDIRECT($B$2&":"&$B$2+ROWS($A$2:A60)-1))),INDIRECT("$J$1:$J$"&COUNT(K:K)),0)),$B$2+ROWS($A$2:A60)-1,$B$3+20) -> 2018-10-29
C61: =IF(MAX(ROW(INDIRECT($B$2&":"&$B$2+ROWS($A$2:A61)-1)))>$B$3,"",MAX(ROW(INDIRECT($B$2&":"&$B$2+ROWS($A$2:A61)-1)))) -> 2018-10-30 | D61: 1 | E61: =IF(ISNA(MATCH(MAX(ROW(INDIRECT($B$2&":"&$B$2+ROWS($A$2:A61)-1))),INDIRECT("$J$1:$J$"&COUNT(K:K)),0)),$B$2+ROWS($A$2:A61)-1,$B$3+20) -> 2018-10-30
C62: =IF(MAX(ROW(INDIRECT($B$2&":"&$B$2+ROWS($A$2:A62)-1)))>$B$3,"",MAX(ROW(INDIRECT($B$2&":"&$B$2+ROWS($A$2:A62)-1)))) -> 2018-10-31 | D62: 1 | E62: =IF(ISNA(MATCH(MAX(ROW(INDIRECT($B$2&":"&$B$2+ROWS($A$2:A62)-1))),INDIRECT("$J$1:$J$"&COUNT(K:K)),0)),$B$2+ROWS($A$2:A62)-1,$B$3+20) -> 2018-10-31
C63: =IF(MAX(ROW(INDIRECT($B$2&":"&$B$2+ROWS($A$2:A63)-1)))>$B$3,"",MAX(ROW(INDIRECT($B$2&":"&$B$2+ROWS($A$2:A63)-1)))) -> 2018-11-01 | D63: 1 | E63: =IF(ISNA(MATCH(MAX(ROW(INDIRECT($B$2&":"&$B$2+ROWS($A$2:A63)-1))),INDIRECT("$J$1:$J$"&COUNT(K:K)),0)),$B$2+ROWS($A$2:A63)-1,$B$3+20) -> 2018-11-01
C64: =IF(MAX(ROW(INDIRECT($B$2&":"&$B$2+ROWS($A$2:A64)-1)))>$B$3,"",MAX(ROW(INDIRECT($B$2&":"&$B$2+ROWS($A$2:A64)-1)))) -> 2018-11-02 | D64: 1 | E64: =IF(ISNA(MATCH(MAX(ROW(INDIRECT($B$2&":"&$B$2+ROWS($A$2:A64)-1))),INDIRECT("$J$1:$J$"&COUNT(K:K)),0)),$B$2+ROWS($A$2:A64)-1,$B$3+20) -> 2018-11-02
C65: =IF(MAX(ROW(INDIRECT($B$2&":"&$B$2+ROWS($A$2:A65)-1)))>$B$3,"",MAX(ROW(INDIRECT($B$2&":"&$B$2+ROWS($A$2:A65)-1)))) -> 2018-11-03 | D65: 1 | E65: =IF(ISNA(MATCH(MAX(ROW(INDIRECT($B$2&":"&$B$2+ROWS($A$2:A65)-1))),INDIRECT("$J$1:$J$"&COUNT(K:K)),0)),$B$2+ROWS($A$2:A65)-1,$B$3+20) -> 2018-11-03
C66: =IF(MAX(ROW(INDIRECT($B$2&":"&$B$2+ROWS($A$2:A66)-1)))>$B$3,"",MAX(ROW(INDIRECT($B$2&":"&$B$2+ROWS($A$2:A66)-1)))) -> 2018-11-04 | D66: 1 | E66: =IF(ISNA(MATCH(MAX(ROW(INDIRECT($B$2&":"&$B$2+ROWS($A$2:A66)-1))),INDIRECT("$J$1:$J$"&COUNT(K:K)),0)),$B$2+ROWS($A$2:A66)-1,$B$3+20) -> 2018-11-04
C67: =IF(MAX(ROW(INDIRECT($B$2&":"&$B$2+ROWS($A$2:A67)-1)))>$B$3,"",MAX(ROW(INDIRECT($B$2&":"&$B$2+ROWS($A$2:A67)-1)))) -> 2018-11-05 | D67: =IF($C67="","",AND(COUNTIF(K:K,C67)=0,NOT(OR(TEXT(C67,"DDD")=$L$2,TEXT(C67,"DDD")=$L$3))*1=1)*1) -> 1 | E67: =IF(ISNA(MATCH(MAX(ROW(INDIRECT($B$2&":"&$B$2+ROWS($A$2:A67)-1))),INDIRECT("$J$1:$J$"&COUNT(K:K)),0)),$B$2+ROWS($A$2:A67)-1,$B$3+20) -> 2018-11-05
C68: =IF(MAX(ROW(INDIRECT($B$2&":"&$B$2+ROWS($A$2:A68)-1)))>$B$3,"",MAX(ROW(INDIRECT($B$2&":"&$B$2+ROWS($A$2:A68)-1)))) -> 2018-11-06 | D68: 1 | E68: =IF(ISNA(MATCH(MAX(ROW(INDIRECT($B$2&":"&$B$2+ROWS($A$2:A68)-1))),INDIRECT("$J$1:$J$"&COUNT(K:K)),0)),$B$2+ROWS($A$2:A68)-1,$B$3+20) -> 2018-11-06
C69: =IF(MAX(ROW(INDIRECT($B$2&":"&$B$2+ROWS($A$2:A69)-1)))>$B$3,"",MAX(ROW(INDIRECT($B$2&":"&$B$2+ROWS($A$2:A69)-1)))) -> 2018-11-07 | D69: 1 | E69: =IF(ISNA(MATCH(MAX(ROW(INDIRECT($B$2&":"&$B$2+ROWS($A$2:A69)-1))),INDIRECT("$J$1:$J$"&COUNT(K:K)),0)),$B$2+ROWS($A$2:A69)-1,$B$3+20) -> 2018-11-07
C70: =IF(MAX(ROW(INDIRECT($B$2&":"&$B$2+ROWS($A$2:A70)-1)))>$B$3,"",MAX(ROW(INDIRECT($B$2&":"&$B$2+ROWS($A$2:A70)-1)))) -> 2018-11-08 | D70: 1 | E70: =IF(ISNA(MATCH(MAX(ROW(INDIRECT($B$2&":"&$B$2+ROWS($A$2:A70)-1))),INDIRECT("$J$1:$J$"&COUNT(K:K)),0)),$B$2+ROWS($A$2:A70)-1,$B$3+20) -> 2018-11-08
C71: =IF(MAX(ROW(INDIRECT($B$2&":"&$B$2+ROWS($A$2:A71)-1)))>$B$3,"",MAX(ROW(INDIRECT($B$2&":"&$B$2+ROWS($A$2:A71)-1)))) -> 2018-11-09 | D71: 1 | E71: =IF(ISNA(MATCH(MAX(ROW(INDIRECT($B$2&":"&$B$2+ROWS($A$2:A71)-1))),INDIRECT("$J$1:$J$"&COUNT(K:K)),0)),$B$2+ROWS($A$2:A71)-1,$B$3+20) -> 2018-11-09
C72: =IF(MAX(ROW(INDIRECT($B$2&":"&$B$2+ROWS($A$2:A72)-1)))>$B$3,"",MAX(ROW(INDIRECT($B$2&":"&$B$2+ROWS($A$2:A72)-1)))) -> 2018-11-10 | D72: 1 | E72: =IF(ISNA(MATCH(MAX(ROW(INDIRECT($B$2&":"&$B$2+ROWS($A$2:A72)-1))),INDIRECT("$J$1:$J$"&COUNT(K:K)),0)),$B$2+ROWS($A$2:A72)-1,$B$3+20) -> 2018-11-10
C73: =IF(MAX(ROW(INDIRECT($B$2&":"&$B$2+ROWS($A$2:A73)-1)))>$B$3,"",MAX(ROW(INDIRECT($B$2&":"&$B$2+ROWS($A$2:A73)-1)))) -> 2018-11-11 | D73: 1 | E73: =IF(ISNA(MATCH(MAX(ROW(INDIRECT($B$2&":"&$B$2+ROWS($A$2:A73)-1))),INDIRECT("$J$1:$J$"&COUNT(K:K)),0)),$B$2+ROWS($A$2:A73)-1,$B$3+20) -> 2018-11-11
C74: =IF(MAX(ROW(INDIRECT($B$2&":"&$B$2+ROWS($A$2:A74)-1)))>$B$3,"",MAX(ROW(INDIRECT($B$2&":"&$B$2+ROWS($A$2:A74)-1)))) -> 2018-11-12 | D74: 1 | E74: =IF(ISNA(MATCH(MAX(ROW(INDIRECT($B$2&":"&$B$2+ROWS($A$2:A74)-1))),INDIRECT("$J$1:$J$"&COUNT(K:K)),0)),$B$2+ROWS($A$2:A74)-1,$B$3+20) -> 2018-11-12
C75: =IF(MAX(ROW(INDIRECT($B$2&":"&$B$2+ROWS($A$2:A75)-1)))>$B$3,"",MAX(ROW(INDIRECT($B$2&":"&$B$2+ROWS($A$2:A75)-1)))) -> 2018-11-13 | D75: 1 | E75: =IF(ISNA(MATCH(MAX(ROW(INDIRECT($B$2&":"&$B$2+ROWS($A$2:A75)-1))),INDIRECT("$J$1:$J$"&COUNT(K:K)),0)),$B$2+ROWS($A$2:A75)-1,$B$3+20) -> 2018-11-13
C76: =IF(MAX(ROW(INDIRECT($B$2&":"&$B$2+ROWS($A$2:A76)-1)))>$B$3,"",MAX(ROW(INDIRECT($B$2&":"&$B$2+ROWS($A$2:A76)-1)))) -> 2018-11-14 | D76: 1 | E76: =IF(ISNA(MATCH(MAX(ROW(INDIRECT($B$2&":"&$B$2+ROWS($A$2:A76)-1))),INDIRECT("$J$1:$J$"&COUNT(K:K)),0)),$B$2+ROWS($A$2:A76)-1,$B$3+20) -> 2018-11-14
C77: =IF(MAX(ROW(INDIRECT($B$2&":"&$B$2+ROWS($A$2:A77)-1)))>$B$3,"",MAX(ROW(INDIRECT($B$2&":"&$B$2+ROWS($A$2:A77)-1)))) -> 2018-11-15 | D77: 1 | E77: =IF(ISNA(MATCH(MAX(ROW(INDIRECT($B$2&":"&$B$2+ROWS($A$2:A77)-1))),INDIRECT("$J$1:$J$"&COUNT(K:K)),0)),$B$2+ROWS($A$2:A77)-1,$B$3+20) -> 2018-11-15
C78: =IF(MAX(ROW(INDIRECT($B$2&":"&$B$2+ROWS($A$2:A78)-1)))>$B$3,"",MAX(ROW(INDIRECT($B$2&":"&$B$2+ROWS($A$2:A78)-1)))) -> 2018-11-16 | D78: 1 | E78: =IF(ISNA(MATCH(MAX(ROW(INDIRECT($B$2&":"&$B$2+ROWS($A$2:A78)-1))),INDIRECT("$J$1:$J$"&COUNT(K:K)),0)),$B$2+ROWS($A$2:A78)-1,$B$3+20) -> 2018-11-16
C79: =IF(MAX(ROW(INDIRECT($B$2&":"&$B$2+ROWS($A$2:A79)-1)))>$B$3,"",MAX(ROW(INDIRECT($B$2&":"&$B$2+ROWS($A$2:A79)-1)))) -> 2018-11-17 | D79: 1 | E79: =IF(ISNA(MATCH(MAX(ROW(INDIRECT($B$2&":"&$B$2+ROWS($A$2:A79)-1))),INDIRECT("$J$1:$J$"&COUNT(K:K)),0)),$B$2+ROWS($A$2:A79)-1,$B$3+20) -> 2018-11-17
C80: =IF(MAX(ROW(INDIRECT($B$2&":"&$B$2+ROWS($A$2:A80)-1)))>$B$3,"",MAX(ROW(INDIRECT($B$2&":"&$B$2+ROWS($A$2:A80)-1)))) -> 2018-11-18 | D80: 1 | E80: =IF(ISNA(MATCH(MAX(ROW(INDIRECT($B$2&":"&$B$2+ROWS($A$2:A80)-1))),INDIRECT("$J$1:$J$"&COUNT(K:K)),0)),$B$2+ROWS($A$2:A80)-1,$B$3+20) -> 2018-11-18
C81: =IF(MAX(ROW(INDIRECT($B$2&":"&$B$2+ROWS($A$2:A81)-1)))>$B$3,"",MAX(ROW(INDIRECT($B$2&":"&$B$2+ROWS($A$2:A81)-1)))) -> 2018-11-19 | D81: 1 | E81: =IF(ISNA(MATCH(MAX(ROW(INDIRECT($B$2&":"&$B$2+ROWS($A$2:A81)-1))),INDIRECT("$J$1:$J$"&COUNT(K:K)),0)),$B$2+ROWS($A$2:A81)-1,$B$3+20) -> 2018-11-19
C82: =IF(MAX(ROW(INDIRECT($B$2&":"&$B$2+ROWS($A$2:A82)-1)))>$B$3,"",MAX(ROW(INDIRECT($B$2&":"&$B$2+ROWS($A$2:A82)-1)))) -> 2018-11-20 | D82: 1 | E82: =IF(ISNA(MATCH(MAX(ROW(INDIRECT($B$2&":"&$B$2+ROWS($A$2:A82)-1))),INDIRECT("$J$1:$J$"&COUNT(K:K)),0)),$B$2+ROWS($A$2:A82)-1,$B$3+20) -> 2018-11-20
C83: =IF(MAX(ROW(INDIRECT($B$2&":"&$B$2+ROWS($A$2:A83)-1)))>$B$3,"",MAX(ROW(INDIRECT($B$2&":"&$B$2+ROWS($A$2:A83)-1)))) -> 2018-11-21 | D83: 1 | E83: =IF(ISNA(MATCH(MAX(ROW(INDIRECT($B$2&":"&$B$2+ROWS($A$2:A83)-1))),INDIRECT("$J$1:$J$"&COUNT(K:K)),0)),$B$2+ROWS($A$2:A83)-1,$B$3+20) -> 2018-11-21
C84: =IF(MAX(ROW(INDIRECT($B$2&":"&$B$2+ROWS($A$2:A84)-1)))>$B$3,"",MAX(ROW(INDIRECT($B$2&":"&$B$2+ROWS($A$2:A84)-1)))) -> 2018-11-22 | D84: 1 | E84: =IF(ISNA(MATCH(MAX(ROW(INDIRECT($B$2&":"&$B$2+ROWS($A$2:A84)-1))),INDIRECT("$J$1:$J$"&COUNT(K:K)),0)),$B$2+ROWS($A$2:A84)-1,$B$3+20) -> 2018-11-22
C85: =IF(MAX(ROW(INDIRECT($B$2&":"&$B$2+ROWS($A$2:A85)-1)))>$B$3,"",MAX(ROW(INDIRECT($B$2&":"&$B$2+ROWS($A$2:A85)-1)))) -> 2018-11-23 | D85: 1 | E85: =IF(ISNA(MATCH(MAX(ROW(INDIRECT($B$2&":"&$B$2+ROWS($A$2:A85)-1))),INDIRECT("$J$1:$J$"&COUNT(K:K)),0)),$B$2+ROWS($A$2:A85)-1,$B$3+20) -> 2018-11-23
C86: =IF(MAX(ROW(INDIRECT($B$2&":"&$B$2+ROWS($A$2:A86)-1)))>$B$3,"",MAX(ROW(INDIRECT($B$2&":"&$B$2+ROWS($A$2:A86)-1)))) -> 2018-11-24 | D86: 1 | E86: =IF(ISNA(MATCH(MAX(ROW(INDIRECT($B$2&":"&$B$2+ROWS($A$2:A86)-1))),INDIRECT("$J$1:$J$"&COUNT(K:K)),0)),$B$2+ROWS($A$2:A86)-1,$B$3+20) -> 2018-11-24
C87: =IF(MAX(ROW(INDIRECT($B$2&":"&$B$2+ROWS($A$2:A87)-1)))>$B$3,"",MAX(ROW(INDIRECT($B$2&":"&$B$2+ROWS($A$2:A87)-1)))) -> 2018-11-25 | D87: 1 | E87: =IF(ISNA(MATCH(MAX(ROW(INDIRECT($B$2&":"&$B$2+ROWS($A$2:A87)-1))),INDIRECT("$J$1:$J$"&COUNT(K:K)),0)),$B$2+ROWS($A$2:A87)-1,$B$3+20) -> 2018-11-25
C88: =IF(MAX(ROW(INDIRECT($B$2&":"&$B$2+ROWS($A$2:A88)-1)))>$B$3,"",MAX(ROW(INDIRECT($B$2&":"&$B$2+ROWS($A$2:A88)-1)))) -> 2018-11-26 | D88: 1 | E88: =IF(ISNA(MATCH(MAX(ROW(INDIRECT($B$2&":"&$B$2+ROWS($A$2:A88)-1))),INDIRECT("$J$1:$J$"&COUNT(K:K)),0)),$B$2+ROWS($A$2:A88)-1,$B$3+20) -> 2018-11-26
C89: =IF(MAX(ROW(INDIRECT($B$2&":"&$B$2+ROWS($A$2:A89)-1)))>$B$3,"",MAX(ROW(INDIRECT($B$2&":"&$B$2+ROWS($A$2:A89)-1)))) -> 2018-11-27 | D89: 1 | E89: =IF(ISNA(MATCH(MAX(ROW(INDIRECT($B$2&":"&$B$2+ROWS($A$2:A89)-1))),INDIRECT("$J$1:$J$"&COUNT(K:K)),0)),$B$2+ROWS($A$2:A89)-1,$B$3+20) -> 2018-11-27
C90: =IF(MAX(ROW(INDIRECT($B$2&":"&$B$2+ROWS($A$2:A90)-1)))>$B$3,"",MAX(ROW(INDIRECT($B$2&":"&$B$2+ROWS($A$2:A90)-1)))) -> 2018-11-28 | D90: 1 | E90: =IF(ISNA(MATCH(MAX(ROW(INDIRECT($B$2&":"&$B$2+ROWS($A$2:A90)-1))),INDIRECT("$J$1:$J$"&COUNT(K:K)),0)),$B$2+ROWS($A$2:A90)-1,$B$3+20) -> 2018-11-28
C91: =IF(MAX(ROW(INDIRECT($B$2&":"&$B$2+ROWS($A$2:A91)-1)))>$B$3,"",MAX(ROW(INDIRECT($B$2&":"&$B$2+ROWS($A$2:A91)-1)))) -> 2018-11-29 | D91: 1 | E91: =IF(ISNA(MATCH(MAX(ROW(INDIRECT($B$2&":"&$B$2+ROWS($A$2:A91)-1))),INDIRECT("$J$1:$J$"&COUNT(K:K)),0)),$B$2+ROWS($A$2:A91)-1,$B$3+20) -> 2018-11-29
C92: =IF(MAX(ROW(INDIRECT($B$2&":"&$B$2+ROWS($A$2:A92)-1)))>$B$3,"",MAX(ROW(INDIRECT($B$2&":"&$B$2+ROWS($A$2:A92)-1)))) -> 2018-11-30 | D92: 1 | E92: =IF(ISNA(MATCH(MAX(ROW(INDIRECT($B$2&":"&$B$2+ROWS($A$2:A92)-1))),INDIRECT("$J$1:$J$"&COUNT(K:K)),0)),$B$2+ROWS($A$2:A92)-1,$B$3+20) -> 2018-11-30
C93: =IF(MAX(ROW(INDIRECT($B$2&":"&$B$2+ROWS($A$2:A93)-1)))>$B$3,"",MAX(ROW(INDIRECT($B$2&":"&$B$2+ROWS($A$2:A93)-1)))) -> 2018-12-01 | D93: 1 | E93: =IF(ISNA(MATCH(MAX(ROW(INDIRECT($B$2&":"&$B$2+ROWS($A$2:A93)-1))),INDIRECT("$J$1:$J$"&COUNT(K:K)),0)),$B$2+ROWS($A$2:A93)-1,$B$3+20) -> 2018-12-01
C94: =IF(MAX(ROW(INDIRECT($B$2&":"&$B$2+ROWS($A$2:A94)-1)))>$B$3,"",MAX(ROW(INDIRECT($B$2&":"&$B$2+ROWS($A$2:A94)-1)))) -> 2018-12-02 | D94: 1 | E94: =IF(ISNA(MATCH(MAX(ROW(INDIRECT($B$2&":"&$B$2+ROWS($A$2:A94)-1))),INDIRECT("$J$1:$J$"&COUNT(K:K)),0)),$B$2+ROWS($A$2:A94)-1,$B$3+20) -> 2018-12-02
C95: =IF(MAX(ROW(INDIRECT($B$2&":"&$B$2+ROWS($A$2:A95)-1)))>$B$3,"",MAX(ROW(INDIRECT($B$2&":"&$B$2+ROWS($A$2:A95)-1)))) -> 2018-12-03 | D95: 1 | E95: =IF(ISNA(MATCH(MAX(ROW(INDIRECT($B$2&":"&$B$2+ROWS($A$2:A95)-1))),INDIRECT("$J$1:$J$"&COUNT(K:K)),0)),$B$2+ROWS($A$2:A95)-1,$B$3+20) -> 2018-12-03
C96: =IF(MAX(ROW(INDIRECT($B$2&":"&$B$2+ROWS($A$2:A96)-1)))>$B$3,"",MAX(ROW(INDIRECT($B$2&":"&$B$2+ROWS($A$2:A96)-1)))) -> 2018-12-04 | D96: 1 | E96: =IF(ISNA(MATCH(MAX(ROW(INDIRECT($B$2&":"&$B$2+ROWS($A$2:A96)-1))),INDIRECT("$J$1:$J$"&COUNT(K:K)),0)),$B$2+ROWS($A$2:A96)-1,$B$3+20) -> 2018-12-04
C97: =IF(MAX(ROW(INDIRECT($B$2&":"&$B$2+ROWS($A$2:A97)-1)))>$B$3,"",MAX(ROW(INDIRECT($B$2&":"&$B$2+ROWS($A$2:A97)-1)))) -> 2018-12-05 | D97: 1 | E97: =IF(ISNA(MATCH(MAX(ROW(INDIRECT($B$2&":"&$B$2+ROWS($A$2:A97)-1))),INDIRECT("$J$1:$J$"&COUNT(K:K)),0)),$B$2+ROWS($A$2:A97)-1,$B$3+20) -> 2018-12-05
C98: =IF(MAX(ROW(INDIRECT($B$2&":"&$B$2+ROWS($A$2:A98)-1)))>$B$3,"",MAX(ROW(INDIRECT($B$2&":"&$B$2+ROWS($A$2:A98)-1)))) -> 2018-12-06 | D98: 1 | E98: =IF(ISNA(MATCH(MAX(ROW(INDIRECT($B$2&":"&$B$2+ROWS($A$2:A98)-1))),INDIRECT("$J$1:$J$"&COUNT(K:K)),0)),$B$2+ROWS($A$2:A98)-1,$B$3+20) -> 2018-12-06
C99: =IF(MAX(ROW(INDIRECT($B$2&":"&$B$2+ROWS($A$2:A99)-1)))>$B$3,"",MAX(ROW(INDIRECT($B$2&":"&$B$2+ROWS($A$2:A99)-1)))) -> 2018-12-07 | D99: 1 | E99: =IF(ISNA(MATCH(MAX(ROW(INDIRECT($B$2&":"&$B$2+ROWS($A$2:A99)-1))),INDIRECT("$J$1:$J$"&COUNT(K:K)),0)),$B$2+ROWS($A$2:A99)-1,$B$3+20) -> 2018-12-07
C100: =IF(MAX(ROW(INDIRECT($B$2&":"&$B$2+ROWS($A$2:A100)-1)))>$B$3,"",MAX(ROW(INDIRECT($B$2&":"&$B$2+ROWS($A$2:A100)-1)))) -> 2018-12-08 | D100: 1 | E100: =IF(ISNA(MATCH(MAX(ROW(INDIRECT($B$2&":"&$B$2+ROWS($A$2:A100)-1))),INDIRECT("$J$1:$J$"&COUNT(K:K)),0)),$B$2+ROWS($A$2:A100)-1,$B$3+20) -> 2018-12-08
C101: =IF(MAX(ROW(INDIRECT($B$2&":"&$B$2+ROWS($A$2:A101)-1)))>$B$3,"",MAX(ROW(INDIRECT($B$2&":"&$B$2+ROWS($A$2:A101)-1)))) -> 2018-12-09 | D101: 1 | E101: =IF(ISNA(MATCH(MAX(ROW(INDIRECT($B$2&":"&$B$2+ROWS($A$2:A101)-1))),INDIRECT("$J$1:$J$"&COUNT(K:K)),0)),$B$2+ROWS($A$2:A101)-1,$B$3+20) -> 2018-12-09
C102: =IF(MAX(ROW(INDIRECT($B$2&":"&$B$2+ROWS($A$2:A102)-1)))>$B$3,"",MAX(ROW(INDIRECT($B$2&":"&$B$2+ROWS($A$2:A102)-1)))) -> 2018-12-10 | D102: 1 | E102: =IF(ISNA(MATCH(MAX(ROW(INDIRECT($B$2&":"&$B$2+ROWS($A$2:A102)-1))),INDIRECT("$J$1:$J$"&COUNT(K:K)),0)),$B$2+ROWS($A$2:A102)-1,$B$3+20) -> 2018-12-10
C103: =IF(MAX(ROW(INDIRECT($B$2&":"&$B$2+ROWS($A$2:A103)-1)))>$B$3,"",MAX(ROW(INDIRECT($B$2&":"&$B$2+ROWS($A$2:A103)-1)))) -> 2018-12-11 | D103: 1 | E103: =IF(ISNA(MATCH(MAX(ROW(INDIRECT($B$2&":"&$B$2+ROWS($A$2:A103)-1))),INDIRECT("$J$1:$J$"&COUNT(K:K)),0)),$B$2+ROWS($A$2:A103)-1,$B$3+20) -> 2018-12-11
C104: =IF(MAX(ROW(INDIRECT($B$2&":"&$B$2+ROWS($A$2:A104)-1)))>$B$3,"",MAX(ROW(INDIRECT($B$2&":"&$B$2+ROWS($A$2:A104)-1)))) -> 2018-12-12 | D104: 1 | E104: =IF(ISNA(MATCH(MAX(ROW(INDIRECT($B$2&":"&$B$2+ROWS($A$2:A104)-1))),INDIRECT("$J$1:$J$"&COUNT(K:K)),0)),$B$2+ROWS($A$2:A104)-1,$B$3+20) -> 2018-12-12
C105: =IF(MAX(ROW(INDIRECT($B$2&":"&$B$2+ROWS($A$2:A105)-1)))>$B$3,"",MAX(ROW(INDIRECT($B$2&":"&$B$2+ROWS($A$2:A105)-1)))) -> 2018-12-13 | D105: 1 | E105: =IF(ISNA(MATCH(MAX(ROW(INDIRECT($B$2&":"&$B$2+ROWS($A$2:A105)-1))),INDIRECT("$J$1:$J$"&COUNT(K:K)),0)),$B$2+ROWS($A$2:A105)-1,$B$3+20) -> 2018-12-13
C106: =IF(MAX(ROW(INDIRECT($B$2&":"&$B$2+ROWS($A$2:A106)-1)))>$B$3,"",MAX(ROW(INDIRECT($B$2&":"&$B$2+ROWS($A$2:A106)-1)))) -> 2018-12-14 | D106: 1 | E106: =IF(ISNA(MATCH(MAX(ROW(INDIRECT($B$2&":"&$B$2+ROWS($A$2:A106)-1))),INDIRECT("$J$1:$J$"&COUNT(K:K)),0)),$B$2+ROWS($A$2:A106)-1,$B$3+20) -> 2018-12-14
C107: =IF(MAX(ROW(INDIRECT($B$2&":"&$B$2+ROWS($A$2:A107)-1)))>$B$3,"",MAX(ROW(INDIRECT($B$2&":"&$B$2+ROWS($A$2:A107)-1)))) -> 2018-12-15 | D107: 1 | E107: =IF(ISNA(MATCH(MAX(ROW(INDIRECT($B$2&":"&$B$2+ROWS($A$2:A107)-1))),INDIRECT("$J$1:$J$"&COUNT(K:K)),0)),$B$2+ROWS($A$2:A107)-1,$B$3+20) -> 2018-12-15
C108: =IF(MAX(ROW(INDIRECT($B$2&":"&$B$2+ROWS($A$2:A108)-1)))>$B$3,"",MAX(ROW(INDIRECT($B$2&":"&$B$2+ROWS($A$2:A108)-1)))) -> 2018-12-16 | D108: 1 | E108: =IF(ISNA(MATCH(MAX(ROW(INDIRECT($B$2&":"&$B$2+ROWS($A$2:A108)-1))),INDIRECT("$J$1:$J$"&COUNT(K:K)),0)),$B$2+ROWS($A$2:A108)-1,$B$3+20) -> 2018-12-16
C109: =IF(MAX(ROW(INDIRECT($B$2&":"&$B$2+ROWS($A$2:A109)-1)))>$B$3,"",MAX(ROW(INDIRECT($B$2&":"&$B$2+ROWS($A$2:A109)-1)))) -> 2018-12-17 | D109: 1 | E109: =IF(ISNA(MATCH(MAX(ROW(INDIRECT($B$2&":"&$B$2+ROWS($A$2:A109)-1))),INDIRECT("$J$1:$J$"&COUNT(K:K)),0)),$B$2+ROWS($A$2:A109)-1,$B$3+20) -> 2018-12-17
C110: =IF(MAX(ROW(INDIRECT($B$2&":"&$B$2+ROWS($A$2:A110)-1)))>$B$3,"",MAX(ROW(INDIRECT($B$2&":"&$B$2+ROWS($A$2:A110)-1)))) -> 2018-12-18 | D110: 1 | E110: =IF(ISNA(MATCH(MAX(ROW(INDIRECT($B$2&":"&$B$2+ROWS($A$2:A110)-1))),INDIRECT("$J$1:$J$"&COUNT(K:K)),0)),$B$2+ROWS($A$2:A110)-1,$B$3+20) -> 2018-12-18
C111: =IF(MAX(ROW(INDIRECT($B$2&":"&$B$2+ROWS($A$2:A111)-1)))>$B$3,"",MAX(ROW(INDIRECT($B$2&":"&$B$2+ROWS($A$2:A111)-1)))) -> 2018-12-19 | D111: 1 | E111: =IF(ISNA(MATCH(MAX(ROW(INDIRECT($B$2&":"&$B$2+ROWS($A$2:A111)-1))),INDIRECT("$J$1:$J$"&COUNT(K:K)),0)),$B$2+ROWS($A$2:A111)-1,$B$3+20) -> 2018-12-19
C112: =IF(MAX(ROW(INDIRECT($B$2&":"&$B$2+ROWS($A$2:A112)-1)))>$B$3,"",MAX(ROW(INDIRECT($B$2&":"&$B$2+ROWS($A$2:A112)-1)))) -> 2018-12-20 | D112: 1 | E112: =IF(ISNA(MATCH(MAX(ROW(INDIRECT($B$2&":"&$B$2+ROWS($A$2:A112)-1))),INDIRECT("$J$1:$J$"&COUNT(K:K)),0)),$B$2+ROWS($A$2:A112)-1,$B$3+20) -> 2018-12-20
C113: =IF(MAX(ROW(INDIRECT($B$2&":"&$B$2+ROWS($A$2:A113)-1)))>$B$3,"",MAX(ROW(INDIRECT($B$2&":"&$B$2+ROWS($A$2:A113)-1)))) -> 2018-12-21 | D113: 1 | E113: =IF(ISNA(MATCH(MAX(ROW(INDIRECT($B$2&":"&$B$2+ROWS($A$2:A113)-1))),INDIRECT("$J$1:$J$"&COUNT(K:K)),0)),$B$2+ROWS($A$2:A113)-1,$B$3+20) -> 2018-12-21
C114: =IF(MAX(ROW(INDIRECT($B$2&":"&$B$2+ROWS($A$2:A114)-1)))>$B$3,"",MAX(ROW(INDIRECT($B$2&":"&$B$2+ROWS($A$2:A114)-1)))) -> 2018-12-22 | D114: 1 | E114: =IF(ISNA(MATCH(MAX(ROW(INDIRECT($B$2&":"&$B$2+ROWS($A$2:A114)-1))),INDIRECT("$J$1:$J$"&COUNT(K:K)),0)),$B$2+ROWS($A$2:A114)-1,$B$3+20) -> 2018-12-22
C115: =IF(MAX(ROW(INDIRECT($B$2&":"&$B$2+ROWS($A$2:A115)-1)))>$B$3,"",MAX(ROW(INDIRECT($B$2&":"&$B$2+ROWS($A$2:A115)-1)))) -> 2018-12-23 | D115: 1 | E115: =IF(ISNA(MATCH(MAX(ROW(INDIRECT($B$2&":"&$B$2+ROWS($A$2:A115)-1))),INDIRECT("$J$1:$J$"&COUNT(K:K)),0)),$B$2+ROWS($A$2:A115)-1,$B$3+20) -> 2018-12-23
C116: =IF(MAX(ROW(INDIRECT($B$2&":"&$B$2+ROWS($A$2:A116)-1)))>$B$3,"",MAX(ROW(INDIRECT($B$2&":"&$B$2+ROWS($A$2:A116)-1)))) -> 2018-12-24 | D116: 1 | E116: =IF(ISNA(MATCH(MAX(ROW(INDIRECT($B$2&":"&$B$2+ROWS($A$2:A116)-1))),INDIRECT("$J$1:$J$"&COUNT(K:K)),0)),$B$2+ROWS($A$2:A116)-1,$B$3+20) -> 2018-12-24
C117: =IF(MAX(ROW(INDIRECT($B$2&":"&$B$2+ROWS($A$2:A117)-1)))>$B$3,"",MAX(ROW(INDIRECT($B$2&":"&$B$2+ROWS($A$2:A117)-1)))) -> 2018-12-25 | D117: 1 | E117: =IF(ISNA(MATCH(MAX(ROW(INDIRECT($B$2&":"&$B$2+ROWS($A$2:A117)-1))),INDIRECT("$J$1:$J$"&COUNT(K:K)),0)),$B$2+ROWS($A$2:A117)-1,$B$3+20) -> 2018-12-25
C118: =IF(MAX(ROW(INDIRECT($B$2&":"&$B$2+ROWS($A$2:A118)-1)))>$B$3,"",MAX(ROW(INDIRECT($B$2&":"&$B$2+ROWS($A$2:A118)-1)))) -> 2018-12-26 | D118: 1 | E118: =IF(ISNA(MATCH(MAX(ROW(INDIRECT($B$2&":"&$B$2+ROWS($A$2:A118)-1))),INDIRECT("$J$1:$J$"&COUNT(K:K)),0)),$B$2+ROWS($A$2:A118)-1,$B$3+20) -> 2018-12-26
C119: =IF(MAX(ROW(INDIRECT($B$2&":"&$B$2+ROWS($A$2:A119)-1)))>$B$3,"",MAX(ROW(INDIRECT($B$2&":"&$B$2+ROWS($A$2:A119)-1)))) -> 2018-12-27 | D119: 1 | E119: =IF(ISNA(MATCH(MAX(ROW(INDIRECT($B$2&":"&$B$2+ROWS($A$2:A119)-1))),INDIRECT("$J$1:$J$"&COUNT(K:K)),0)),$B$2+ROWS($A$2:A119)-1,$B$3+20) -> 2018-12-27
C120: =IF(MAX(ROW(INDIRECT($B$2&":"&$B$2+ROWS($A$2:A120)-1)))>$B$3,"",MAX(ROW(INDIRECT($B$2&":"&$B$2+ROWS($A$2:A120)-1)))) -> 2018-12-28 | D120: 1 | E120: =IF(ISNA(MATCH(MAX(ROW(INDIRECT($B$2&":"&$B$2+ROWS($A$2:A120)-1))),INDIRECT("$J$1:$J$"&COUNT(K:K)),0)),$B$2+ROWS($A$2:A120)-1,$B$3+20) -> 2018-12-28
C121: =IF(MAX(ROW(INDIRECT($B$2&":"&$B$2+ROWS($A$2:A121)-1)))>$B$3,"",MAX(ROW(INDIRECT($B$2&":"&$B$2+ROWS($A$2:A121)-1)))) -> 2018-12-29 | D121: 1 | E121: =IF(ISNA(MATCH(MAX(ROW(INDIRECT($B$2&":"&$B$2+ROWS($A$2:A121)-1))),INDIRECT("$J$1:$J$"&COUNT(K:K)),0)),$B$2+ROWS($A$2:A121)-1,$B$3+20) -> 2018-12-29
C122: =IF(MAX(ROW(INDIRECT($B$2&":"&$B$2+ROWS($A$2:A122)-1)))>$B$3,"",MAX(ROW(INDIRECT($B$2&":"&$B$2+ROWS($A$2:A122)-1)))) -> 2018-12-30 | D122: 1 | E122: =IF(ISNA(MATCH(MAX(ROW(INDIRECT($B$2&":"&$B$2+ROWS($A$2:A122)-1))),INDIRECT("$J$1:$J$"&COUNT(K:K)),0)),$B$2+ROWS($A$2:A122)-1,$B$3+20) -> 2018-12-30
C123: =IF(MAX(ROW(INDIRECT($B$2&":"&$B$2+ROWS($A$2:A123)-1)))>$B$3,"",MAX(ROW(INDIRECT($B$2&":"&$B$2+ROWS($A$2:A123)-1)))) -> 2018-12-31 | D123: 1 | E123: =IF(ISNA(MATCH(MAX(ROW(INDIRECT($B$2&":"&$B$2+ROWS($A$2:A123)-1))),INDIRECT("$J$1:$J$"&COUNT(K:K)),0)),$B$2+ROWS($A$2:A123)-1,$B$3+20) -> 2018-12-31
C124: =IF(MAX(ROW(INDIRECT($B$2&":"&$B$2+ROWS($A$2:A124)-1)))>$B$3,"",MAX(ROW(INDIRECT($B$2&":"&$B$2+ROWS($A$2:A124)-1)))) -> 2019-01-01 | D124: 1 | E124: =IF(ISNA(MATCH(MAX(ROW(INDIRECT($B$2&":"&$B$2+ROWS($A$2:A124)-1))),INDIRECT("$J$1:$J$"&COUNT(K:K)),0)),$B$2+ROWS($A$2:A124)-1,$B$3+20) -> 2019-01-01
C125: =IF(MAX(ROW(INDIRECT($B$2&":"&$B$2+ROWS($A$2:A125)-1)))>$B$3,"",MAX(ROW(INDIRECT($B$2&":"&$B$2+ROWS($A$2:A125)-1)))) -> 2019-01-02 | D125: 1 | E125: =IF(ISNA(MATCH(MAX(ROW(INDIRECT($B$2&":"&$B$2+ROWS($A$2:A125)-1))),INDIRECT("$J$1:$J$"&COUNT(K:K)),0)),$B$2+ROWS($A$2:A125)-1,$B$3+20) -> 2019-01-02
C126: =IF(MAX(ROW(INDIRECT($B$2&":"&$B$2+ROWS($A$2:A126)-1)))>$B$3,"",MAX(ROW(INDIRECT($B$2&":"&$B$2+ROWS($A$2:A126)-1)))) -> 2019-01-03 | D126: 1 | E126: =IF(ISNA(MATCH(MAX(ROW(INDIRECT($B$2&":"&$B$2+ROWS($A$2:A126)-1))),INDIRECT("$J$1:$J$"&COUNT(K:K)),0)),$B$2+ROWS($A$2:A126)-1,$B$3+20) -> 2019-01-03
C127: =IF(MAX(ROW(INDIRECT($B$2&":"&$B$2+ROWS($A$2:A127)-1)))>$B$3,"",MAX(ROW(INDIRECT($B$2&":"&$B$2+ROWS($A$2:A127)-1)))) -> 2019-01-04 | D127: 1 | E127: =IF(ISNA(MATCH(MAX(ROW(INDIRECT($B$2&":"&$B$2+ROWS($A$2:A127)-1))),INDIRECT("$J$1:$J$"&COUNT(K:K)),0)),$B$2+ROWS($A$2:A127)-1,$B$3+20) -> 2019-01-04
C128: =IF(MAX(ROW(INDIRECT($B$2&":"&$B$2+ROWS($A$2:A128)-1)))>$B$3,"",MAX(ROW(INDIRECT($B$2&":"&$B$2+ROWS($A$2:A128)-1)))) -> 2019-01-05 | D128: 1 | E128: =IF(ISNA(MATCH(MAX(ROW(INDIRECT($B$2&":"&$B$2+ROWS($A$2:A128)-1))),INDIRECT("$J$1:$J$"&COUNT(K:K)),0)),$B$2+ROWS($A$2:A128)-1,$B$3+20) -> 2019-01-05
C129: =IF(MAX(ROW(INDIRECT($B$2&":"&$B$2+ROWS($A$2:A129)-1)))>$B$3,"",MAX(ROW(INDIRECT($B$2&":"&$B$2+ROWS($A$2:A129)-1)))) -> 2019-01-06 | D129: 1 | E129: =IF(ISNA(MATCH(MAX(ROW(INDIRECT($B$2&":"&$B$2+ROWS($A$2:A129)-1))),INDIRECT("$J$1:$J$"&COUNT(K:K)),0)),$B$2+ROWS($A$2:A129)-1,$B$3+20) -> 2019-01-06
C130: =IF(MAX(ROW(INDIRECT($B$2&":"&$B$2+ROWS($A$2:A130)-1)))>$B$3,"",MAX(ROW(INDIRECT($B$2&":"&$B$2+ROWS($A$2:A130)-1)))) -> 2019-01-07 | D130: 1 | E130: =IF(ISNA(MATCH(MAX(ROW(INDIRECT($B$2&":"&$B$2+ROWS($A$2:A130)-1))),INDIRECT("$J$1:$J$"&COUNT(K:K)),0)),$B$2+ROWS($A$2:A130)-1,$B$3+20) -> 2019-01-07
C131: =IF(MAX(ROW(INDIRECT($B$2&":"&$B$2+ROWS($A$2:A131)-1)))>$B$3,"",MAX(ROW(INDIRECT($B$2&":"&$B$2+ROWS($A$2:A131)-1)))) -> 2019-01-08 | D131: =IF($C131="","",AND(COUNTIF(K:K,C131)=0,NOT(OR(TEXT(C131,"DDD")=$L$2,TEXT(C131,"DDD")=$L$3))*1=1)*1) -> 1 | E131: =IF(ISNA(MATCH(MAX(ROW(INDIRECT($B$2&":"&$B$2+ROWS($A$2:A131)-1))),INDIRECT("$J$1:$J$"&COUNT(K:K)),0)),$B$2+ROWS($A$2:A131)-1,$B$3+20) -> 2019-01-08
C132: =IF(MAX(ROW(INDIRECT($B$2&":"&$B$2+ROWS($A$2:A132)-1)))>$B$3,"",MAX(ROW(INDIRECT($B$2&":"&$B$2+ROWS($A$2:A132)-1)))) -> 2019-01-09 | D132: 1 | E132: =IF(ISNA(MATCH(MAX(ROW(INDIRECT($B$2&":"&$B$2+ROWS($A$2:A132)-1))),INDIRECT("$J$1:$J$"&COUNT(K:K)),0)),$B$2+ROWS($A$2:A132)-1,$B$3+20) -> 2019-01-09
C133: =IF(MAX(ROW(INDIRECT($B$2&":"&$B$2+ROWS($A$2:A133)-1)))>$B$3,"",MAX(ROW(INDIRECT($B$2&":"&$B$2+ROWS($A$2:A133)-1)))) -> 2019-01-10 | D133: 1 | E133: =IF(ISNA(MATCH(MAX(ROW(INDIRECT($B$2&":"&$B$2+ROWS($A$2:A133)-1))),INDIRECT("$J$1:$J$"&COUNT(K:K)),0)),$B$2+ROWS($A$2:A133)-1,$B$3+20) -> 2019-01-10
C134: =IF(MAX(ROW(INDIRECT($B$2&":"&$B$2+ROWS($A$2:A134)-1)))>$B$3,"",MAX(ROW(INDIRECT($B$2&":"&$B$2+ROWS($A$2:A134)-1)))) -> 2019-01-11 | D134: 1 | E134: =IF(ISNA(MATCH(MAX(ROW(INDIRECT($B$2&":"&$B$2+ROWS($A$2:A134)-1))),INDIRECT("$J$1:$J$"&COUNT(K:K)),0)),$B$2+ROWS($A$2:A134)-1,$B$3+20) -> 2019-01-11
C135: =IF(MAX(ROW(INDIRECT($B$2&":"&$B$2+ROWS($A$2:A135)-1)))>$B$3,"",MAX(ROW(INDIRECT($B$2&":"&$B$2+ROWS($A$2:A135)-1)))) -> 2019-01-12 | D135: 1 | E135: =IF(ISNA(MATCH(MAX(ROW(INDIRECT($B$2&":"&$B$2+ROWS($A$2:A135)-1))),INDIRECT("$J$1:$J$"&COUNT(K:K)),0)),$B$2+ROWS($A$2:A135)-1,$B$3+20) -> 2019-01-12
C136: =IF(MAX(ROW(INDIRECT($B$2&":"&$B$2+ROWS($A$2:A136)-1)))>$B$3,"",MAX(ROW(INDIRECT($B$2&":"&$B$2+ROWS($A$2:A136)-1)))) -> 2019-01-13 | D136: 1 | E136: =IF(ISNA(MATCH(MAX(ROW(INDIRECT($B$2&":"&$B$2+ROWS($A$2:A136)-1))),INDIRECT("$J$1:$J$"&COUNT(K:K)),0)),$B$2+ROWS($A$2:A136)-1,$B$3+20) -> 2019-01-13
C137: =IF(MAX(ROW(INDIRECT($B$2&":"&$B$2+ROWS($A$2:A137)-1)))>$B$3,"",MAX(ROW(INDIRECT($B$2&":"&$B$2+ROWS($A$2:A137)-1)))) -> 2019-01-14 | D137: 1 | E137: =IF(ISNA(MATCH(MAX(ROW(INDIRECT($B$2&":"&$B$2+ROWS($A$2:A137)-1))),INDIRECT("$J$1:$J$"&COUNT(K:K)),0)),$B$2+ROWS($A$2:A137)-1,$B$3+20) -> 2019-01-14
C138: =IF(MAX(ROW(INDIRECT($B$2&":"&$B$2+ROWS($A$2:A138)-1)))>$B$3,"",MAX(ROW(INDIRECT($B$2&":"&$B$2+ROWS($A$2:A138)-1)))) -> 2019-01-15 | D138: 1 | E138: =IF(ISNA(MATCH(MAX(ROW(INDIRECT($B$2&":"&$B$2+ROWS($A$2:A138)-1))),INDIRECT("$J$1:$J$"&COUNT(K:K)),0)),$B$2+ROWS($A$2:A138)-1,$B$3+20) -> 2019-01-15
C139: =IF(MAX(ROW(INDIRECT($B$2&":"&$B$2+ROWS($A$2:A139)-1)))>$B$3,"",MAX(ROW(INDIRECT($B$2&":"&$B$2+ROWS($A$2:A139)-1)))) -> 2019-01-16 | D139: 1 | E139: =IF(ISNA(MATCH(MAX(ROW(INDIRECT($B$2&":"&$B$2+ROWS($A$2:A139)-1))),INDIRECT("$J$1:$J$"&COUNT(K:K)),0)),$B$2+ROWS($A$2:A139)-1,$B$3+20) -> 2019-01-16
C140: =IF(MAX(ROW(INDIRECT($B$2&":"&$B$2+ROWS($A$2:A140)-1)))>$B$3,"",MAX(ROW(INDIRECT($B$2&":"&$B$2+ROWS($A$2:A140)-1)))) -> 2019-01-17 | D140: 1 | E140: =IF(ISNA(MATCH(MAX(ROW(INDIRECT($B$2&":"&$B$2+ROWS($A$2:A140)-1))),INDIRECT("$J$1:$J$"&COUNT(K:K)),0)),$B$2+ROWS($A$2:A140)-1,$B$3+20) -> 2019-01-17
C141: =IF(MAX(ROW(INDIRECT($B$2&":"&$B$2+ROWS($A$2:A141)-1)))>$B$3,"",MAX(ROW(INDIRECT($B$2&":"&$B$2+ROWS($A$2:A141)-1)))) -> 2019-01-18 | D141: 1 | E141: =IF(ISNA(MATCH(MAX(ROW(INDIRECT($B$2&":"&$B$2+ROWS($A$2:A141)-1))),INDIRECT("$J$1:$J$"&COUNT(K:K)),0)),$B$2+ROWS($A$2:A141)-1,$B$3+20) -> 2019-01-18
C142: =IF(MAX(ROW(INDIRECT($B$2&":"&$B$2+ROWS($A$2:A142)-1)))>$B$3,"",MAX(ROW(INDIRECT($B$2&":"&$B$2+ROWS($A$2:A142)-1)))) -> 2019-01-19 | D142: 1 | E142: =IF(ISNA(MATCH(MAX(ROW(INDIRECT($B$2&":"&$B$2+ROWS($A$2:A142)-1))),INDIRECT("$J$1:$J$"&COUNT(K:K)),0)),$B$2+ROWS($A$2:A142)-1,$B$3+20) -> 2019-01-19
C143: =IF(MAX(ROW(INDIRECT($B$2&":"&$B$2+ROWS($A$2:A143)-1)))>$B$3,"",MAX(ROW(INDIRECT($B$2&":"&$B$2+ROWS($A$2:A143)-1)))) -> 2019-01-20 | D143: 1 | E143: =IF(ISNA(MATCH(MAX(ROW(INDIRECT($B$2&":"&$B$2+ROWS($A$2:A143)-1))),INDIRECT("$J$1:$J$"&COUNT(K:K)),0)),$B$2+ROWS($A$2:A143)-1,$B$3+20) -> 2019-01-20
C144: =IF(MAX(ROW(INDIRECT($B$2&":"&$B$2+ROWS($A$2:A144)-1)))>$B$3,"",MAX(ROW(INDIRECT($B$2&":"&$B$2+ROWS($A$2:A144)-1)))) -> 2019-01-21 | D144: 1 | E144: =IF(ISNA(MATCH(MAX(ROW(INDIRECT($B$2&":"&$B$2+ROWS($A$2:A144)-1))),INDIRECT("$J$1:$J$"&COUNT(K:K)),0)),$B$2+ROWS($A$2:A144)-1,$B$3+20) -> 2019-01-21
C145: =IF(MAX(ROW(INDIRECT($B$2&":"&$B$2+ROWS($A$2:A145)-1)))>$B$3,"",MAX(ROW(INDIRECT($B$2&":"&$B$2+ROWS($A$2:A145)-1)))) -> 2019-01-22 | D145: 1 | E145: =IF(ISNA(MATCH(MAX(ROW(INDIRECT($B$2&":"&$B$2+ROWS($A$2:A145)-1))),INDIRECT("$J$1:$J$"&COUNT(K:K)),0)),$B$2+ROWS($A$2:A145)-1,$B$3+20) -> 2019-01-22
C146: =IF(MAX(ROW(INDIRECT($B$2&":"&$B$2+ROWS($A$2:A146)-1)))>$B$3,"",MAX(ROW(INDIRECT($B$2&":"&$B$2+ROWS($A$2:A146)-1)))) -> 2019-01-23 | D146: 1 | E146: =IF(ISNA(MATCH(MAX(ROW(INDIRECT($B$2&":"&$B$2+ROWS($A$2:A146)-1))),INDIRECT("$J$1:$J$"&COUNT(K:K)),0)),$B$2+ROWS($A$2:A146)-1,$B$3+20) -> 2019-01-23
C147: =IF(MAX(ROW(INDIRECT($B$2&":"&$B$2+ROWS($A$2:A147)-1)))>$B$3,"",MAX(ROW(INDIRECT($B$2&":"&$B$2+ROWS($A$2:A147)-1)))) -> 2019-01-24 | D147: 1 | E147: =IF(ISNA(MATCH(MAX(ROW(INDIRECT($B$2&":"&$B$2+ROWS($A$2:A147)-1))),INDIRECT("$J$1:$J$"&COUNT(K:K)),0)),$B$2+ROWS($A$2:A147)-1,$B$3+20) -> 2019-01-24
C148: =IF(MAX(ROW(INDIRECT($B$2&":"&$B$2+ROWS($A$2:A148)-1)))>$B$3,"",MAX(ROW(INDIRECT($B$2&":"&$B$2+ROWS($A$2:A148)-1)))) -> 2019-01-25 | D148: 1 | E148: =IF(ISNA(MATCH(MAX(ROW(INDIRECT($B$2&":"&$B$2+ROWS($A$2:A148)-1))),INDIRECT("$J$1:$J$"&COUNT(K:K)),0)),$B$2+ROWS($A$2:A148)-1,$B$3+20) -> 2019-01-25
C149: =IF(MAX(ROW(INDIRECT($B$2&":"&$B$2+ROWS($A$2:A149)-1)))>$B$3,"",MAX(ROW(INDIRECT($B$2&":"&$B$2+ROWS($A$2:A149)-1)))) -> 2019-01-26 | D149: 1 | E149: =IF(ISNA(MATCH(MAX(ROW(INDIRECT($B$2&":"&$B$2+ROWS($A$2:A149)-1))),INDIRECT("$J$1:$J$"&COUNT(K:K)),0)),$B$2+ROWS($A$2:A149)-1,$B$3+20) -> 2019-01-26
C150: =IF(MAX(ROW(INDIRECT($B$2&":"&$B$2+ROWS($A$2:A150)-1)))>$B$3,"",MAX(ROW(INDIRECT($B$2&":"&$B$2+ROWS($A$2:A150)-1)))) -> 2019-01-27 | D150: 1 | E150: =IF(ISNA(MATCH(MAX(ROW(INDIRECT($B$2&":"&$B$2+ROWS($A$2:A150)-1))),INDIRECT("$J$1:$J$"&COUNT(K:K)),0)),$B$2+ROWS($A$2:A150)-1,$B$3+20) -> 2019-01-27
C151: =IF(MAX(ROW(INDIRECT($B$2&":"&$B$2+ROWS($A$2:A151)-1)))>$B$3,"",MAX(ROW(INDIRECT($B$2&":"&$B$2+ROWS($A$2:A151)-1)))) -> 2019-01-28 | D151: 1 | E151: =IF(ISNA(MATCH(MAX(ROW(INDIRECT($B$2&":"&$B$2+ROWS($A$2:A151)-1))),INDIRECT("$J$1:$J$"&COUNT(K:K)),0)),$B$2+ROWS($A$2:A151)-1,$B$3+20) -> 2019-01-28
C152: =IF(MAX(ROW(INDIRECT($B$2&":"&$B$2+ROWS($A$2:A152)-1)))>$B$3,"",MAX(ROW(INDIRECT($B$2&":"&$B$2+ROWS($A$2:A152)-1)))) -> 2019-01-29 | D152: 1 | E152: =IF(ISNA(MATCH(MAX(ROW(INDIRECT($B$2&":"&$B$2+ROWS($A$2:A152)-1))),INDIRECT("$J$1:$J$"&COUNT(K:K)),0)),$B$2+ROWS($A$2:A152)-1,$B$3+20) -> 2019-01-29
C153: =IF(MAX(ROW(INDIRECT($B$2&":"&$B$2+ROWS($A$2:A153)-1)))>$B$3,"",MAX(ROW(INDIRECT($B$2&":"&$B$2+ROWS($A$2:A153)-1)))) -> 2019-01-30 | D153: 1 | E153: =IF(ISNA(MATCH(MAX(ROW(INDIRECT($B$2&":"&$B$2+ROWS($A$2:A153)-1))),INDIRECT("$J$1:$J$"&COUNT(K:K)),0)),$B$2+ROWS($A$2:A153)-1,$B$3+20) -> 2019-01-30
C154: =IF(MAX(ROW(INDIRECT($B$2&":"&$B$2+ROWS($A$2:A154)-1)))>$B$3,"",MAX(ROW(INDIRECT($B$2&":"&$B$2+ROWS($A$2:A154)-1)))) -> 2019-01-31 | D154: 1 | E154: =IF(ISNA(MATCH(MAX(ROW(INDIRECT($B$2&":"&$B$2+ROWS($A$2:A154)-1))),INDIRECT("$J$1:$J$"&COUNT(K:K)),0)),$B$2+ROWS($A$2:A154)-1,$B$3+20) -> 2019-01-31
C155: =IF(MAX(ROW(INDIRECT($B$2&":"&$B$2+ROWS($A$2:A155)-1)))>$B$3,"",MAX(ROW(INDIRECT($B$2&":"&$B$2+ROWS($A$2:A155)-1)))) -> 2019-02-01 | D155: 1 | E155: =IF(ISNA(MATCH(MAX(ROW(INDIRECT($B$2&":"&$B$2+ROWS($A$2:A155)-1))),INDIRECT("$J$1:$J$"&COUNT(K:K)),0)),$B$2+ROWS($A$2:A155)-1,$B$3+20) -> 2019-02-01
C156: =IF(MAX(ROW(INDIRECT($B$2&":"&$B$2+ROWS($A$2:A156)-1)))>$B$3,"",MAX(ROW(INDIRECT($B$2&":"&$B$2+ROWS($A$2:A156)-1)))) -> 2019-02-02 | D156: 1 | E156: =IF(ISNA(MATCH(MAX(ROW(INDIRECT($B$2&":"&$B$2+ROWS($A$2:A156)-1))),INDIRECT("$J$1:$J$"&COUNT(K:K)),0)),$B$2+ROWS($A$2:A156)-1,$B$3+20) -> 2019-02-02
C157: =IF(MAX(ROW(INDIRECT($B$2&":"&$B$2+ROWS($A$2:A157)-1)))>$B$3,"",MAX(ROW(INDIRECT($B$2&":"&$B$2+ROWS($A$2:A157)-1)))) -> 2019-02-03 | D157: 1 | E157: =IF(ISNA(MATCH(MAX(ROW(INDIRECT($B$2&":"&$B$2+ROWS($A$2:A157)-1))),INDIRECT("$J$1:$J$"&COUNT(K:K)),0)),$B$2+ROWS($A$2:A157)-1,$B$3+20) -> 2019-02-03
C158: =IF(MAX(ROW(INDIRECT($B$2&":"&$B$2+ROWS($A$2:A158)-1)))>$B$3,"",MAX(ROW(INDIRECT($B$2&":"&$B$2+ROWS($A$2:A158)-1)))) -> 2019-02-04 | D158: 1 | E158: =IF(ISNA(MATCH(MAX(ROW(INDIRECT($B$2&":"&$B$2+ROWS($A$2:A158)-1))),INDIRECT("$J$1:$J$"&COUNT(K:K)),0)),$B$2+ROWS($A$2:A158)-1,$B$3+20) -> 2019-02-04
C159: =IF(MAX(ROW(INDIRECT($B$2&":"&$B$2+ROWS($A$2:A159)-1)))>$B$3,"",MAX(ROW(INDIRECT($B$2&":"&$B$2+ROWS($A$2:A159)-1)))) -> 2019-02-05 | D159: 1 | E159: =IF(ISNA(MATCH(MAX(ROW(INDIRECT($B$2&":"&$B$2+ROWS($A$2:A159)-1))),INDIRECT("$J$1:$J$"&COUNT(K:K)),0)),$B$2+ROWS($A$2:A159)-1,$B$3+20) -> 2019-02-05
C160: =IF(MAX(ROW(INDIRECT($B$2&":"&$B$2+ROWS($A$2:A160)-1)))>$B$3,"",MAX(ROW(INDIRECT($B$2&":"&$B$2+ROWS($A$2:A160)-1)))) -> 2019-02-06 | D160: 1 | E160: =IF(ISNA(MATCH(MAX(ROW(INDIRECT($B$2&":"&$B$2+ROWS($A$2:A160)-1))),INDIRECT("$J$1:$J$"&COUNT(K:K)),0)),$B$2+ROWS($A$2:A160)-1,$B$3+20) -> 2019-02-06
C161: =IF(MAX(ROW(INDIRECT($B$2&":"&$B$2+ROWS($A$2:A161)-1)))>$B$3,"",MAX(ROW(INDIRECT($B$2&":"&$B$2+ROWS($A$2:A161)-1)))) -> 2019-02-07 | D161: 1 | E161: =IF(ISNA(MATCH(MAX(ROW(INDIRECT($B$2&":"&$B$2+ROWS($A$2:A161)-1))),INDIRECT("$J$1:$J$"&COUNT(K:K)),0)),$B$2+ROWS($A$2:A161)-1,$B$3+20) -> 2019-02-07
C162: =IF(MAX(ROW(INDIRECT($B$2&":"&$B$2+ROWS($A$2:A162)-1)))>$B$3,"",MAX(ROW(INDIRECT($B$2&":"&$B$2+ROWS($A$2:A162)-1)))) -> 2019-02-08 | D162: 1 | E162: =IF(ISNA(MATCH(MAX(ROW(INDIRECT($B$2&":"&$B$2+ROWS($A$2:A162)-1))),INDIRECT("$J$1:$J$"&COUNT(K:K)),0)),$B$2+ROWS($A$2:A162)-1,$B$3+20) -> 2019-02-08
C163: =IF(MAX(ROW(INDIRECT($B$2&":"&$B$2+ROWS($A$2:A163)-1)))>$B$3,"",MAX(ROW(INDIRECT($B$2&":"&$B$2+ROWS($A$2:A163)-1)))) -> 2019-02-09 | D163: 1 | E163: =IF(ISNA(MATCH(MAX(ROW(INDIRECT($B$2&":"&$B$2+ROWS($A$2:A163)-1))),INDIRECT("$J$1:$J$"&COUNT(K:K)),0)),$B$2+ROWS($A$2:A163)-1,$B$3+20) -> 2019-02-09
C164: =IF(MAX(ROW(INDIRECT($B$2&":"&$B$2+ROWS($A$2:A164)-1)))>$B$3,"",MAX(ROW(INDIRECT($B$2&":"&$B$2+ROWS($A$2:A164)-1)))) -> 2019-02-10 | D164: 1 | E164: =IF(ISNA(MATCH(MAX(ROW(INDIRECT($B$2&":"&$B$2+ROWS($A$2:A164)-1))),INDIRECT("$J$1:$J$"&COUNT(K:K)),0)),$B$2+ROWS($A$2:A164)-1,$B$3+20) -> 2019-02-10
C165: =IF(MAX(ROW(INDIRECT($B$2&":"&$B$2+ROWS($A$2:A165)-1)))>$B$3,"",MAX(ROW(INDIRECT($B$2&":"&$B$2+ROWS($A$2:A165)-1)))) -> 2019-02-11 | D165: 1 | E165: =IF(ISNA(MATCH(MAX(ROW(INDIRECT($B$2&":"&$B$2+ROWS($A$2:A165)-1))),INDIRECT("$J$1:$J$"&COUNT(K:K)),0)),$B$2+ROWS($A$2:A165)-1,$B$3+20) -> 2019-02-11
C166: =IF(MAX(ROW(INDIRECT($B$2&":"&$B$2+ROWS($A$2:A166)-1)))>$B$3,"",MAX(ROW(INDIRECT($B$2&":"&$B$2+ROWS($A$2:A166)-1)))) -> 2019-02-12 | D166: 1 | E166: =IF(ISNA(MATCH(MAX(ROW(INDIRECT($B$2&":"&$B$2+ROWS($A$2:A166)-1))),INDIRECT("$J$1:$J$"&COUNT(K:K)),0)),$B$2+ROWS($A$2:A166)-1,$B$3+20) -> 2019-02-12
C167: =IF(MAX(ROW(INDIRECT($B$2&":"&$B$2+ROWS($A$2:A167)-1)))>$B$3,"",MAX(ROW(INDIRECT($B$2&":"&$B$2+ROWS($A$2:A167)-1)))) -> 2019-02-13 | D167: 1 | E167: =IF(ISNA(MATCH(MAX(ROW(INDIRECT($B$2&":"&$B$2+ROWS($A$2:A167)-1))),INDIRECT("$J$1:$J$"&COUNT(K:K)),0)),$B$2+ROWS($A$2:A167)-1,$B$3+20) -> 2019-02-13
C168: =IF(MAX(ROW(INDIRECT($B$2&":"&$B$2+ROWS($A$2:A168)-1)))>$B$3,"",MAX(ROW(INDIRECT($B$2&":"&$B$2+ROWS($A$2:A168)-1)))) -> 2019-02-14 | D168: 1 | E168: =IF(ISNA(MATCH(MAX(ROW(INDIRECT($B$2&":"&$B$2+ROWS($A$2:A168)-1))),INDIRECT("$J$1:$J$"&COUNT(K:K)),0)),$B$2+ROWS($A$2:A168)-1,$B$3+20) -> 2019-02-14
C169: =IF(MAX(ROW(INDIRECT($B$2&":"&$B$2+ROWS($A$2:A169)-1)))>$B$3,"",MAX(ROW(INDIRECT($B$2&":"&$B$2+ROWS($A$2:A169)-1)))) -> 2019-02-15 | D169: 1 | E169: =IF(ISNA(MATCH(MAX(ROW(INDIRECT($B$2&":"&$B$2+ROWS($A$2:A169)-1))),INDIRECT("$J$1:$J$"&COUNT(K:K)),0)),$B$2+ROWS($A$2:A169)-1,$B$3+20) -> 2019-02-15
C170: =IF(MAX(ROW(INDIRECT($B$2&":"&$B$2+ROWS($A$2:A170)-1)))>$B$3,"",MAX(ROW(INDIRECT($B$2&":"&$B$2+ROWS($A$2:A170)-1)))) -> 2019-02-16 | D170: 1 | E170: =IF(ISNA(MATCH(MAX(ROW(INDIRECT($B$2&":"&$B$2+ROWS($A$2:A170)-1))),INDIRECT("$J$1:$J$"&COUNT(K:K)),0)),$B$2+ROWS($A$2:A170)-1,$B$3+20) -> 2019-02-16
C171: =IF(MAX(ROW(INDIRECT($B$2&":"&$B$2+ROWS($A$2:A171)-1)))>$B$3,"",MAX(ROW(INDIRECT($B$2&":"&$B$2+ROWS($A$2:A171)-1)))) -> 2019-02-17 | D171: 1 | E171: =IF(ISNA(MATCH(MAX(ROW(INDIRECT($B$2&":"&$B$2+ROWS($A$2:A171)-1))),INDIRECT("$J$1:$J$"&COUNT(K:K)),0)),$B$2+ROWS($A$2:A171)-1,$B$3+20) -> 2019-02-17
C172: =IF(MAX(ROW(INDIRECT($B$2&":"&$B$2+ROWS($A$2:A172)-1)))>$B$3,"",MAX(ROW(INDIRECT($B$2&":"&$B$2+ROWS($A$2:A172)-1)))) -> 2019-02-18 | D172: 1 | E172: =IF(ISNA(MATCH(MAX(ROW(INDIRECT($B$2&":"&$B$2+ROWS($A$2:A172)-1))),INDIRECT("$J$1:$J$"&COUNT(K:K)),0)),$B$2+ROWS($A$2:A172)-1,$B$3+20) -> 2019-02-18
C173: =IF(MAX(ROW(INDIRECT($B$2&":"&$B$2+ROWS($A$2:A173)-1)))>$B$3,"",MAX(ROW(INDIRECT($B$2&":"&$B$2+ROWS($A$2:A173)-1)))) -> 2019-02-19 | D173: 1 | E173: =IF(ISNA(MATCH(MAX(ROW(INDIRECT($B$2&":"&$B$2+ROWS($A$2:A173)-1))),INDIRECT("$J$1:$J$"&COUNT(K:K)),0)),$B$2+ROWS($A$2:A173)-1,$B$3+20) -> 2019-02-19
C174: =IF(MAX(ROW(INDIRECT($B$2&":"&$B$2+ROWS($A$2:A174)-1)))>$B$3,"",MAX(ROW(INDIRECT($B$2&":"&$B$2+ROWS($A$2:A174)-1)))) -> 2019-02-20 | D174: 1 | E174: =IF(ISNA(MATCH(MAX(ROW(INDIRECT($B$2&":"&$B$2+ROWS($A$2:A174)-1))),INDIRECT("$J$1:$J$"&COUNT(K:K)),0)),$B$2+ROWS($A$2:A174)-1,$B$3+20) -> 2019-02-20
C175: =IF(MAX(ROW(INDIRECT($B$2&":"&$B$2+ROWS($A$2:A175)-1)))>$B$3,"",MAX(ROW(INDIRECT($B$2&":"&$B$2+ROWS($A$2:A175)-1)))) -> 2019-02-21 | D175: 1 | E175: =IF(ISNA(MATCH(MAX(ROW(INDIRECT($B$2&":"&$B$2+ROWS($A$2:A175)-1))),INDIRECT("$J$1:$J$"&COUNT(K:K)),0)),$B$2+ROWS($A$2:A175)-1,$B$3+20) -> 2019-02-21
C176: =IF(MAX(ROW(INDIRECT($B$2&":"&$B$2+ROWS($A$2:A176)-1)))>$B$3,"",MAX(ROW(INDIRECT($B$2&":"&$B$2+ROWS($A$2:A176)-1)))) -> 2019-02-22 | D176: 1 | E176: =IF(ISNA(MATCH(MAX(ROW(INDIRECT($B$2&":"&$B$2+ROWS($A$2:A176)-1))),INDIRECT("$J$1:$J$"&COUNT(K:K)),0)),$B$2+ROWS($A$2:A176)-1,$B$3+20) -> 2019-02-22
C177: =IF(MAX(ROW(INDIRECT($B$2&":"&$B$2+ROWS($A$2:A177)-1)))>$B$3,"",MAX(ROW(INDIRECT($B$2&":"&$B$2+ROWS($A$2:A177)-1)))) -> 2019-02-23 | D177: 1 | E177: =IF(ISNA(MATCH(MAX(ROW(INDIRECT($B$2&":"&$B$2+ROWS($A$2:A177)-1))),INDIRECT("$J$1:$J$"&COUNT(K:K)),0)),$B$2+ROWS($A$2:A177)-1,$B$3+20) -> 2019-02-23
C178: =IF(MAX(ROW(INDIRECT($B$2&":"&$B$2+ROWS($A$2:A178)-1)))>$B$3,"",MAX(ROW(INDIRECT($B$2&":"&$B$2+ROWS($A$2:A178)-1)))) -> 2019-02-24 | D178: 1 | E178: =IF(ISNA(MATCH(MAX(ROW(INDIRECT($B$2&":"&$B$2+ROWS($A$2:A178)-1))),INDIRECT("$J$1:$J$"&COUNT(K:K)),0)),$B$2+ROWS($A$2:A178)-1,$B$3+20) -> 2019-02-24
C179: =IF(MAX(ROW(INDIRECT($B$2&":"&$B$2+ROWS($A$2:A179)-1)))>$B$3,"",MAX(ROW(INDIRECT($B$2&":"&$B$2+ROWS($A$2:A179)-1)))) -> 2019-02-25 | D179: 1 | E179: =IF(ISNA(MATCH(MAX(ROW(INDIRECT($B$2&":"&$B$2+ROWS($A$2:A179)-1))),INDIRECT("$J$1:$J$"&COUNT(K:K)),0)),$B$2+ROWS($A$2:A179)-1,$B$3+20) -> 2019-02-25
C180: =IF(MAX(ROW(INDIRECT($B$2&":"&$B$2+ROWS($A$2:A180)-1)))>$B$3,"",MAX(ROW(INDIRECT($B$2&":"&$B$2+ROWS($A$2:A180)-1)))) -> 2019-02-26 | D180: 1 | E180: =IF(ISNA(MATCH(MAX(ROW(INDIRECT($B$2&":"&$B$2+ROWS($A$2:A180)-1))),INDIRECT("$J$1:$J$"&COUNT(K:K)),0)),$B$2+ROWS($A$2:A180)-1,$B$3+20) -> 2019-02-26
C181: =IF(MAX(ROW(INDIRECT($B$2&":"&$B$2+ROWS($A$2:A181)-1)))>$B$3,"",MAX(ROW(INDIRECT($B$2&":"&$B$2+ROWS($A$2:A181)-1)))) -> 2019-02-27 | D181: 1 | E181: =IF(ISNA(MATCH(MAX(ROW(INDIRECT($B$2&":"&$B$2+ROWS($A$2:A181)-1))),INDIRECT("$J$1:$J$"&COUNT(K:K)),0)),$B$2+ROWS($A$2:A181)-1,$B$3+20) -> 2019-02-27
C182: =IF(MAX(ROW(INDIRECT($B$2&":"&$B$2+ROWS($A$2:A182)-1)))>$B$3,"",MAX(ROW(INDIRECT($B$2&":"&$B$2+ROWS($A$2:A182)-1)))) -> 2019-02-28 | D182: 1 | E182: =IF(ISNA(MATCH(MAX(ROW(INDIRECT($B$2&":"&$B$2+ROWS($A$2:A182)-1))),INDIRECT("$J$1:$J$"&COUNT(K:K)),0)),$B$2+ROWS($A$2:A182)-1,$B$3+20) -> 2019-02-28
C183: =IF(MAX(ROW(INDIRECT($B$2&":"&$B$2+ROWS($A$2:A183)-1)))>$B$3,"",MAX(ROW(INDIRECT($B$2&":"&$B$2+ROWS($A$2:A183)-1)))) -> 2019-03-01 | D183: 1 | E183: =IF(ISNA(MATCH(MAX(ROW(INDIRECT($B$2&":"&$B$2+ROWS($A$2:A183)-1))),INDIRECT("$J$1:$J$"&COUNT(K:K)),0)),$B$2+ROWS($A$2:A183)-1,$B$3+20) -> 2019-03-01
C184: =IF(MAX(ROW(INDIRECT($B$2&":"&$B$2+ROWS($A$2:A184)-1)))>$B$3,"",MAX(ROW(INDIRECT($B$2&":"&$B$2+ROWS($A$2:A184)-1)))) -> 2019-03-02 | D184: 1 | E184: =IF(ISNA(MATCH(MAX(ROW(INDIRECT($B$2&":"&$B$2+ROWS($A$2:A184)-1))),INDIRECT("$J$1:$J$"&COUNT(K:K)),0)),$B$2+ROWS($A$2:A184)-1,$B$3+20) -> 2019-03-02
C185: =IF(MAX(ROW(INDIRECT($B$2&":"&$B$2+ROWS($A$2:A185)-1)))>$B$3,"",MAX(ROW(INDIRECT($B$2&":"&$B$2+ROWS($A$2:A185)-1)))) -> 2019-03-03 | D185: 1 | E185: =IF(ISNA(MATCH(MAX(ROW(INDIRECT($B$2&":"&$B$2+ROWS($A$2:A185)-1))),INDIRECT("$J$1:$J$"&COUNT(K:K)),0)),$B$2+ROWS($A$2:A185)-1,$B$3+20) -> 2019-03-03
C186: =IF(MAX(ROW(INDIRECT($B$2&":"&$B$2+ROWS($A$2:A186)-1)))>$B$3,"",MAX(ROW(INDIRECT($B$2&":"&$B$2+ROWS($A$2:A186)-1)))) -> 2019-03-04 | D186: 1 | E186: =IF(ISNA(MATCH(MAX(ROW(INDIRECT($B$2&":"&$B$2+ROWS($A$2:A186)-1))),INDIRECT("$J$1:$J$"&COUNT(K:K)),0)),$B$2+ROWS($A$2:A186)-1,$B$3+20) -> 2019-03-04
C187: =IF(MAX(ROW(INDIRECT($B$2&":"&$B$2+ROWS($A$2:A187)-1)))>$B$3,"",MAX(ROW(INDIRECT($B$2&":"&$B$2+ROWS($A$2:A187)-1)))) -> 2019-03-05 | D187: 1 | E187: =IF(ISNA(MATCH(MAX(ROW(INDIRECT($B$2&":"&$B$2+ROWS($A$2:A187)-1))),INDIRECT("$J$1:$J$"&COUNT(K:K)),0)),$B$2+ROWS($A$2:A187)-1,$B$3+20) -> 2019-03-05
C188: =IF(MAX(ROW(INDIRECT($B$2&":"&$B$2+ROWS($A$2:A188)-1)))>$B$3,"",MAX(ROW(INDIRECT($B$2&":"&$B$2+ROWS($A$2:A188)-1)))) -> 2019-03-06 | D188: 1 | E188: =IF(ISNA(MATCH(MAX(ROW(INDIRECT($B$2&":"&$B$2+ROWS($A$2:A188)-1))),INDIRECT("$J$1:$J$"&COUNT(K:K)),0)),$B$2+ROWS($A$2:A188)-1,$B$3+20) -> 2019-03-06
C189: =IF(MAX(ROW(INDIRECT($B$2&":"&$B$2+ROWS($A$2:A189)-1)))>$B$3,"",MAX(ROW(INDIRECT($B$2&":"&$B$2+ROWS($A$2:A189)-1)))) -> 2019-03-07 | D189: 1 | E189: =IF(ISNA(MATCH(MAX(ROW(INDIRECT($B$2&":"&$B$2+ROWS($A$2:A189)-1))),INDIRECT("$J$1:$J$"&COUNT(K:K)),0)),$B$2+ROWS($A$2:A189)-1,$B$3+20) -> 2019-03-07
C190: =IF(MAX(ROW(INDIRECT($B$2&":"&$B$2+ROWS($A$2:A190)-1)))>$B$3,"",MAX(ROW(INDIRECT($B$2&":"&$B$2+ROWS($A$2:A190)-1)))) -> 2019-03-08 | D190: 1 | E190: =IF(ISNA(MATCH(MAX(ROW(INDIRECT($B$2&":"&$B$2+ROWS($A$2:A190)-1))),INDIRECT("$J$1:$J$"&COUNT(K:K)),0)),$B$2+ROWS($A$2:A190)-1,$B$3+20) -> 2019-03-08
C191: =IF(MAX(ROW(INDIRECT($B$2&":"&$B$2+ROWS($A$2:A191)-1)))>$B$3,"",MAX(ROW(INDIRECT($B$2&":"&$B$2+ROWS($A$2:A191)-1)))) -> 2019-03-09 | D191: 1 | E191: =IF(ISNA(MATCH(MAX(ROW(INDIRECT($B$2&":"&$B$2+ROWS($A$2:A191)-1))),INDIRECT("$J$1:$J$"&COUNT(K:K)),0)),$B$2+ROWS($A$2:A191)-1,$B$3+20) -> 2019-03-09
C192: =IF(MAX(ROW(INDIRECT($B$2&":"&$B$2+ROWS($A$2:A192)-1)))>$B$3,"",MAX(ROW(INDIRECT($B$2&":"&$B$2+ROWS($A$2:A192)-1)))) -> 2019-03-10 | D192: 1 | E192: =IF(ISNA(MATCH(MAX(ROW(INDIRECT($B$2&":"&$B$2+ROWS($A$2:A192)-1))),INDIRECT("$J$1:$J$"&COUNT(K:K)),0)),$B$2+ROWS($A$2:A192)-1,$B$3+20) -> 2019-03-10
C193: =IF(MAX(ROW(INDIRECT($B$2&":"&$B$2+ROWS($A$2:A193)-1)))>$B$3,"",MAX(ROW(INDIRECT($B$2&":"&$B$2+ROWS($A$2:A193)-1)))) -> 2019-03-11 | D193: 1 | E193: =IF(ISNA(MATCH(MAX(ROW(INDIRECT($B$2&":"&$B$2+ROWS($A$2:A193)-1))),INDIRECT("$J$1:$J$"&COUNT(K:K)),0)),$B$2+ROWS($A$2:A193)-1,$B$3+20) -> 2019-03-11
C194: =IF(MAX(ROW(INDIRECT($B$2&":"&$B$2+ROWS($A$2:A194)-1)))>$B$3,"",MAX(ROW(INDIRECT($B$2&":"&$B$2+ROWS($A$2:A194)-1)))) -> 2019-03-12 | D194: 1 | E194: =IF(ISNA(MATCH(MAX(ROW(INDIRECT($B$2&":"&$B$2+ROWS($A$2:A194)-1))),INDIRECT("$J$1:$J$"&COUNT(K:K)),0)),$B$2+ROWS($A$2:A194)-1,$B$3+20) -> 2019-03-12
C195: =IF(MAX(ROW(INDIRECT($B$2&":"&$B$2+ROWS($A$2:A195)-1)))>$B$3,"",MAX(ROW(INDIRECT($B$2&":"&$B$2+ROWS($A$2:A195)-1)))) -> 2019-03-13 | D195: =IF($C195="","",AND(COUNTIF(K:K,C195)=0,NOT(OR(TEXT(C195,"DDD")=$L$2,TEXT(C195,"DDD")=$L$3))*1=1)*1) -> 1 | E195: =IF(ISNA(MATCH(MAX(ROW(INDIRECT($B$2&":"&$B$2+ROWS($A$2:A195)-1))),INDIRECT("$J$1:$J$"&COUNT(K:K)),0)),$B$2+ROWS($A$2:A195)-1,$B$3+20) -> 2019-03-13
C196: =IF(MAX(ROW(INDIRECT($B$2&":"&$B$2+ROWS($A$2:A196)-1)))>$B$3,"",MAX(ROW(INDIRECT($B$2&":"&$B$2+ROWS($A$2:A196)-1)))) -> 2019-03-14 | D196: 1 | E196: =IF(ISNA(MATCH(MAX(ROW(INDIRECT($B$2&":"&$B$2+ROWS($A$2:A196)-1))),INDIRECT("$J$1:$J$"&COUNT(K:K)),0)),$B$2+ROWS($A$2:A196)-1,$B$3+20) -> 2019-03-14
C197: =IF(MAX(ROW(INDIRECT($B$2&":"&$B$2+ROWS($A$2:A197)-1)))>$B$3,"",MAX(ROW(INDIRECT($B$2&":"&$B$2+ROWS($A$2:A197)-1)))) -> 2019-03-15 | D197: 1 | E197: =IF(ISNA(MATCH(MAX(ROW(INDIRECT($B$2&":"&$B$2+ROWS($A$2:A197)-1))),INDIRECT("$J$1:$J$"&COUNT(K:K)),0)),$B$2+ROWS($A$2:A197)-1,$B$3+20) -> 2019-03-15
C198: =IF(MAX(ROW(INDIRECT($B$2&":"&$B$2+ROWS($A$2:A198)-1)))>$B$3,"",MAX(ROW(INDIRECT($B$2&":"&$B$2+ROWS($A$2:A198)-1)))) -> 2019-03-16 | D198: 1 | E198: =IF(ISNA(MATCH(MAX(ROW(INDIRECT($B$2&":"&$B$2+ROWS($A$2:A198)-1))),INDIRECT("$J$1:$J$"&COUNT(K:K)),0)),$B$2+ROWS($A$2:A198)-1,$B$3+20) -> 2019-03-16
C199: =IF(MAX(ROW(INDIRECT($B$2&":"&$B$2+ROWS($A$2:A199)-1)))>$B$3,"",MAX(ROW(INDIRECT($B$2&":"&$B$2+ROWS($A$2:A199)-1)))) -> 2019-03-17 | D199: 1 | E199: =IF(ISNA(MATCH(MAX(ROW(INDIRECT($B$2&":"&$B$2+ROWS($A$2:A199)-1))),INDIRECT("$J$1:$J$"&COUNT(K:K)),0)),$B$2+ROWS($A$2:A199)-1,$B$3+20) -> 2019-03-17
C200: =IF(MAX(ROW(INDIRECT($B$2&":"&$B$2+ROWS($A$2:A200)-1)))>$B$3,"",MAX(ROW(INDIRECT($B$2&":"&$B$2+ROWS($A$2:A200)-1)))) -> 2019-03-18 | D200: 1 | E200: =IF(ISNA(MATCH(MAX(ROW(INDIRECT($B$2&":"&$B$2+ROWS($A$2:A200)-1))),INDIRECT("$J$1:$J$"&COUNT(K:K)),0)),$B$2+ROWS($A$2:A200)-1,$B$3+20) -> 2019-03-18
... 801 more rows

Sheet Sheet2 (hidden)

Sheet Sheet3 (hidden)
